Workbook

Sheet Main
B10: 2019-08-29
B12: Sheet No. | C12: Template Name | D12: Summary
B13: 1 | C13: Future Intra | D13: For Intraday trading in F&O segment
B14: 2 | C14: Cash Intra | D14: For Intraday trading in cash market segment
B15: 3 | C15: Mid-cap Intra | D15: For Intraday trading in Mid-cap stocks
B16: 4 | C16: Bulk Deals | D16: Reveals Bulk Deals carried on NSE & BSE
B17: 5 | C17: Call Tracker
K27: `

Sheet Future Intra
M5: Back to Main Page
A6: FOR INTRA DAY TRADING | L6: =Main!B10 -> 2019-08-29
A9: Sr.no | B9: Sector | C9: Scrip | D9: CLOSE RATE | E9: Pivot Point | F9: Supports | I9: Resistances
B10: Sector | D10: Point | E10: Point | F10: S1 | G10: S2 | H10: S3 | I10: R1 | J10: R2 | K10: R3 | L10: HIGH | M10: LOW | N10: OI | O10: % Change in OI
A11: 1 | B11: Index | C11: BANKNIFTY | D11: 27837.65 | E11: 27858.95 | F11: 27599.75 | G11: 27361.85 | H11: 27102.65 | I11: 28096.85 | J11: 28356.05 | K11: 28593.95 | L11: 28118.15 | M11: 27621.05 | N11: 2032340 | O11: 0.00%
A12: 2 | B12: Index | C12: NIFTY | D12: 11049.25 | E12: 11054.83 | F12: 10977.67 | G12: 10906.08 | H12: 10828.92 | I12: 11126.42 | J12: 11203.58 | K12: 11275.17 | L12: 11132 | M12: 10983.25 | N12: 22611000 | O12: 0.00%
A13: 3 | B13: Index | C13: NIFTYIT | D13: 15844.00 | E13: 15807.33 | F13: 15746.67 | G13: 15649.33 | H13: 15588.67 | I13: 15904.67 | J13: 15965.33 | K13: 16062.67 | L13: 15868 | M13: 15710 | N13: 10450 | O13: 0.00%
A14: 4 | B14: Cement | C14: ACC | D14: 1540.75 | E14: 1537.18 | F14: 1522.92 | G14: 1505.08 | H14: 1490.82 | I14: 1555.02 | J14: 1569.28 | K14: 1587.12 | L14: 1551.45 | M14: 1519.35 | N14: 2350800 | O14: 0.00%
A15: 5 | B15: Others | C15: ADANIENT | D15: 135.20 | E15: 134.48 | F15: 132.32 | G15: 129.43 | H15: 127.27 | I15: 137.37 | J15: 139.53 | K15: 142.42 | L15: 136.65 | M15: 131.6 | N15: 31208000 | O15: 0.00%
A16: 6 | B16: Others | C16: ADANIPORTS | D16: 366.80 | E16: 368.18 | F16: 362.87 | G16: 358.93 | H16: 353.62 | I16: 372.12 | J16: 377.43 | K16: 381.37 | L16: 373.5 | M16: 364.25 | N16: 16907500 | O16: 0.00%
A17: 7 | B17: Power | C17: ADANIPOWER | D17: 59.10 | E17: 59.07 | F17: 57.98 | G17: 56.87 | H17: 55.78 | I17: 60.18 | J17: 61.27 | K17: 62.38 | L17: 60.15 | M17: 57.95 | N17: 127800000 | O17: 0.00%
A18: 8 | B18: Automobile | C18: AMARAJABAT | D18: 611.90 | E18: 614.73 | F18: 604.47 | G18: 597.03 | H18: 586.77 | I18: 622.17 | J18: 632.43 | K18: 639.87 | L18: 625 | M18: 607.3 | N18: 1466500 | O18: 0.00%
A19: 9 | B19: Cement | C19: AMBUJACEM | D19: 205.05 | E19: 203.15 | F19: 198.90 | G19: 192.75 | H19: 188.50 | I19: 209.30 | J19: 213.55 | K19: 219.70 | L19: 207.4 | M19: 197 | N19: 19757500 | O19: 0.00%
A20: 10 | B20: Others | C20: APOLLOHOSP | D20: 1512.65 | E20: 1501.83 | F20: 1484.67 | G20: 1456.68 | H20: 1439.52 | I20: 1529.82 | J20: 1546.98 | K20: 1574.97 | L20: 1519 | M20: 1473.85 | N20: 1616500 | O20: 0.00%
A21: 11 | B21: Automobile | C21: APOLLOTYRE | D21: 167.65 | E21: 168.40 | F21: 165.45 | G21: 163.25 | H21: 160.30 | I21: 170.60 | J21: 173.55 | K21: 175.75 | L21: 171.35 | M21: 166.2 | N21: 9045000 | O21: 0.00%
A22: 12 | B22: Textile | C22: ARVIND | D22: 46.50 | E22: 47.13 | F22: 45.07 | G22: 43.63 | H22: 41.57 | I22: 48.57 | J22: 50.63 | K22: 52.07 | L22: 49.2 | M22: 45.7 | N22: 7506000 | O22: 0.00%
A23: 13 | B23: Automobile | C23: ASHOKLEY | D23: 66.40 | E23: 66.42 | F23: 65.43 | G23: 64.47 | H23: 63.48 | I23: 67.38 | J23: 68.37 | K23: 69.33 | L23: 67.4 | M23: 65.45 | N23: 91692000 | O23: 0.00%
A24: 14 | B24: FMCG | C24: ASIANPAINT | D24: 1603.70 | E24: 1600.65 | F24: 1594.70 | G24: 1585.70 | H24: 1579.75 | I24: 1609.65 | J24: 1615.60 | K24: 1624.60 | L24: 1606.6 | M24: 1591.65 | N24: 8514000 | O24: 0.00%
A25: 15 | B25: Pharma | C25: AUROPHARMA | D25: 590.15 | E25: 591.85 | F25: 582.90 | G25: 575.65 | H25: 566.70 | I25: 599.10 | J25: 608.05 | K25: 615.30 | L25: 600.8 | M25: 584.6 | N25: 16885000 | O25: 0.00%
A26: 16 | B26: Banking | C26: AXISBANK | D26: 678.50 | E26: 680.00 | F26: 671.15 | G26: 663.80 | H26: 654.95 | I26: 687.35 | J26: 696.20 | K26: 703.55 | L26: 688.85 | M26: 672.65 | N26: 52075200 | O26: 0.00%
A27: 17 | B27: Automobile | C27: BAJAJ-AUTO | D27: 2767.30 | E27: 2778.07 | F27: 2742.43 | G27: 2717.57 | H27: 2681.93 | I27: 2802.93 | J27: 2838.57 | K27: 2863.43 | L27: 2813.7 | M27: 2753.2 | N27: 2466000 | O27: 0.00%
A28: 18 | B28: Finance | C28: BAJAJFINSV | D28: 7043.25 | E28: 7055.17 | F28: 6968.53 | G28: 6893.82 | H28: 6807.18 | I28: 7129.88 | J28: 7216.52 | K28: 7291.23 | L28: 7141.8 | M28: 6980.45 | N28: 1110875 | O28: 0.00%
A29: 19 | B29: Finance | C29: BAJFINANCE | D29: 3328.85 | E29: 3329.52 | F29: 3295.93 | G29: 3263.02 | H29: 3229.43 | I29: 3362.43 | J29: 3396.02 | K29: 3428.93 | L29: 3363.1 | M29: 3296.6 | N29: 7209750 | O29: 0.00%
A30: 20 | B30: Automobile | C30: BALKRISIND | D30: 745.80 | E30: 746.57 | F30: 739.13 | G30: 732.47 | H30: 725.03 | I30: 753.23 | J30: 760.67 | K30: 767.33 | L30: 754 | M30: 739.9 | N30: 2537600 | O30: 0.00%
A31: 21 | B31: Banking | C31: BANKBARODA | D31: 94.65 | E31: 95.40 | F31: 93.05 | G31: 91.45 | H31: 89.10 | I31: 97.00 | J31: 99.35 | K31: 100.95 | L31: 97.75 | M31: 93.8 | N31: 69367500 | O31: 0.00%
A32: 22 | B32: Banking | C32: BANKINDIA | D32: 67.80 | E32: 68.37 | F32: 65.93 | G32: 64.07 | H32: 61.63 | I32: 70.23 | J32: 72.67 | K32: 74.53 | L32: 70.8 | M32: 66.5 | N32: 27882000 | O32: 0.00%
A33: 23 | B33: FMCG | C33: BATAINDIA | D33: 1509.45 | E33: 1508.23 | F33: 1499.67 | G33: 1489.88 | H33: 1481.32 | I33: 1518.02 | J33: 1526.58 | K33: 1536.37 | L33: 1516.8 | M33: 1498.45 | N33: 3455650 | O33: 0.00%
A34: 24 | B34: Capital_Goods | C34: BEL | D34: 103.55 | E34: 103.53 | F34: 102.67 | G34: 101.78 | H34: 100.92 | I34: 104.42 | J34: 105.28 | K34: 106.17 | L34: 104.4 | M34: 102.65 | N34: 32166000 | O34: 0.00%
A35: 25 | B35: FMCG | C35: BERGEPAINT | D35: 366.40 | E35: 365.85 | F35: 362.80 | G35: 359.20 | H35: 356.15 | I35: 369.45 | J35: 372.50 | K35: 376.10 | L35: 368.9 | M35: 362.25 | N35: 4732200 | O35: 0.00%
A36: 26 | B36: Automobile | C36: BHARATFORG | D36: 389.55 | E36: 393.05 | F36: 384.60 | G36: 379.65 | H36: 371.20 | I36: 398.00 | J36: 406.45 | K36: 411.40 | L36: 401.5 | M36: 388.1 | N36: 7968000 | O36: 0.00%
A37: 27 | B37: Telecom | C37: BHARTIARTL | D37: 345.65 | E37: 344.70 | F37: 341.45 | G37: 337.25 | H37: 334.00 | I37: 348.90 | J37: 352.15 | K37: 356.35 | L37: 347.95 | M37: 340.5 | N37: 35698386 | O37: 0.00%
A38: 28 | B38: Capital_Goods | C38: BHEL | D38: 51.30 | E38: 51.80 | F38: 50.10 | G38: 48.90 | H38: 47.20 | I38: 53.00 | J38: 54.70 | K38: 55.90 | L38: 53.5 | M38: 50.6 | N38: 47872500 | O38: 0.00%
A39: 29 | B39: Pharma | C39: BIOCON | D39: 220.35 | E39: 222.32 | F39: 215.98 | G39: 211.62 | H39: 205.28 | I39: 226.68 | J39: 233.02 | K39: 237.38 | L39: 228.65 | M39: 217.95 | N39: 14326200 | O39: 0.00%
A40: 30 | B40: Automobile | C40: BOSCHLTD | D40: 14146.90 | E40: 14198.67 | F40: 13882.03 | G40: 13617.17 | H40: 13300.53 | I40: 14463.53 | J40: 14780.17 | K40: 15045.03 | L40: 14515.3 | M40: 13933.8 | N40: 162960 | O40: 0.00%
A41: 31 | B41: Oil_Gas | C41: BPCL | D41: 350.65 | E41: 346.50 | F41: 341.20 | G41: 331.75 | H41: 326.45 | I41: 355.95 | J41: 361.25 | K41: 370.70 | L41: 351.8 | M41: 337.05 | N41: 12283200 | O41: 0.00%
A42: 32 | B42: FMCG | C42: BRITANNIA | D42: 2706.40 | E42: 2700.93 | F42: 2666.37 | G42: 2626.33 | H42: 2591.77 | I42: 2740.97 | J42: 2775.53 | K42: 2815.57 | L42: 2735.5 | M42: 2660.9 | N42: 2324800 | O42: 0.00%
A43: 33 | B43: Technology | C43: CADILAHC | D43: 222.50 | E43: 220.80 | F43: 217.95 | G43: 213.40 | H43: 210.55 | I43: 225.35 | J43: 228.20 | K43: 232.75 | L43: 223.65 | M43: 216.25 | N43: 12224000 | O43: 0.00%
A44: 34 | B44: Pharma | C44: CANBK | D44: 227.25 | E44: 228.17 | F44: 224.58 | G44: 221.92 | H44: 218.33 | I44: 230.83 | J44: 234.42 | K44: 237.08 | L44: 231.75 | M44: 225.5 | N44: 9872000 | O44: 0.00%
A45: 35 | B45: Banking | C45: CASTROLIND | D45: 123.75 | E45: 124.50 | F45: 121.25 | G45: 118.75 | H45: 115.50 | I45: 127.00 | J45: 130.25 | K45: 132.75 | L45: 127.75 | M45: 122 | N45: 6878200 | O45: 0.00%
A46: 36 | B46: Oil_Gas | C46: CENTURYTEX | D46: 846.35 | E46: 848.55 | F46: 835.95 | G46: 825.55 | H46: 812.95 | I46: 858.95 | J46: 871.55 | K46: 881.95 | L46: 861.15 | M46: 838.15 | N46: 3291600 | O46: 0.00%
A47: 37 | B47: Textile | C47: CESC | D47: 764.70 | E47: 769.38 | F47: 757.22 | G47: 749.73 | H47: 737.57 | I47: 776.87 | J47: 789.03 | K47: 796.52 | L47: 781.55 | M47: 761.9 | N47: 901600 | O47: 0.00%
A48: 38 | B48: Power | C48: CHOLAFIN | D48: 265.80 | E48: 267.37 | F48: 261.43 | G48: 257.07 | H48: 251.13 | I48: 271.73 | J48: 277.67 | K48: 282.03 | L48: 273.3 | M48: 263 | N48: 3720000 | O48: 0.00%
A49: 39 | B49: Finance | C49: CIPLA | D49: 465.20 | E49: 467.08 | F49: 458.37 | G49: 451.53 | H49: 442.82 | I49: 473.92 | J49: 482.63 | K49: 489.47 | L49: 475.8 | M49: 460.25 | N49: 11895000 | O49: 0.00%
A50: 40 | B50: Pharma | C50: COALINDIA | D50: 184.70 | E50: 187.13 | F50: 181.57 | G50: 178.43 | H50: 172.87 | I50: 190.27 | J50: 195.83 | K50: 198.97 | L50: 192.7 | M50: 184 | N50: 46145000 | O50: 0.00%
A51: 41 | B51: Others | C51: COLPAL | D51: 1215.80 | E51: 1212.68 | F51: 1202.62 | G51: 1189.43 | H51: 1179.37 | I51: 1225.87 | J51: 1235.93 | K51: 1249.12 | L51: 1222.75 | M51: 1199.5 | N51: 1815100 | O51: 0.00%
A52: 42 | B52: FMCG | C52: CONCOR | D52: 486.80 | E52: 489.53 | F52: 480.77 | G52: 474.73 | H52: 465.97 | I52: 495.57 | J52: 504.33 | K52: 510.37 | L52: 498.3 | M52: 483.5 | N52: 3005649 | O52: 0.00%
A53: 43 | B53: Others | C53: CUMMINSIND | D53: 570.25 | E53: 568.57 | F53: 557.73 | G53: 545.22 | H53: 534.38 | I53: 581.08 | J53: 591.92 | K53: 604.43 | L53: 579.4 | M53: 556.05 | N53: 2639000 | O53: 0.00%
A54: 44 | B54: Capital_Goods | C54: DABUR | D54: 435.05 | E54: 436.65 | F54: 432.00 | G54: 428.95 | H54: 424.30 | I54: 439.70 | J54: 444.35 | K54: 447.40 | L54: 441.3 | M54: 433.6 | N54: 11882500 | O54: 0.00%
A55: 45 | B55: FMCG | C55: DHFL | D55: 48.50 | E55: 47.87 | F55: 46.58 | G55: 44.67 | H55: 43.38 | I55: 49.78 | J55: 51.07 | K55: 52.98 | L55: 49.15 | M55: 45.95 | N55: 15584000 | O55: 0.00%
A56: 46 | B56: Finance | C56: DISHTV | D56: 23.05 | E56: 23.55 | F56: 22.30 | G56: 21.55 | H56: 20.30 | I56: 24.30 | J56: 25.55 | K56: 26.30 | L56: 24.8 | M56: 22.8 | N56: 108766000 | O56: 0.00%
A57: 47 | B57: Media | C57: DIVISLAB | D57: 1578.25 | E57: 1587.92 | F57: 1562.03 | G57: 1545.82 | H57: 1519.93 | I57: 1604.13 | J57: 1630.02 | K57: 1646.23 | L57: 1613.8 | M57: 1571.7 | N57: 2699200 | O57: 0.00%
A58: 48 | B58: Pharma | C58: DLF | D58: 163.65 | E58: 162.63 | F58: 159.87 | G58: 156.08 | H58: 153.32 | I58: 166.42 | J58: 169.18 | K58: 172.97 | L58: 165.4 | M58: 158.85 | N58: 40171600 | O58: 0.00%
A59: 49 | B59: Realty | C59: DRREDDY | D59: 2514.85 | E59: 2528.18 | F59: 2492.67 | G59: 2470.48 | H59: 2434.97 | I59: 2550.37 | J59: 2585.88 | K59: 2608.07 | L59: 2563.7 | M59: 2506 | N59: 3234250 | O59: 0.00%
A60: 50 | B60: Pharma | C60: EICHERMOT | D60: 16308.10 | E60: 16176.87 | F60: 16009.78 | G60: 15711.47 | H60: 15544.38 | I60: 16475.18 | J60: 16642.27 | K60: 16940.58 | L60: 16343.95 | M60: 15878.55 | N60: 506100 | O60: 0.00%
A61: 51 | B61: Automobile | C61: ENGINERSIN | D61: 104.25 | E61: 105.20 | F61: 102.50 | G61: 100.75 | H61: 98.05 | I61: 106.95 | J61: 109.65 | K61: 111.40 | L61: 107.9 | M61: 103.45 | N61: 7493400 | O61: 0.00%
A62: 52 | B62: Infrastructure | C62: EQUITAS | D62: 104.70 | E62: 105.25 | F62: 100.30 | G62: 95.90 | H62: 90.95 | I62: 109.65 | J62: 114.60 | K62: 119.00 | L62: 110.2 | M62: 100.85 | N62: 12880000 | O62: 0.00%
A63: 53 | B63: Finance | C63: ESCORTS | D63: 491.25 | E63: 491.95 | F63: 484.40 | G63: 477.55 | H63: 470.00 | I63: 498.80 | J63: 506.35 | K63: 513.20 | L63: 499.5 | M63: 485.1 | N63: 5141400 | O63: 0.00%
A64: 54 | B64: Automobile | C64: EXIDEIND | D64: 178.45 | E64: 179.80 | F64: 176.50 | G64: 174.55 | H64: 171.25 | I64: 181.75 | J64: 185.05 | K64: 187.00 | L64: 183.1 | M64: 177.85 | N64: 8803200 | O64: 0.00%
A65: 55 | B65: Automobile | C65: FEDERALBNK | D65: 81.85 | E65: 82.83 | F65: 80.42 | G65: 78.98 | H65: 76.57 | I65: 84.27 | J65: 86.68 | K65: 88.12 | L65: 85.25 | M65: 81.4 | N65: 53018000 | O65: 0.00%
A66: 56 | B66: Banking | C66: GAIL | D66: 128.15 | E66: 129.58 | F66: 126.07 | G66: 123.98 | H66: 120.47 | I66: 131.67 | J66: 135.18 | K66: 137.27 | L66: 133.1 | M66: 127.5 | N66: 44880276 | O66: 0.00%
A67: 57 | B67: Oil_Gas | C67: GLENMARK | D67: 377.60 | E67: 376.98 | F67: 372.52 | G67: 367.43 | H67: 362.97 | I67: 382.07 | J67: 386.53 | K67: 391.62 | L67: 381.45 | M67: 371.9 | N67: 5059000 | O67: 0.00%
A68: 58 | B68: Pharma | C68: GMRINFRA | D68: 15.30 | E68: 15.33 | F68: 15.12 | G68: 14.93 | H68: 14.72 | I68: 15.52 | J68: 15.73 | K68: 15.92 | L68: 15.55 | M68: 15.15 | N68: 164430000 | O68: 0.00%
A69: 59 | B69: Infrastructure | C69: GODREJCP | D69: 598.50 | E69: 597.42 | F69: 589.28 | G69: 580.07 | H69: 571.93 | I69: 606.63 | J69: 614.77 | K69: 623.98 | L69: 605.55 | M69: 588.2 | N69: 6044800 | O69: 0.00%
A70: 60 | B70: FMCG | C70: GRASIM | D70: 714.05 | E70: 718.42 | F70: 704.73 | G70: 695.42 | H70: 681.73 | I70: 727.73 | J70: 741.42 | K70: 750.73 | L70: 732.1 | M70: 709.1 | N70: 16422000 | O70: 0.00%
A71: 61 | B71: Cement | C71: HAVELLS | D71: 666.85 | E71: 665.62 | F71: 661.33 | G71: 655.82 | H71: 651.53 | I71: 671.13 | J71: 675.42 | K71: 680.93 | L71: 669.9 | M71: 660.1 | N71: 7042000 | O71: 0.00%
A72: 62 | B72: Others | C72: HCLTECH | D72: 1120.10 | E72: 1111.13 | F72: 1099.27 | G72: 1078.43 | H72: 1066.57 | I72: 1131.97 | J72: 1143.83 | K72: 1164.67 | L72: 1123 | M72: 1090.3 | N72: 9576000 | O72: 0.00%
A73: 63 | B73: Technology | C73: HDFC | D73: 2184.05 | E73: 2176.38 | F73: 2163.57 | G73: 2143.08 | H73: 2130.27 | I73: 2196.87 | J73: 2209.68 | K73: 2230.17 | L73: 2189.2 | M73: 2155.9 | N73: 31134000 | O73: 0.00%
A74: 64 | B74: Finance | C74: HDFCBANK | D74: 2249.50 | E74: 2243.60 | F74: 2232.20 | G74: 2214.90 | H74: 2203.50 | I74: 2260.90 | J74: 2272.30 | K74: 2289.60 | L74: 2255 | M74: 2226.3 | N74: 18787000 | O74: 0.00%
A75: 65 | B75: Banking | C75: HEROMOTOCO | D75: 2574.30 | E75: 2585.12 | F75: 2549.23 | G75: 2524.17 | H75: 2488.28 | I75: 2610.18 | J75: 2646.07 | K75: 2671.13 | L75: 2621 | M75: 2560.05 | N75: 2557400 | O75: 0.00%
A76: 66 | B76: Automobile | C76: HEXAWARE | D76: 387.75 | E76: 390.57 | F76: 383.48 | G76: 379.22 | H76: 372.13 | I76: 394.83 | J76: 401.92 | K76: 406.18 | L76: 397.65 | M76: 386.3 | N76: 2763000 | O76: 0.00%
A77: 67 | B77: Technology | C77: HINDALCO | D77: 178.40 | E77: 179.02 | F77: 175.68 | G77: 172.97 | H77: 169.63 | I77: 181.73 | J77: 185.07 | K77: 187.78 | L77: 182.35 | M77: 176.3 | N77: 31934000 | O77: 0.00%
A78: 68 | B78: Metals | C78: HINDPETRO | D78: 264.80 | E78: 262.52 | F78: 257.53 | G78: 250.27 | H78: 245.28 | I78: 269.78 | J78: 274.77 | K78: 282.03 | L78: 267.5 | M78: 255.25 | N78: 17961300 | O78: 0.00%
A79: 69 | B79: Oil_Gas | C79: HINDUNILVR | D79: 1830.85 | E79: 1832.32 | F79: 1814.63 | G79: 1798.42 | H79: 1780.73 | I79: 1848.53 | J79: 1866.22 | K79: 1882.43 | L79: 1850 | M79: 1816.1 | N79: 11056800 | O79: 0.00%
A80: 70 | B80: FMCG | C80: HINDZINC | D80: 210.35 | E80: 211.40 | F80: 208.15 | G80: 205.95 | H80: 202.70 | I80: 213.60 | J80: 216.85 | K80: 219.05 | L80: 214.65 | M80: 209.2 | N80: 6656000 | O80: 0.00%
A81: 71 | B81: Metals | C81: IBULHSGFIN | D81: 456.35 | E81: 457.28 | F81: 441.92 | G81: 427.48 | H81: 412.12 | I81: 471.72 | J81: 487.08 | K81: 501.52 | L81: 472.65 | M81: 442.85 | N81: 23359200 | O81: 0.00%
A82: 72 | B82: Finance | C82: ICICIBANK | D82: 412.95 | E82: 413.47 | F82: 408.73 | G82: 404.52 | H82: 399.78 | I82: 417.68 | J82: 422.42 | K82: 426.63 | L82: 418.2 | M82: 409.25 | N82: 84906250 | O82: 0.00%
A83: 73 | B83: Banking | C83: ICICIPRULI | D83: 418.20 | E83: 412.40 | F83: 402.80 | G83: 387.40 | H83: 377.80 | I83: 427.80 | J83: 437.40 | K83: 452.80 | L83: 422 | M83: 397 | N83: 6724500 | O83: 0.00%
A84: 74 | B84: Finance | C84: IDBI | D84: 26.15 | E84: 26.63 | F84: 24.72 | G84: 23.28 | H84: 21.37 | I84: 28.07 | J84: 29.98 | K84: 31.42 | L84: 28.55 | M84: 25.2 | N84: 18960000 | O84: 0.00%
A85: 75 | B85: Banking | C85: IDEA | D85: 4.95 | E85: 5.07 | F85: 4.78 | G85: 4.62 | H85: 4.33 | I85: 5.23 | J85: 5.52 | K85: 5.68 | L85: 5.35 | M85: 4.9 | N85: 614180000 | O85: 0.00%
A86: 76 | B86: Telecom | C86: IDFCFIRSTB | D86: 41.75 | E86: 42.07 | F86: 40.93 | G86: 40.12 | H86: 38.98 | I86: 42.88 | J86: 44.02 | K86: 44.83 | L86: 43.2 | M86: 41.25 | N86: 169908000 | O86: 0.00%
A87: 77 | B87: Banking | C87: IGL | D87: 333.50 | E87: 335.30 | F87: 329.70 | G87: 325.90 | H87: 320.30 | I87: 339.10 | J87: 344.70 | K87: 348.50 | L87: 340.9 | M87: 331.5 | N87: 4512750 | O87: 0.00%
A88: 78 | B88: Oil_Gas | C88: INDIGO | D88: 1659.15 | E88: 1651.43 | F88: 1634.37 | G88: 1609.58 | H88: 1592.52 | I88: 1676.22 | J88: 1693.28 | K88: 1718.07 | L88: 1668.5 | M88: 1626.65 | N88: 3343800 | O88: 0.00%
A89: 79 | B89: Others | C89: INDUSINDBK | D89: 1366.90 | E89: 1374.63 | F89: 1344.27 | G89: 1321.63 | H89: 1291.27 | I89: 1397.27 | J89: 1427.63 | K89: 1450.27 | L89: 1405 | M89: 1352 | N89: 11896400 | O89: 0.00%
A90: 80 | B90: Banking | C90: INFRATEL | D90: 248.80 | E90: 248.12 | F90: 245.48 | G90: 242.17 | H90: 239.53 | I90: 251.43 | J90: 254.07 | K90: 257.38 | L90: 250.75 | M90: 244.8 | N90: 8404000 | O90: 0.00%
A91: 81 | B91: Telecom | C91: INFY | D91: 800.80 | E91: 796.88 | F91: 790.92 | G91: 781.03 | H91: 775.07 | I91: 806.77 | J91: 812.73 | K91: 822.62 | L91: 802.85 | M91: 787 | N91: 59192400 | O91: 0.00%
A92: 82 | B92: Technology | C92: IOC | D92: 122.90 | E92: 123.85 | F92: 120.85 | G92: 118.80 | H92: 115.80 | I92: 125.90 | J92: 128.90 | K92: 130.95 | L92: 126.85 | M92: 121.8 | N92: 64127000 | O92: 0.00%
A93: 83 | B93: Oil_Gas | C93: ITC | D93: 245.40 | E93: 245.30 | F93: 242.75 | G93: 240.10 | H93: 237.55 | I93: 247.95 | J93: 250.50 | K93: 253.15 | L93: 247.85 | M93: 242.65 | N93: 111451200 | O93: 0.00%
A94: 84 | B94: FMCG | C94: JINDALSTEL | D94: 95.80 | E94: 98.02 | F94: 92.43 | G94: 89.07 | H94: 83.48 | I94: 101.38 | J94: 106.97 | K94: 110.33 | L94: 103.6 | M94: 94.65 | N94: 35516800 | O94: 0.00%
A95: 85 | B95: Metals | C95: JSWSTEEL | D95: 206.00 | E95: 207.55 | F95: 201.00 | G95: 196.00 | H95: 189.45 | I95: 212.55 | J95: 219.10 | K95: 224.10 | L95: 214.1 | M95: 202.55 | N95: 53328000 | O95: 0.00%
A96: 86 | B96: Metals | C96: JUBLFOOD | D96: 1187.85 | E96: 1195.03 | F96: 1174.07 | G96: 1160.28 | H96: 1139.32 | I96: 1208.82 | J96: 1229.78 | K96: 1243.57 | L96: 1216 | M96: 1181.25 | N96: 2839500 | O96: 0.00%
A97: 87 | B97: Others | C97: JUSTDIAL | D97: 705.05 | E97: 700.95 | F97: 692.85 | G97: 680.65 | H97: 672.55 | I97: 713.15 | J97: 721.25 | K97: 733.45 | L97: 709.05 | M97: 688.75 | N97: 2402400 | O97: 0.00%
A98: 88 | B98: Others | C98: KAJARIACER | D98: 471.20 | E98: 475.30 | F98: 462.90 | G98: 454.60 | H98: 442.20 | I98: 483.60 | J98: 496.00 | K98: 504.30 | L98: 487.7 | M98: 467 | N98: 1090700 | O98: 0.00%
A99: 89 | B99: Others | C99: KOTAKBANK | D99: 1487.40 | E99: 1489.00 | F99: 1475.90 | G99: 1464.40 | H99: 1451.30 | I99: 1500.50 | J99: 1513.60 | K99: 1525.10 | L99: 1502.1 | M99: 1477.5 | N99: 9092800 | O99: 0.00%
A100: 90 | B100: Banking | C100: BSOFT | D100: 67.00 | E100: 66.23 | F100: 64.17 | G100: 61.33 | H100: 59.27 | I100: 69.07 | J100: 71.13 | K100: 73.97 | L100: 68.3 | M100: 63.4 | N100: 3325200 | O100: 0.00%
A101: 91 | B101: Finance | C101: L&TFH | D101: 94.65 | E101: 95.52 | F101: 91.98 | G101: 89.32 | H101: 85.78 | I101: 98.18 | J101: 101.72 | K101: 104.38 | L101: 99.05 | M101: 92.85 | N101: 33421500 | O101: 0.00%
A102: 92 | B102: Finance | C102: LICHSGFIN | D102: 417.70 | E102: 418.75 | F102: 408.95 | G102: 400.20 | H102: 390.40 | I102: 427.50 | J102: 437.30 | K102: 446.05 | L102: 428.55 | M102: 410 | N102: 11809600 | O102: 0.00%
A103: 93 | B103: Capital_Goods | C103: LT | D103: 1345.10 | E103: 1349.07 | F103: 1329.63 | G103: 1314.17 | H103: 1294.73 | I103: 1364.53 | J103: 1383.97 | K103: 1399.43 | L103: 1368.5 | M103: 1333.6 | N103: 14781375 | O103: 0.00%
A104: 94 | B104: Pharma | C104: LUPIN | D104: 733.10 | E104: 736.83 | F104: 722.47 | G104: 711.83 | H104: 697.47 | I104: 747.47 | J104: 761.83 | K104: 772.47 | L104: 751.2 | M104: 726.2 | N104: 8063300 | O104: 0.00%
A105: 95 | B105: Automobile | C105: M&M | D105: 539.60 | E105: 544.40 | F105: 529.55 | G105: 519.50 | H105: 504.65 | I105: 554.45 | J105: 569.30 | K105: 579.35 | L105: 559.25 | M105: 534.35 | N105: 22978000 | O105: 0.00%
A106: 96 | B106: Finance | C106: M&MFIN | D106: 319.80 | E106: 323.57 | F106: 311.83 | G106: 303.87 | H106: 292.13 | I106: 331.53 | J106: 343.27 | K106: 351.23 | L106: 335.3 | M106: 315.6 | N106: 15087500 | O106: 0.00%
A107: 97 | B107: Finance | C107: MANAPPURAM | D107: 121.40 | E107: 121.85 | F107: 120.05 | G107: 118.70 | H107: 116.90 | I107: 123.20 | J107: 125.00 | K107: 126.35 | L107: 123.65 | M107: 120.5 | N107: 14352000 | O107: 0.00%
A108: 98 | B108: FMCG | C108: MARICO | D108: 390.10 | E108: 387.97 | F108: 385.03 | G108: 379.97 | H108: 377.03 | I108: 393.03 | J108: 395.97 | K108: 401.03 | L108: 390.9 | M108: 382.9 | N108: 13044200 | O108: 0.00%
A109: 99 | B109: Automobile | C109: MARUTI | D109: 6118.15 | E109: 6138.93 | F109: 6047.72 | G109: 5977.28 | H109: 5886.07 | I109: 6209.37 | J109: 6300.58 | K109: 6371.02 | L109: 6230.15 | M109: 6068.5 | N109: 3497625 | O109: 0.00%
A110: 100 | B110: FMCG | C110: MCDOWELL-N | D110: 600.20 | E110: 600.58 | F110: 593.22 | G110: 586.23 | H110: 578.87 | I110: 607.57 | J110: 614.93 | K110: 621.92 | L110: 607.95 | M110: 593.6 | N110: 11677500 | O110: 0.00%
A111: 101 | B111: Others | C111: MCX | D111: 942.70 | E111: 930.60 | F111: 914.70 | G111: 886.70 | H111: 870.80 | I111: 958.60 | J111: 974.50 | K111: 1002.50 | L111: 946.5 | M111: 902.6 | N111: 1556800 | O111: 0.00%
A112: 102 | B112: Finance | C112: MFSL | D112: 431.00 | E112: 434.53 | F112: 425.07 | G112: 419.13 | H112: 409.67 | I112: 440.47 | J112: 449.93 | K112: 455.87 | L112: 444 | M112: 428.6 | N112: 2467200 | O112: 0.00%
A113: 103 | B113: Oil_Gas | C113: MGL | D113: 846.15 | E113: 849.12 | F113: 835.83 | G113: 825.52 | H113: 812.23 | I113: 859.43 | J113: 872.72 | K113: 883.03 | L113: 862.4 | M113: 838.8 | N113: 3141000 | O113: 0.00%
A114: 104 | B114: Technology | C114: MINDTREE | D114: 678.90 | E114: 678.78 | F114: 668.87 | G114: 658.83 | H114: 648.92 | I114: 688.82 | J114: 698.73 | K114: 708.77 | L114: 688.7 | M114: 668.75 | N114: 2022600 | O114: 0.00%
A115: 105 | B115: Automobile | C115: MOTHERSUMI | D115: 97.65 | E115: 99.60 | F115: 94.95 | G115: 92.25 | H115: 87.60 | I115: 102.30 | J115: 106.95 | K115: 109.65 | L115: 104.25 | M115: 96.9 | N115: 36613500 | O115: 0.00%
A116: 106 | B116: Automobile | C116: MRF | D116: 58049.45 | E116: 58386.87 | F116: 57472.88 | G116: 56896.32 | H116: 55982.33 | I116: 58963.43 | J116: 59877.42 | K116: 60453.98 | L116: 59300.85 | M116: 57810.3 | N116: 24820 | O116: 0.00%
A117: 107 | B117: Finance | C117: MUTHOOTFIN | D117: 624.10 | E117: 627.18 | F117: 616.82 | G117: 609.53 | H117: 599.17 | I117: 634.47 | J117: 644.83 | K117: 652.12 | L117: 637.55 | M117: 619.9 | N117: 2223000 | O117: 0.00%
A118: 108 | B118: Metals | C118: NATIONALUM | D118: 39.80 | E118: 39.92 | F118: 39.08 | G118: 38.37 | H118: 37.53 | I118: 40.63 | J118: 41.47 | K118: 42.18 | L118: 40.75 | M118: 39.2 | N118: 36090000 | O118: 0.00%
A119: 109 | B119: Infrastructure | C119: NBCC | D119: 35.95 | E119: 36.07 | F119: 35.33 | G119: 34.72 | H119: 33.98 | I119: 36.68 | J119: 37.42 | K119: 38.03 | L119: 36.8 | M119: 35.45 | N119: 44888500 | O119: 0.00%
A120: 110 | B120: Infrastructure | C120: NCC | D120: 59.10 | E120: 59.30 | F120: 57.80 | G120: 56.50 | H120: 55.00 | I120: 60.60 | J120: 62.10 | K120: 63.40 | L120: 60.8 | M120: 58 | N120: 41304000 | O120: 0.00%
A121: 111 | B121: FMCG | C121: NESTLEIND | D121: 12527.65 | E121: 12572.48 | F121: 12335.27 | G121: 12142.88 | H121: 11905.67 | I121: 12764.87 | J121: 13002.08 | K121: 13194.47 | L121: 12809.7 | M121: 12380.1 | N121: 450750 | O121: 0.00%
A122: 112 | B122: Technology | C122: NIITTECH | D122: 1524.50 | E122: 1496.70 | F122: 1452.40 | G122: 1380.30 | H122: 1336.00 | I122: 1568.80 | J122: 1613.10 | K122: 1685.20 | L122: 1541 | M122: 1424.6 | N122: 1247250 | O122: 0.00%
A123: 113 | B123: Metals | C123: NMDC | D123: 80.90 | E123: 81.52 | F123: 79.68 | G123: 78.47 | H123: 76.63 | I123: 82.73 | J123: 84.57 | K123: 85.78 | L123: 83.35 | M123: 80.3 | N123: 33792000 | O123: 0.00%
A124: 114 | B124: Power | C124: NTPC | D124: 119.80 | E124: 121.20 | F124: 117.95 | G124: 116.10 | H124: 112.85 | I124: 123.05 | J124: 126.30 | K124: 128.15 | L124: 124.45 | M124: 119.35 | N124: 74088000 | O124: 0.00%
A125: 115 | B125: Technology | C125: OFSS | D125: 3005.85 | E125: 3002.93 | F125: 2992.52 | G125: 2979.18 | H125: 2968.77 | I125: 3016.27 | J125: 3026.68 | K125: 3040.02 | L125: 3013.35 | M125: 2989.6 | N125: 176550 | O125: 0.00%
A126: 116 | B126: Oil_Gas | C126: OIL | D126: 144.00 | E126: 145.60 | F126: 141.70 | G126: 139.40 | H126: 135.50 | I126: 147.90 | J126: 151.80 | K126: 154.10 | L126: 149.5 | M126: 143.3 | N126: 7498194 | O126: 0.00%
A127: 117 | B127: Oil_Gas | C127: ONGC | D127: 120.95 | E127: 122.37 | F127: 118.83 | G127: 116.72 | H127: 113.18 | I127: 124.48 | J127: 128.02 | K127: 130.13 | L127: 125.9 | M127: 120.25 | N127: 73770000 | O127: 0.00%
A128: 118 | B128: Textile | C128: PAGEIND | D128: 18120.80 | E128: 18125.02 | F128: 17921.88 | G128: 17722.97 | H128: 17519.83 | I128: 18323.93 | J128: 18527.07 | K128: 18725.98 | L128: 18328.15 | M128: 17926.1 | N128: 214900 | O128: 0.00%
A129: 119 | B129: Pharma | C129: PEL | D129: 1898.40 | E129: 1905.43 | F129: 1859.62 | G129: 1820.83 | H129: 1775.02 | I129: 1944.22 | J129: 1990.03 | K129: 2028.82 | L129: 1951.25 | M129: 1866.65 | N129: 3347368 | O129: 0.00%
A130: 120 | B130: Oil_Gas | C130: PETRONET | D130: 259.65 | E130: 258.88 | F130: 256.97 | G130: 254.28 | H130: 252.37 | I130: 261.57 | J130: 263.48 | K130: 266.17 | L130: 260.8 | M130: 256.2 | N130: 16377000 | O130: 0.00%
A131: 121 | B131: Finance | C131: PFC | D131: 103.25 | E131: 103.92 | F131: 101.78 | G131: 100.32 | H131: 98.18 | I131: 105.38 | J131: 107.52 | K131: 108.98 | L131: 106.05 | M131: 102.45 | N131: 42246800 | O131: 0.00%
A132: 122 | B132: FMCG | C132: PIDILITIND | D132: 1377.65 | E132: 1376.48 | F132: 1364.92 | G132: 1352.18 | H132: 1340.62 | I132: 1389.22 | J132: 1400.78 | K132: 1413.52 | L132: 1388.05 | M132: 1363.75 | N132: 2494000 | O132: 0.00%
A133: 123 | B133: Banking | C133: PNB | D133: 65.70 | E133: 66.22 | F133: 64.38 | G133: 63.07 | H133: 61.23 | I133: 67.53 | J133: 69.37 | K133: 70.68 | L133: 68.05 | M133: 64.9 | N133: 100744000 | O133: 0.00%
A134: 124 | B134: Power | C134: POWERGRID | D134: 206.20 | E134: 207.30 | F134: 203.65 | G134: 201.10 | H134: 197.45 | I134: 209.85 | J134: 213.50 | K134: 216.05 | L134: 210.95 | M134: 204.75 | N134: 30772000 | O134: 0.00%
A135: 125 | B135: Media | C135: PVR | D135: 1579.70 | E135: 1569.80 | F135: 1546.60 | G135: 1513.50 | H135: 1490.30 | I135: 1602.90 | J135: 1626.10 | K135: 1659.20 | L135: 1593 | M135: 1536.7 | N135: 1110400 | O135: 0.00%
A136: 126 | B136: Cement | C136: RAMCOCEM | D136: 753.35 | E136: 754.88 | F136: 742.47 | G136: 731.58 | H136: 719.17 | I136: 765.77 | J136: 778.18 | K136: 789.07 | L136: 767.3 | M136: 744 | N136: 1770400 | O136: 0.00%
A137: 127 | B137: Textile | C137: RAYMOND | D137: 573.20 | E137: 579.05 | F137: 559.15 | G137: 545.10 | H137: 525.20 | I137: 593.10 | J137: 613.00 | K137: 627.05 | L137: 598.95 | M137: 565 | N137: 2042400 | O137: 0.00%
A138: 128 | B138: Banking | C138: RBLBANK | D138: 313.55 | E138: 320.92 | F138: 282.83 | G138: 252.12 | H138: 214.03 | I138: 351.63 | J138: 389.72 | K138: 420.43 | L138: 359 | M138: 290.2 | N138: 12657600 | O138: 0.00%
A139: 129 | B139: Power | C139: RECLTD | D139: 140.90 | E139: 142.05 | F139: 138.95 | G139: 137.00 | H139: 133.90 | I139: 144.00 | J139: 147.10 | K139: 149.05 | L139: 145.15 | M139: 140.1 | N139: 30786000 | O139: 0.00%
A140: 130 | B140: Finance | C140: RELCAPITAL | D140: 34.60 | E140: 34.88 | F140: 33.07 | G140: 31.53 | H140: 29.72 | I140: 36.42 | J140: 38.23 | K140: 39.77 | L140: 36.7 | M140: 33.35 | N140: 18084000 | O140: 0.00%
A141: 131 | B141: Oil_Gas | C141: RELIANCE | D141: 1263.55 | E141: 1267.75 | F141: 1252.80 | G141: 1242.05 | H141: 1227.10 | I141: 1278.50 | J141: 1293.45 | K141: 1304.20 | L141: 1282.7 | M141: 1257 | N141: 54175000 | O141: 0.00%
A142: 132 | B142: Power | C142: RELINFRA | D142: 38.25 | E142: 38.93 | F142: 36.62 | G142: 34.98 | H142: 32.67 | I142: 40.57 | J142: 42.88 | K142: 44.52 | L142: 41.25 | M142: 37.3 | N142: 13956000 | O142: 0.00%
A143: 133 | B143: Metals | C143: SAIL | D143: 31.00 | E143: 31.45 | F143: 30.30 | G143: 29.60 | H143: 28.45 | I143: 32.15 | J143: 33.30 | K143: 34.00 | L143: 32.6 | M143: 30.75 | N143: 106440000 | O143: 0.00%
A144: 134 | B144: Banking | C144: SBIN | D144: 284.50 | E144: 284.07 | F144: 282.08 | G144: 279.67 | H144: 277.68 | I144: 286.48 | J144: 288.47 | K144: 290.88 | L144: 286.05 | M144: 281.65 | N144: 114015000 | O144: 0.00%
A145: 135 | B145: Cement | C145: SHREECEM | D145: 19119.90 | E145: 19194.48 | F145: 18925.42 | G145: 18730.93 | H145: 18461.87 | I145: 19388.97 | J145: 19658.03 | K145: 19852.52 | L145: 19463.55 | M145: 19000 | N145: 188500 | O145: 0.00%
A146: 136 | B146: Capital_Goods | C146: SIEMENS | D146: 1176.50 | E146: 1183.57 | F146: 1166.48 | G146: 1156.47 | H146: 1139.38 | I146: 1193.58 | J146: 1210.67 | K146: 1220.68 | L146: 1200.65 | M146: 1173.55 | N146: 1263350 | O146: 0.00%
A147: 137 | B147: Textile | C147: SRF | D147: 2775.15 | E147: 2789.43 | F147: 2749.77 | G147: 2724.38 | H147: 2684.72 | I147: 2814.82 | J147: 2854.48 | K147: 2879.87 | L147: 2829.1 | M147: 2764.05 | N147: 947750 | O147: 0.00%
A148: 138 | B148: Finance | C148: SRTRANSFIN | D148: 992.55 | E148: 1001.62 | F148: 971.33 | G148: 950.12 | H148: 919.83 | I148: 1022.83 | J148: 1053.12 | K148: 1074.33 | L148: 1031.9 | M148: 980.4 | N148: 4548000 | O148: 0.00%
A149: 139 | B149: Pharma | C149: STAR | D149: 374.15 | E149: 376.67 | F149: 367.73 | G149: 361.32 | H149: 352.38 | I149: 383.08 | J149: 392.02 | K149: 398.43 | L149: 385.6 | M149: 370.25 | N149: 2666400 | O149: 0.00%
A150: 140 | B150: Pharma | C150: SUNPHARMA | D150: 412.65 | E150: 414.73 | F150: 408.52 | G150: 404.38 | H150: 398.17 | I150: 418.87 | J150: 425.08 | K150: 429.22 | L150: 420.95 | M150: 410.6 | N150: 50350300 | O150: 0.00%
A151: 141 | B151: Media | C151: SUNTV | D151: 441.65 | E151: 443.98 | F151: 432.22 | G151: 422.78 | H151: 411.02 | I151: 453.42 | J151: 465.18 | K151: 474.62 | L151: 455.75 | M151: 434.55 | N151: 6042000 | O151: 0.00%
A152: 142 | B152: Fertilisers | C152: TATACHEM | D152: 565.45 | E152: 564.00 | F152: 560.30 | G152: 555.15 | H152: 551.45 | I152: 569.15 | J152: 572.85 | K152: 578.00 | L152: 567.7 | M152: 558.85 | N152: 1945800 | O152: 0.00%
A153: 143 | B153: Technology | C153: TATAELXSI | D153: 647.45 | E153: 651.90 | F153: 636.65 | G153: 625.85 | H153: 610.60 | I153: 662.70 | J153: 677.95 | K153: 688.75 | L153: 667.15 | M153: 641.1 | N153: 1971000 | O153: 0.00%
A154: 144 | B154: FMCG | C154: TATAGLOBAL | D154: 279.75 | E154: 276.27 | F154: 271.58 | G154: 263.42 | H154: 258.73 | I154: 284.43 | J154: 289.12 | K154: 297.28 | L154: 280.95 | M154: 268.1 | N154: 8283600 | O154: 0.00%
A155: 145 | B155: Automobile | C155: TATAMOTORS | D155: 116.35 | E155: 118.32 | F155: 112.63 | G155: 108.92 | H155: 103.23 | I155: 122.03 | J155: 127.72 | K155: 131.43 | L155: 124 | M155: 114.6 | N155: 72915000 | O155: 0.00%
A156: 146 | B156: Automobile | C156: TATAMTRDVR | D156: 53.60 | E156: 54.80 | F156: 51.90 | G156: 50.20 | H156: 47.30 | I156: 56.50 | J156: 59.40 | K156: 61.10 | L156: 57.7 | M156: 53.1 | N156: 36678000 | O156: 0.00%
A157: 147 | B157: Power | C157: TATAPOWER | D157: 55.20 | E157: 54.95 | F157: 54.00 | G157: 52.80 | H157: 51.85 | I157: 56.15 | J157: 57.10 | K157: 58.30 | L157: 55.9 | M157: 53.75 | N157: 53181000 | O157: 0.00%
A158: 148 | B158: Metals | C158: TATASTEEL | D158: 337.05 | E158: 340.42 | F158: 329.83 | G158: 322.62 | H158: 312.03 | I158: 347.63 | J158: 358.22 | K158: 365.43 | L158: 351 | M158: 333.2 | N158: 36343494 | O158: 0.00%
A159: 149 | B159: Technology | C159: TCS | D159: 2240.30 | E159: 2236.85 | F159: 2221.45 | G159: 2202.60 | H159: 2187.20 | I159: 2255.70 | J159: 2271.10 | K159: 2289.95 | L159: 2252.25 | M159: 2218 | N159: 16376500 | O159: 0.00%
A160: 150 | B160: Technology | C160: TECHM | D160: 687.60 | E160: 684.37 | F160: 678.73 | G160: 669.87 | H160: 664.23 | I160: 693.23 | J160: 698.87 | K160: 707.73 | L160: 690 | M160: 675.5 | N160: 13920000 | O160: 0.00%
A161: 151 | B161: FMCG | C161: TITAN | D161: 1111.20 | E161: 1115.43 | F161: 1103.87 | G161: 1096.53 | H161: 1084.97 | I161: 1122.77 | J161: 1134.33 | K161: 1141.67 | L161: 1127 | M161: 1108.1 | N161: 10458750 | O161: 0.00%
A162: 152 | B162: Pharma | C162: TORNTPHARM | D162: 1670.30 | E162: 1673.55 | F162: 1656.75 | G162: 1643.20 | H162: 1626.40 | I162: 1687.10 | J162: 1703.90 | K162: 1717.45 | L162: 1690.35 | M162: 1660 | N162: 540500 | O162: 0.00%
A163: 153 | B163: Power | C163: TORNTPOWER | D163: 280.25 | E163: 281.85 | F163: 275.95 | G163: 271.65 | H163: 265.75 | I163: 286.15 | J163: 292.05 | K163: 296.35 | L163: 287.75 | M163: 277.55 | N163: 4737000 | O163: 0.00%
A164: 154 | B164: Automobile | C164: TVSMOTOR | D164: 359.70 | E164: 362.92 | F164: 353.38 | G164: 347.07 | H164: 337.53 | I164: 369.23 | J164: 378.77 | K164: 385.08 | L164: 372.45 | M164: 356.6 | N164: 9254300 | O164: 0.00%
A165: 155 | B165: FMCG | C165: UBL | D165: 1330.45 | E165: 1332.52 | F165: 1318.48 | G165: 1306.52 | H165: 1292.48 | I165: 1344.48 | J165: 1358.52 | K165: 1370.48 | L165: 1346.55 | M165: 1320.55 | N165: 1201200 | O165: 0.00%
A166: 156 | B166: Finance | C166: UJJIVAN | D166: 284.00 | E166: 283.55 | F166: 275.65 | G166: 267.30 | H166: 259.40 | I166: 291.90 | J166: 299.80 | K166: 308.15 | L166: 291.45 | M166: 275.2 | N166: 7305600 | O166: 0.00%
A167: 157 | B167: Cement | C167: ULTRACEMCO | D167: 4126.00 | E167: 4129.57 | F167: 4080.88 | G167: 4035.77 | H167: 3987.08 | I167: 4174.68 | J167: 4223.37 | K167: 4268.48 | L167: 4178.25 | M167: 4084.45 | N167: 2962800 | O167: 0.00%
A168: 158 | B168: Banking | C168: UNIONBANK | D168: 60.50 | E168: 61.32 | F168: 59.08 | G168: 57.67 | H168: 55.43 | I168: 62.73 | J168: 64.97 | K168: 66.38 | L168: 63.55 | M168: 59.9 | N168: 35931000 | O168: 0.00%
A169: 159 | B169: Fertilisers | C169: UPL | D169: 556.70 | E169: 557.37 | F169: 544.93 | G169: 533.17 | H169: 520.73 | I169: 569.13 | J169: 581.57 | K169: 593.33 | L169: 569.8 | M169: 545.6 | N169: 15395400 | O169: 0.00%
A170: 160 | B170: Metals | C170: VEDL | D170: 132.35 | E170: 133.88 | F170: 129.72 | G170: 127.08 | H170: 122.92 | I170: 136.52 | J170: 140.68 | K170: 143.32 | L170: 138.05 | M170: 131.25 | N170: 62451000 | O170: 0.00%
A171: 161 | B171: Capital_Goods | C171: VOLTAS | D171: 626.05 | E171: 623.05 | F171: 618.35 | G171: 610.65 | H171: 605.95 | I171: 630.75 | J171: 635.45 | K171: 643.15 | L171: 627.75 | M171: 615.35 | N171: 3029000 | O171: 0.00%
A172: 162 | B172: Technology | C172: WIPRO | D172: 249.65 | E172: 250.27 | F172: 247.83 | G172: 246.02 | H172: 243.58 | I172: 252.08 | J172: 254.52 | K172: 256.33 | L172: 252.7 | M172: 248.45 | N172: 35603200 | O172: 0.00%
A173: 163 | B173: Banking | C173: YESBANK | D173: 59.60 | E173: 60.97 | F173: 56.63 | G173: 53.67 | H173: 49.33 | I173: 63.93 | J173: 68.27 | K173: 71.23 | L173: 65.3 | M173: 58 | N173: 163642600 | O173: 0.00%
A174: 164 | B174: Media | C174: ZEEL | D174: 361.65 | E174: 363.37 | F174: 357.28 | G174: 352.92 | H174: 346.83 | I174: 367.73 | J174: 373.82 | K174: 378.18 | L174: 369.45 | M174: 359 | N174: 18809700 | O174: 0.00%
A190: Pivot Point: This is trigger point for intra day buy/sell based on the price range of the previous day
A191: As per the tool,the trader should take BUY position just above Pivot and keep the stop loss of pivot point and the first target would be Resistance 1(R1)
A192: If R1 is crossed then R2 becomes the next target with stop loss of at R1
A193: Similarly if price goes below pivot point then the trader should sell and keep a stop loss of pivot point and the first target would be S1
A194: If S1 is crossed then S2 becomes the next target with stop loss of at S1
A196: Disclaimer:
A197: This document has been prepared by the Retail Research Desk of Asit C Mehta
A198: Investment Intermediates Ltd. and is meant for use of the recipient only
A199: and is not for circulation. This document is not to be reported or
A200: copied or made available to others. It should not be considered to be
A201: taken as an offer to sell or a solicitation to buy any security. The
A202: information contained herein is from sources believed reliable. We do
A203: not represent that it is accurate or complete and it should not be
A204: relied upon as such. We may from time to time have positions in and buy
A205: and sell securities referred to herein

Sheet Cash Intra
M5: Back to Main Page
A6: FOR INTRA DAY TRADING | K6: =Main!B10 -> 2019-08-29
A8: Sr.no | B8: Scrip | C8: CLOSE RATE | D8: Pivot Point | E8: Supports | H8: Resistances
C9: Point | E9: S1 | F9: S2 | G9: S3 | H9: R1 | I9: R2 | J9: R3 | K9: HIGH | L9: LOW | M9: Total Trade Quanity in Lakhs
A10: 1 | B10: Nifty 50 | C10: 11046.1 | D10: 11054.47 | E10: 10979.28 | F10: 10912.47 | G10: 10837.28 | H10: 11121.28 | I10: 11196.47 | J10: 11263.28 | K10: 11129.65 | L10: 10987.65
A11: 2 | B11: Nifty Bank | C11: 27804.3 | D11: 27844.83 | E11: 27594.12 | F11: 27383.93 | G11: 27133.22 | H11: 28055.02 | I11: 28305.73 | J11: 28515.92 | K11: 28095.55 | L11: 27634.65
A12: 3 | B12: Nifty CPSE | C12: 1840.05 | D12: 1855.72 | E12: 1815.53 | F12: 1791.02 | G12: 1750.83 | H12: 1880.23 | I12: 1920.42 | J12: 1944.93 | K12: 1895.9 | L12: 1831.2
A13: 4 | B13: Nifty Infra | C13: 3006.45 | D13: 3018.72 | E13: 2981.48 | F13: 2956.52 | G13: 2919.28 | H13: 3043.68 | I13: 3080.92 | J13: 3105.88 | K13: 3055.95 | L13: 2993.75
A14: 5 | B14: Nifty IT | C14: 15879.9 | D14: 15827.00 | E14: 15756.00 | F14: 15632.10 | G14: 15561.10 | H14: 15950.90 | I14: 16021.90 | J14: 16145.80 | K14: 15898 | L14: 15703.1
A15: 6 | B15: Nifty PSE | C15: 3018.15 | D15: 3034.68 | E15: 2982.57 | F15: 2946.98 | G15: 2894.87 | H15: 3070.27 | I15: 3122.38 | J15: 3157.97 | K15: 3086.8 | L15: 2999.1
A16: 7 | B16: Nifty Midcap 50 | C16: 4237.25 | D16: 4259.98 | E16: 4194.82 | F16: 4152.38 | G16: 4087.22 | H16: 4302.42 | I16: 4367.58 | J16: 4410.02 | K16: 4325.15 | L16: 4217.55
A17: 8 | B17: ABB | C17: 1361.4 | D17: 1367.85 | E17: 1345.65 | F17: 1329.90 | G17: 1307.70 | H17: 1383.60 | I17: 1405.80 | J17: 1421.55 | K17: 1390.05 | L17: 1352.1 | M17: 1.8278
A18: 9 | B18: ACC | C18: 1542.35 | D18: 1537.45 | E18: 1524.90 | F18: 1507.45 | G18: 1494.90 | H18: 1554.90 | I18: 1567.45 | J18: 1584.90 | K18: 1550 | L18: 1520 | M18: 6.43361
A19: 10 | B19: AUBANK | C19: 669.45 | D19: 672.60 | E19: 661.90 | F19: 654.35 | G19: 643.65 | H19: 680.15 | I19: 690.85 | J19: 698.40 | K19: 683.3 | L19: 665.05 | M19: 1.15389
A20: 11 | B20: ADANIPORTS | C20: 365.95 | D20: 368.08 | E20: 361.92 | F20: 357.88 | G20: 351.72 | H20: 372.12 | I20: 378.28 | J20: 382.32 | K20: 374.25 | L20: 364.05 | M20: 21.86454
A21: 12 | B21: ADANIPOWER | C21: 59.25 | D21: 59.15 | E21: 58.10 | F21: 56.95 | G21: 55.90 | H21: 60.30 | I21: 61.35 | J21: 62.50 | K21: 60.2 | L21: 58 | M21: 72.36667
A22: 13 | B22: ABCAPITAL | C22: 87.75 | D22: 88.52 | E22: 86.73 | F22: 85.72 | G22: 83.93 | H22: 89.53 | I22: 91.32 | J22: 92.33 | K22: 90.3 | L22: 87.5 | M22: 8.18681
A23: 14 | B23: ABFRL | C23: 190.6 | D23: 193.18 | E23: 187.42 | F23: 184.23 | G23: 178.47 | H23: 196.37 | I23: 202.13 | J23: 205.32 | K23: 198.95 | L23: 190 | M23: 2.52589
A24: 15 | B24: AJANTPHARM | C24: 986.05 | D24: 979.70 | E24: 949.95 | F24: 913.85 | G24: 884.10 | H24: 1015.80 | I24: 1045.55 | J24: 1081.65 | K24: 1009.45 | L24: 943.6 | M24: 1.15371
A25: 16 | B25: ALKEM | C25: 1829.85 | D25: 1824.92 | E25: 1804.93 | F25: 1780.02 | G25: 1760.03 | H25: 1849.83 | I25: 1869.82 | J25: 1894.73 | K25: 1844.9 | L25: 1800 | M25: 0.33453
A26: 17 | B26: AMARAJABAT | C26: 612.6 | D26: 615.13 | E26: 604.47 | F26: 596.33 | G26: 585.67 | H26: 623.27 | I26: 633.93 | J26: 642.07 | K26: 625.8 | L26: 607 | M26: 2.73656
A27: 18 | B27: AMBUJACEM | C27: 205 | D27: 205.08 | E27: 202.67 | F27: 200.33 | G27: 197.92 | H27: 207.42 | I27: 209.83 | J27: 212.17 | K27: 207.5 | L27: 202.75 | M27: 16.74581
A28: 19 | B28: APOLLOHOSP | C28: 1521.4 | D28: 1511.13 | E28: 1487.27 | F28: 1453.13 | G28: 1429.27 | H28: 1545.27 | I28: 1569.13 | J28: 1603.27 | K28: 1535 | L28: 1477 | M28: 14.29654
A29: 20 | B29: APOLLOTYRE | C29: 168.55 | D29: 169.50 | E29: 166.05 | F29: 163.55 | G29: 160.10 | H29: 172.00 | I29: 175.45 | J29: 177.95 | K29: 172.95 | L29: 167 | M29: 23.66161
A30: 21 | B30: ASHOKLEY | C30: 66.75 | D30: 66.65 | E30: 65.75 | F30: 64.75 | G30: 63.85 | H30: 67.65 | I30: 68.55 | J30: 69.55 | K30: 67.55 | L30: 65.65 | M30: 316.18285
A31: 22 | B31: ASIANPAINT | C31: 1603.15 | D31: 1600.17 | E31: 1593.58 | F31: 1584.02 | G31: 1577.43 | H31: 1609.73 | I31: 1616.32 | J31: 1625.88 | K31: 1606.75 | L31: 1590.6 | M31: 5.65676
A32: 23 | B32: AUROPHARMA | C32: 591.1 | D32: 592.85 | E32: 584.20 | F32: 577.30 | G32: 568.65 | H32: 599.75 | I32: 608.40 | J32: 615.30 | K32: 601.5 | L32: 585.95 | M32: 25.6103
A33: 24 | B33: DMART | C33: 1553.3 | D33: 1550.70 | E33: 1522.60 | F33: 1491.90 | G33: 1463.80 | H33: 1581.40 | I33: 1609.50 | J33: 1640.20 | K33: 1578.8 | L33: 1520 | M33: 5.81625
A34: 25 | B34: AXISBANK | C34: 678.2 | D34: 680.35 | E34: 671.35 | F34: 664.50 | G34: 655.50 | H34: 687.20 | I34: 696.20 | J34: 703.05 | K34: 689.35 | L34: 673.5 | M34: 56.77087
A35: 26 | B35: BAJAJ-AUTO | C35: 2766.75 | D35: 2777.08 | E35: 2740.22 | F35: 2713.68 | G35: 2676.82 | H35: 2803.62 | I35: 2840.48 | J35: 2867.02 | K35: 2813.95 | L35: 2750.55 | M35: 4.7996
A36: 27 | B36: BAJFINANCE | C36: 3326.35 | D36: 3328.58 | E36: 3294.52 | F36: 3262.68 | G36: 3228.62 | H36: 3360.42 | I36: 3394.48 | J36: 3426.32 | K36: 3362.65 | L36: 3296.75 | M36: 12.50915
A37: 28 | B37: BAJAJFINSV | C37: 7035.95 | D37: 7053.08 | E37: 6966.17 | F37: 6896.38 | G37: 6809.47 | H37: 7122.87 | I37: 7209.78 | J37: 7279.57 | K37: 7140 | L37: 6983.3 | M37: 3.92626
A38: 29 | B38: BAJAJHLDNG | C38: 3303.65 | D38: 3314.55 | E38: 3279.25 | F38: 3254.85 | G38: 3219.55 | H38: 3338.95 | I38: 3374.25 | J38: 3398.65 | K38: 3349.85 | L38: 3290.15 | M38: 0.05657
A39: 30 | B39: BALKRISIND | C39: 745 | D39: 747.67 | E39: 738.58 | F39: 732.17 | G39: 723.08 | H39: 754.08 | I39: 763.17 | J39: 769.58 | K39: 756.75 | L39: 741.25 | M39: 2.25237
A40: 31 | B40: BANDHANBNK | C40: 474.7 | D40: 474.13 | E40: 471.27 | F40: 467.83 | G40: 464.97 | H40: 477.57 | I40: 480.43 | J40: 483.87 | K40: 477 | L40: 470.7 | M40: 8.1071
A41: 32 | B41: BANKBARODA | C41: 94.5 | D41: 95.30 | E41: 92.95 | F41: 91.40 | G41: 89.05 | H41: 96.85 | I41: 99.20 | J41: 100.75 | K41: 97.65 | L41: 93.75 | M41: 249.472
A42: 33 | B42: BANKINDIA | C42: 67.7 | D42: 68.35 | E42: 66.05 | F42: 64.40 | G42: 62.10 | H42: 70.00 | I42: 72.30 | J42: 73.95 | K42: 70.65 | L42: 66.7 | M42: 78.98518
A43: 34 | B43: BATAINDIA | C43: 1507.7 | D43: 1510.30 | E43: 1498.90 | F43: 1490.10 | G43: 1478.70 | H43: 1519.10 | I43: 1530.50 | J43: 1539.30 | K43: 1521.7 | L43: 1501.5 | M43: 7.61192
A44: 35 | B44: BERGEPAINT | C44: 366.4 | D44: 365.80 | E44: 362.80 | F44: 359.20 | G44: 356.20 | H44: 369.40 | I44: 372.40 | J44: 376.00 | K44: 368.8 | L44: 362.2 | M44: 6.92299
A45: 36 | B45: BEL | C45: 103.7 | D45: 103.67 | E45: 102.78 | F45: 101.87 | G45: 100.98 | H45: 104.58 | I45: 105.47 | J45: 106.38 | K45: 104.55 | L45: 102.75 | M45: 86.88813
A46: 37 | B46: BHARATFORG | C46: 389.65 | D46: 392.72 | E46: 384.13 | F46: 378.62 | G46: 370.03 | H46: 398.23 | I46: 406.82 | J46: 412.33 | K46: 401.3 | L46: 387.2 | M46: 9.05159
A47: 38 | B47: BHEL | C47: 51.35 | D47: 51.78 | E47: 50.17 | F47: 48.98 | G47: 47.37 | H47: 52.97 | I47: 54.58 | J47: 55.77 | K47: 53.4 | L47: 50.6 | M47: 139.79685
A48: 39 | B48: BPCL | C48: 350.55 | D48: 346.85 | E48: 341.20 | F48: 331.85 | G48: 326.20 | H48: 356.20 | I48: 361.85 | J48: 371.20 | K48: 352.5 | L48: 337.5 | M48: 50.177
A49: 40 | B49: BHARTIARTL | C49: 345.8 | D49: 345.27 | E49: 341.03 | F49: 336.27 | G49: 332.03 | H49: 350.03 | I49: 354.27 | J49: 359.03 | K49: 349.5 | L49: 340.5 | M49: 55.24473
A50: 41 | B50: INFRATEL | C50: 248.8 | D50: 247.90 | E50: 245.30 | F50: 241.80 | G50: 239.20 | H50: 251.40 | I50: 254.00 | J50: 257.50 | K50: 250.5 | L50: 244.4 | M50: 10.90082
A51: 42 | B51: BIOCON | C51: 220.85 | D51: 222.77 | E51: 216.73 | F51: 212.62 | G51: 206.58 | H51: 226.88 | I51: 232.92 | J51: 237.03 | K51: 228.8 | L51: 218.65 | M51: 36.86564
A52: 43 | B52: BBTC | C52: 893.7 | D52: 906.90 | E52: 868.80 | F52: 843.90 | G52: 805.80 | H52: 931.80 | I52: 969.90 | J52: 994.80 | K52: 945 | L52: 882 | M52: 6.42883
A53: 44 | B53: BOSCHLTD | C53: 14198.45 | D53: 14245.40 | E53: 13939.75 | F53: 13681.05 | G53: 13375.40 | H53: 14504.10 | I53: 14809.75 | J53: 15068.45 | K53: 14551.05 | L53: 13986.7 | M53: 0.10376
A54: 45 | B54: BRITANNIA | C54: 2703.1 | D54: 2706.13 | E54: 2669.02 | F54: 2634.93 | G54: 2597.82 | H54: 2740.22 | I54: 2777.33 | J54: 2811.42 | K54: 2743.25 | L54: 2672.05 | M54: 11.49926
A55: 46 | B55: CADILAHC | C55: 223.25 | D55: 221.50 | E55: 218.30 | F55: 213.35 | G55: 210.15 | H55: 226.45 | I55: 229.65 | J55: 234.60 | K55: 224.7 | L55: 216.55 | M55: 25.7682
A56: 47 | B56: CANBK | C56: 226.9 | D56: 227.92 | E56: 224.18 | F56: 221.47 | G56: 217.73 | H56: 230.63 | I56: 234.37 | J56: 237.08 | K56: 231.65 | L56: 225.2 | M56: 47.72624
A57: 48 | B57: CASTROLIND | C57: 123.8 | D57: 124.62 | E57: 121.33 | F57: 118.87 | G57: 115.58 | H57: 127.08 | I57: 130.37 | J57: 132.83 | K57: 127.9 | L57: 122.15 | M57: 10.53407
A58: 49 | B58: CHOLAFIN | C58: 266.45 | D58: 268.37 | E58: 262.13 | F58: 257.82 | G58: 251.58 | H58: 272.68 | I58: 278.92 | J58: 283.23 | K58: 274.6 | L58: 264.05 | M58: 11.35961
A59: 50 | B59: CIPLA | C59: 464.25 | D59: 466.87 | E59: 457.53 | F59: 450.82 | G59: 441.48 | H59: 473.58 | I59: 482.92 | J59: 489.63 | K59: 476.2 | L59: 460.15 | M59: 21.93022
A60: 51 | B60: COALINDIA | C60: 185.05 | D60: 187.28 | E60: 181.97 | F60: 178.88 | G60: 173.57 | H60: 190.37 | I60: 195.68 | J60: 198.77 | K60: 192.6 | L60: 184.2 | M60: 107.9113
A61: 52 | B61: COLPAL | C61: 1213.05 | D61: 1209.73 | E61: 1201.47 | F61: 1189.88 | G61: 1181.62 | H61: 1221.32 | I61: 1229.58 | J61: 1241.17 | K61: 1218 | L61: 1198.15 | M61: 2.83377
A62: 53 | B62: CONCOR | C62: 485.2 | D62: 488.88 | E62: 478.37 | F62: 471.53 | G62: 461.02 | H62: 495.72 | I62: 506.23 | J62: 513.07 | K62: 499.4 | L62: 482.05 | M62: 6.87754
A63: 54 | B63: COROMANDEL | C63: 386.6 | D63: 384.40 | E63: 378.80 | F63: 371.00 | G63: 365.40 | H63: 392.20 | I63: 397.80 | J63: 405.60 | K63: 390 | L63: 376.6 | M63: 1.44995
A64: 55 | B64: CROMPTON | C64: 226.35 | D64: 226.52 | E64: 224.93 | F64: 223.52 | G64: 221.93 | H64: 227.93 | I64: 229.52 | J64: 230.93 | K64: 228.1 | L64: 225.1 | M64: 2.54283
A65: 56 | B65: CUMMINSIND | C65: 569.6 | D65: 567.98 | E65: 557.62 | F65: 545.63 | G65: 535.27 | H65: 579.97 | I65: 590.33 | J65: 602.32 | K65: 578.35 | L65: 556 | M65: 9.15923
A66: 57 | B66: DLF | C66: 164.2 | D66: 162.88 | E66: 159.97 | F66: 155.73 | G66: 152.82 | H66: 167.12 | I66: 170.03 | J66: 174.27 | K66: 165.8 | L66: 158.65 | M66: 161.14232
A67: 58 | B67: DABUR | C67: 434.8 | D67: 436.70 | E67: 431.25 | F67: 427.70 | G67: 422.25 | H67: 440.25 | I67: 445.70 | J67: 449.25 | K67: 442.15 | L67: 433.15 | M67: 15.83233
A68: 59 | B68: DHFL | C68: 48.4 | D68: 47.87 | E68: 46.53 | F68: 44.67 | G68: 43.33 | H68: 49.73 | I68: 51.07 | J68: 52.93 | K68: 49.2 | L68: 46 | M68: 169.35967
A69: 60 | B69: DBL | C69: 376.35 | D69: 378.78 | E69: 369.57 | F69: 362.78 | G69: 353.57 | H69: 385.57 | I69: 394.78 | J69: 401.57 | K69: 388 | L69: 372 | M69: 3.09684
A70: 61 | B70: DISHTV | C70: 23 | D70: 23.50 | E70: 22.20 | F70: 21.40 | G70: 20.10 | H70: 24.30 | I70: 25.60 | J70: 26.40 | K70: 24.8 | L70: 22.7 | M70: 225.37161
A71: 62 | B71: DIVISLAB | C71: 1576.65 | D71: 1587.55 | E71: 1559.10 | F71: 1541.55 | G71: 1513.10 | H71: 1605.10 | I71: 1633.55 | J71: 1651.10 | K71: 1616 | L71: 1570 | M71: 4.19022
A72: 63 | B72: DRREDDY | C72: 2512.1 | D72: 2528.18 | E72: 2487.37 | F72: 2462.63 | G72: 2421.82 | H72: 2552.92 | I72: 2593.73 | J72: 2618.47 | K72: 2569 | L72: 2503.45 | M72: 4.23228
A73: 64 | B73: EDELWEISS | C73: 118.7 | D73: 119.07 | E73: 113.63 | F73: 108.57 | G73: 103.13 | H73: 124.13 | I73: 129.57 | J73: 134.63 | K73: 124.5 | L73: 114 | M73: 44.78092
A74: 65 | B74: EICHERMOT | C74: 16297.45 | D74: 16155.02 | E74: 15967.68 | F74: 15637.92 | G74: 15450.58 | H74: 16484.78 | I74: 16672.12 | J74: 17001.88 | K74: 16342.35 | L74: 15825.25 | M74: 1.93318
A75: 66 | B75: ENDURANCE | C75: 892.4 | D75: 893.85 | E75: 871.20 | F75: 850.00 | G75: 827.35 | H75: 915.05 | I75: 937.70 | J75: 958.90 | K75: 916.5 | L75: 872.65 | M75: 0.26298
A76: 67 | B76: ENGINERSIN | C76: 104.1 | D76: 105.12 | E76: 102.48 | F76: 100.87 | G76: 98.23 | H76: 106.73 | I76: 109.37 | J76: 110.98 | K76: 107.75 | L76: 103.5 | M76: 29.87918
A77: 68 | B77: ESCORTS | C77: 492.75 | D77: 493.25 | E77: 486.10 | F77: 479.45 | G77: 472.30 | H77: 499.90 | I77: 507.05 | J77: 513.70 | K77: 500.4 | L77: 486.6 | M77: 24.723
A78: 69 | B78: EXIDEIND | C78: 178.4 | D78: 179.88 | E78: 176.47 | F78: 174.53 | G78: 171.12 | H78: 181.82 | I78: 185.23 | J78: 187.17 | K78: 183.3 | L78: 177.95 | M78: 7.88967
A79: 70 | B79: FEDERALBNK | C79: 81.85 | D79: 82.87 | E79: 80.48 | F79: 79.12 | G79: 76.73 | H79: 84.23 | I79: 86.62 | J79: 87.98 | K79: 85.25 | L79: 81.5 | M79: 124.16532
A80: 71 | B80: FCONSUMER | C80: 28.85 | D80: 28.85 | E80: 28.20 | F80: 27.55 | G80: 26.90 | H80: 29.50 | I80: 30.15 | J80: 30.80 | K80: 29.5 | L80: 28.2 | M80: 8.74156
A81: 72 | B81: FRETAIL | C81: 391 | D81: 394.75 | E81: 385.55 | F81: 380.10 | G81: 370.90 | H81: 400.20 | I81: 409.40 | J81: 414.85 | K81: 403.95 | L81: 389.3 | M81: 6.06326
A82: 73 | B82: GAIL | C82: 128.05 | D82: 129.72 | E82: 125.83 | F82: 123.62 | G82: 119.73 | H82: 131.93 | I82: 135.82 | J82: 138.03 | K82: 133.6 | L82: 127.5 | M82: 113.70702
A83: 74 | B83: GMRINFRA | C83: 15.25 | D83: 15.33 | E83: 15.07 | F83: 14.88 | G83: 14.62 | H83: 15.52 | I83: 15.78 | J83: 15.97 | K83: 15.6 | L83: 15.15 | M83: 64.63307
A84: 75 | B84: GICRE | C84: 171.5 | D84: 173.77 | E84: 167.78 | F84: 164.07 | G84: 158.08 | H84: 177.48 | I84: 183.47 | J84: 187.18 | K84: 179.75 | L84: 170.05 | M84: 0.49563
A85: 76 | B85: GSKCONS | C85: 7918.2 | D85: 7951.25 | E85: 7822.50 | F85: 7726.80 | G85: 7598.05 | H85: 8046.95 | I85: 8175.70 | J85: 8271.40 | K85: 8080 | L85: 7855.55 | M85: 0.09969
A86: 77 | B86: GLENMARK | C86: 378.4 | D86: 377.38 | E86: 372.82 | F86: 367.23 | G86: 362.67 | H86: 382.97 | I86: 387.53 | J86: 393.12 | K86: 381.95 | L86: 371.8 | M86: 7.69987
A87: 78 | B87: GODREJAGRO | C87: 456.5 | D87: 458.17 | E87: 451.33 | F87: 446.17 | G87: 439.33 | H87: 463.33 | I87: 470.17 | J87: 475.33 | K87: 465 | L87: 453 | M87: 0.18709
A88: 79 | B88: GODREJCP | C88: 600.2 | D88: 597.53 | E88: 590.07 | F88: 579.93 | G88: 572.47 | H88: 607.67 | I88: 615.13 | J88: 625.27 | K88: 605 | L88: 587.4 | M88: 11.08391
A89: 80 | B89: GODREJIND | C89: 426.5 | D89: 431.22 | E89: 419.43 | F89: 412.37 | G89: 400.58 | H89: 438.28 | I89: 450.07 | J89: 457.13 | K89: 443 | L89: 424.15 | M89: 0.89544
A90: 81 | B90: GRAPHITE | C90: 281.2 | D90: 284.93 | E90: 276.27 | F90: 271.33 | G90: 262.67 | H90: 289.87 | I90: 298.53 | J90: 303.47 | K90: 293.6 | L90: 280 | M90: 5.13189
A91: 82 | B91: GRASIM | C91: 713.5 | D91: 718.10 | E91: 703.50 | F91: 693.50 | G91: 678.90 | H91: 728.10 | I91: 742.70 | J91: 752.70 | K91: 732.7 | L91: 708.1 | M91: 13.94469
A92: 83 | B92: GRUH | C92: 253.55 | D92: 253.12 | E92: 249.83 | F92: 246.12 | G92: 242.83 | H92: 256.83 | I92: 260.12 | J92: 263.83 | K92: 256.4 | L92: 249.4 | M92: 3.58091
A93: 84 | B93: GSPL | C93: 218.9 | D93: 217.10 | E93: 214.20 | F93: 209.50 | G93: 206.60 | H93: 221.80 | I93: 224.70 | J93: 229.40 | K93: 220 | L93: 212.4 | M93: 22.37039
A94: 85 | B94: HEG | C94: 934.3 | D94: 944.28 | E94: 921.02 | F94: 907.73 | G94: 884.47 | H94: 957.57 | I94: 980.83 | J94: 994.12 | K94: 967.55 | L94: 931 | M94: 1.63008
A95: 86 | B95: HCLTECH | C95: 1123.95 | D95: 1115.42 | E95: 1100.83 | F95: 1077.72 | G95: 1063.13 | H95: 1138.53 | I95: 1153.12 | J95: 1176.23 | K95: 1130 | L95: 1092.3 | M95: 34.92642
A96: 87 | B96: HDFCAMC | C96: 2400.15 | D96: 2414.32 | E96: 2349.83 | F96: 2299.52 | G96: 2235.03 | H96: 2464.63 | I96: 2529.12 | J96: 2579.43 | K96: 2478.8 | L96: 2364 | M96: 8.40356
A97: 88 | B97: HDFCBANK | C97: 2247.5 | D97: 2243.73 | E97: 2230.12 | F97: 2212.73 | G97: 2199.12 | H97: 2261.12 | I97: 2274.73 | J97: 2292.12 | K97: 2257.35 | L97: 2226.35 | M97: 34.15647
A98: 89 | B98: HDFCLIFE | C98: 547.7 | D98: 547.73 | E98: 538.07 | F98: 528.43 | G98: 518.77 | H98: 557.37 | I98: 567.03 | J98: 576.67 | K98: 557.4 | L98: 538.1 | M98: 75.23593
A99: 90 | B99: HAVELLS | C99: 666.2 | D99: 666.02 | E99: 660.18 | F99: 654.17 | G99: 648.33 | H99: 672.03 | I99: 677.87 | J99: 683.88 | K99: 671.85 | L99: 660 | M99: 9.99474
A100: 91 | B100: HEROMOTOCO | C100: 2568.5 | D100: 2583.17 | E100: 2540.33 | F100: 2512.17 | G100: 2469.33 | H100: 2611.33 | I100: 2654.17 | J100: 2682.33 | K100: 2626 | L100: 2555 | M100: 6.3176
A101: 92 | B101: HEXAWARE | C101: 386.65 | D101: 389.73 | E101: 382.22 | F101: 377.78 | G101: 370.27 | H101: 394.17 | I101: 401.68 | J101: 406.12 | K101: 397.25 | L101: 385.3 | M101: 6.32373
A102: 93 | B102: HINDALCO | C102: 178.4 | D102: 178.97 | E102: 175.93 | F102: 173.47 | G102: 170.43 | H102: 181.43 | I102: 184.47 | J102: 186.93 | K102: 182 | L102: 176.5 | M102: 58.51491
A103: 94 | B103: HINDPETRO | C103: 265.05 | D103: 262.97 | E103: 257.33 | F103: 249.62 | G103: 243.98 | H103: 270.68 | I103: 276.32 | J103: 284.03 | K103: 268.6 | L103: 255.25 | M103: 49.26503
A104: 95 | B104: HINDUNILVR | C104: 1828.1 | D104: 1829.67 | E104: 1810.93 | F104: 1793.77 | G104: 1775.03 | H104: 1846.83 | I104: 1865.57 | J104: 1882.73 | K104: 1848.4 | L104: 1812.5 | M104: 25.19453
A105: 96 | B105: HINDZINC | C105: 210.85 | D105: 211.65 | E105: 207.90 | F105: 204.95 | G105: 201.20 | H105: 214.60 | I105: 218.35 | J105: 221.30 | K105: 215.4 | L105: 208.7 | M105: 9.23453
A106: 97 | B106: HUDCO | C106: 36.95 | D106: 37.40 | E106: 35.80 | F106: 34.65 | G106: 33.05 | H106: 38.55 | I106: 40.15 | J106: 41.30 | K106: 39 | L106: 36.25 | M106: 41.93458
A107: 98 | B107: HDFC | C107: 2187.15 | D107: 2178.83 | E107: 2164.07 | F107: 2140.98 | G107: 2126.22 | H107: 2201.92 | I107: 2216.68 | J107: 2239.77 | K107: 2193.6 | L107: 2155.75 | M107: 32.91574
A108: 99 | B108: ICICIBANK | C108: 412.95 | D108: 413.63 | E108: 409.02 | F108: 405.08 | G108: 400.47 | H108: 417.57 | I108: 422.18 | J108: 426.12 | K108: 418.25 | L108: 409.7 | M108: 121.54347
A109: 100 | B109: ICICIGI | C109: 1249.85 | D109: 1239.95 | E109: 1224.90 | F109: 1199.95 | G109: 1184.90 | H109: 1264.90 | I109: 1279.95 | J109: 1304.90 | K109: 1255 | L109: 1215 | M109: 6.64325
A110: 101 | B110: ICICIPRULI | C110: 416.95 | D110: 411.68 | E110: 403.37 | F110: 389.78 | G110: 381.47 | H110: 425.27 | I110: 433.58 | J110: 447.17 | K110: 420 | L110: 398.1 | M110: 52.22971
A111: 102 | B111: IDBI | C111: 26.75 | D111: 27.15 | E111: 25.60 | F111: 24.45 | G111: 22.90 | H111: 28.30 | I111: 29.85 | J111: 31.00 | K111: 28.7 | L111: 26 | M111: 194.04546
A112: 103 | B112: IDFCFIRSTB | C112: 42.15 | D112: 42.52 | E112: 41.48 | F112: 40.82 | G112: 39.78 | H112: 43.18 | I112: 44.22 | J112: 44.88 | K112: 43.55 | L112: 41.85 | M112: 209.33529
A113: 104 | B113: ITC | C113: 245.95 | D113: 245.57 | E113: 243.48 | F113: 241.02 | G113: 238.93 | H113: 248.03 | I113: 250.12 | J113: 252.58 | K113: 247.65 | L113: 243.1 | M113: 88.94489
A114: 105 | B114: IBULHSGFIN | C114: 457.25 | D114: 459.37 | E114: 445.38 | F114: 433.52 | G114: 419.53 | H114: 471.23 | I114: 485.22 | J114: 497.08 | K114: 473.35 | L114: 447.5 | M114: 195.88825
A115: 106 | B115: IBVENTURES | C115: 182.5 | D115: 183.65 | E115: 177.90 | F115: 173.30 | G115: 167.55 | H115: 188.25 | I115: 194.00 | J115: 198.60 | K115: 189.4 | L115: 179.05 | M115: 10.30634
A116: 107 | B116: INDIANB | C116: 196.3 | D116: 194.30 | E116: 188.60 | F116: 180.90 | G116: 175.20 | H116: 202.00 | I116: 207.70 | J116: 215.40 | K116: 200 | L116: 186.6 | M116: 9.55008
A117: 108 | B117: INDHOTEL | C117: 138.55 | D117: 138.12 | E117: 136.43 | F117: 134.32 | G117: 132.63 | H117: 140.23 | I117: 141.92 | J117: 144.03 | K117: 139.8 | L117: 136 | M117: 5.87027
A118: 109 | B118: IOC | C118: 122.9 | D118: 123.83 | E118: 120.77 | F118: 118.63 | G118: 115.57 | H118: 125.97 | I118: 129.03 | J118: 131.17 | K118: 126.9 | L118: 121.7 | M118: 124.05115
A119: 110 | B119: IGL | C119: 333.05 | D119: 334.92 | E119: 329.23 | F119: 325.42 | G119: 319.73 | H119: 338.73 | I119: 344.42 | J119: 348.23 | K119: 340.6 | L119: 331.1 | M119: 28.97764
A120: 111 | B120: INDUSINDBK | C120: 1365.85 | D120: 1375.35 | E120: 1344.20 | F120: 1322.55 | G120: 1291.40 | H120: 1397.00 | I120: 1428.15 | J120: 1449.80 | K120: 1406.5 | L120: 1353.7 | M120: 80.31108
A121: 112 | B121: NAUKRI | C121: 2004.35 | D121: 2007.57 | E121: 1967.13 | F121: 1929.92 | G121: 1889.48 | H121: 2044.78 | I121: 2085.22 | J121: 2122.43 | K121: 2048 | L121: 1970.35 | M121: 1.55244
A122: 113 | B122: INFY | C122: 802.5 | D122: 797.93 | E122: 790.87 | F122: 779.23 | G122: 772.17 | H122: 809.57 | I122: 816.63 | J122: 828.27 | K122: 805 | L122: 786.3 | M122: 58.81134
A123: 114 | B123: INDIGO | C123: 1659.25 | D123: 1652.22 | E123: 1639.43 | F123: 1619.62 | G123: 1606.83 | H123: 1672.03 | I123: 1684.82 | J123: 1704.63 | K123: 1665 | L123: 1632.4 | M123: 12.4851
A124: 115 | B124: JSWENERGY | C124: 67.1 | D124: 67.53 | E124: 66.07 | F124: 65.03 | G124: 63.57 | H124: 68.57 | I124: 70.03 | J124: 71.07 | K124: 69 | L124: 66.5 | M124: 3.87351
A125: 116 | B125: JSWSTEEL | C125: 205.75 | D125: 207.60 | E125: 200.95 | F125: 196.15 | G125: 189.50 | H125: 212.40 | I125: 219.05 | J125: 223.85 | K125: 214.25 | L125: 202.8 | M125: 90.56214
A126: 117 | B126: JINDALSTEL | C126: 95.8 | D126: 98.20 | E126: 92.45 | F126: 89.10 | G126: 83.35 | H126: 101.55 | I126: 107.30 | J126: 110.65 | K126: 103.95 | L126: 94.85 | M126: 211.28544
A127: 118 | B127: JUBLFOOD | C127: 1185.25 | D127: 1195.37 | E127: 1167.33 | F127: 1149.42 | G127: 1121.38 | H127: 1213.28 | I127: 1241.32 | J127: 1259.23 | K127: 1223.4 | L127: 1177.45 | M127: 13.33102
A128: 119 | B128: JUBILANT | C128: 415.8 | D128: 410.42 | E128: 401.38 | F128: 386.97 | G128: 377.93 | H128: 424.83 | I128: 433.87 | J128: 448.28 | K128: 419.45 | L128: 396 | M128: 9.42982
A129: 120 | B129: KOTAKBANK | C129: 1483.65 | D129: 1486.00 | E129: 1471.00 | F129: 1458.35 | G129: 1443.35 | H129: 1498.65 | I129: 1513.65 | J129: 1526.30 | K129: 1501 | L129: 1473.35 | M129: 22.91006
A130: 121 | B130: L&TFH | C130: 94.5 | D130: 95.45 | E130: 91.90 | F130: 89.30 | G130: 85.75 | H130: 98.05 | I130: 101.60 | J130: 104.20 | K130: 99 | L130: 92.85 | M130: 120.67798
A131: 122 | B131: LTTS | C131: 1591.25 | D131: 1607.93 | E131: 1561.87 | F131: 1532.48 | G131: 1486.42 | H131: 1637.32 | I131: 1683.38 | J131: 1712.77 | K131: 1654 | L131: 1578.55 | M131: 0.84216
A132: 123 | B132: LICHSGFIN | C132: 417.8 | D132: 418.80 | E132: 409.30 | F132: 400.80 | G132: 391.30 | H132: 427.30 | I132: 436.80 | J132: 445.30 | K132: 428.3 | L132: 410.3 | M132: 27.28994
A133: 124 | B133: LTI | C133: 1639.85 | D133: 1642.62 | E133: 1628.23 | F133: 1616.62 | G133: 1602.23 | H133: 1654.23 | I133: 1668.62 | J133: 1680.23 | K133: 1657 | L133: 1631 | M133: 0.36775
A134: 125 | B134: LT | C134: 1344.65 | D134: 1350.25 | E134: 1330.50 | F134: 1316.35 | G134: 1296.60 | H134: 1364.40 | I134: 1384.15 | J134: 1398.30 | K134: 1370 | L134: 1336.1 | M134: 22.72465
A135: 126 | B135: LUPIN | C135: 732.1 | D135: 736.22 | E135: 721.13 | F135: 710.17 | G135: 695.08 | H135: 747.18 | I135: 762.27 | J135: 773.23 | K135: 751.3 | L135: 725.25 | M135: 8.23769
A136: 127 | B136: MRF | C136: 57924.5 | D136: 58235.03 | E136: 57270.07 | F136: 56615.63 | G136: 55650.67 | H136: 58889.47 | I136: 59854.43 | J136: 60508.87 | K136: 59200 | L136: 57580.6 | M136: 0.03434
A137: 128 | B137: MGL | C137: 855.35 | D137: 859.47 | E137: 846.93 | F137: 838.52 | G137: 825.98 | H137: 867.88 | I137: 880.42 | J137: 888.83 | K137: 872 | L137: 851.05 | M137: 5.94636
A138: 129 | B138: M&MFIN | C138: 319.75 | D138: 324.60 | E138: 310.45 | F138: 301.15 | G138: 287.00 | H138: 333.90 | I138: 348.05 | J138: 357.35 | K138: 338.75 | L138: 315.3 | M138: 17.43982
A139: 130 | B139: M&M | C139: 539.7 | D139: 544.78 | E139: 529.67 | F139: 519.63 | G139: 504.52 | H139: 554.82 | I139: 569.93 | J139: 579.97 | K139: 559.9 | L139: 534.75 | M139: 33.22911
A140: 131 | B140: MANAPPURAM | C140: 121.5 | D140: 121.88 | E140: 120.27 | F140: 119.03 | G140: 117.42 | H140: 123.12 | I140: 124.73 | J140: 125.97 | K140: 123.5 | L140: 120.65 | M140: 26.0717
A141: 132 | B141: MRPL | C141: 47.2 | D141: 47.05 | E141: 46.65 | F141: 46.10 | G141: 45.70 | H141: 47.60 | I141: 48.00 | J141: 48.55 | K141: 47.45 | L141: 46.5 | M141: 1.76575
A142: 133 | B142: MARICO | C142: 390.95 | D142: 388.87 | E142: 384.78 | F142: 378.62 | G142: 374.53 | H142: 395.03 | I142: 399.12 | J142: 405.28 | K142: 392.95 | L142: 382.7 | M142: 14.11348
A143: 134 | B143: MARUTI | C143: 6103.4 | D143: 6140.47 | E143: 6032.93 | F143: 5962.47 | G143: 5854.93 | H143: 6210.93 | I143: 6318.47 | J143: 6388.93 | K143: 6248 | L143: 6070 | M143: 12.42304
A144: 135 | B144: MFSL | C144: 430.25 | D144: 434.10 | E144: 423.95 | F144: 417.65 | G144: 407.50 | H144: 440.40 | I144: 450.55 | J144: 456.85 | K144: 444.25 | L144: 427.8 | M144: 9.96349
A145: 136 | B145: MINDTREE | C145: 677.1 | D145: 678.77 | E145: 668.58 | F145: 660.07 | G145: 649.88 | H145: 687.28 | I145: 697.47 | J145: 705.98 | K145: 688.95 | L145: 670.25 | M145: 12.76385
A146: 137 | B146: MOTHERSUMI | C146: 97.6 | D146: 99.53 | E146: 94.82 | F146: 92.03 | G146: 87.32 | H146: 102.32 | I146: 107.03 | J146: 109.82 | K146: 104.25 | L146: 96.75 | M146: 101.72681
A147: 138 | B147: MPHASIS | C147: 977.75 | D147: 974.47 | E147: 965.33 | F147: 952.92 | G147: 943.78 | H147: 986.88 | I147: 996.02 | J147: 1008.43 | K147: 983.6 | L147: 962.05 | M147: 1.17632
A148: 139 | B148: MUTHOOTFIN | C148: 622.95 | D148: 626.37 | E148: 614.88 | F148: 606.82 | G148: 595.33 | H148: 634.43 | I148: 645.92 | J148: 653.98 | K148: 637.85 | L148: 618.3 | M148: 6.43394
A149: 140 | B149: NATCOPHARM | C149: 538.2 | D149: 538.17 | E149: 531.63 | F149: 525.07 | G149: 518.53 | H149: 544.73 | I149: 551.27 | J149: 557.83 | K149: 544.7 | L149: 531.6 | M149: 0.75731
A150: 141 | B150: NBCC | C150: 35.95 | D150: 36.13 | E150: 35.32 | F150: 34.68 | G150: 33.87 | H150: 36.77 | I150: 37.58 | J150: 38.22 | K150: 36.95 | L150: 35.5 | M150: 202.91829
A151: 142 | B151: NHPC | C151: 23.05 | D151: 23.08 | E151: 22.92 | F151: 22.78 | G151: 22.62 | H151: 23.22 | I151: 23.38 | J151: 23.52 | K151: 23.25 | L151: 22.95 | M151: 125.06183
A152: 143 | B152: NMDC | C152: 81 | D152: 81.73 | E152: 79.67 | F152: 78.33 | G152: 76.27 | H152: 83.07 | I152: 85.13 | J152: 86.47 | K152: 83.8 | L152: 80.4 | M152: 46.11787
A153: 144 | B153: NTPC | C153: 119.9 | D153: 121.35 | E153: 118.00 | F153: 116.10 | G153: 112.75 | H153: 123.25 | I153: 126.60 | J153: 128.50 | K153: 124.7 | L153: 119.45 | M153: 119.05383
A154: 145 | B154: NATIONALUM | C154: 39.85 | D154: 40.08 | E154: 39.17 | F154: 38.48 | G154: 37.57 | H154: 40.77 | I154: 41.68 | J154: 42.37 | K154: 41 | L154: 39.4 | M154: 40.29756
A155: 146 | B155: OBEROIRLTY | C155: 538.35 | D155: 525.35 | E155: 508.10 | F155: 477.85 | G155: 460.60 | H155: 555.60 | I155: 572.85 | J155: 603.10 | K155: 542.6 | L155: 495.1 | M155: 13.56338
A156: 147 | B156: ONGC | C156: 121.2 | D156: 122.52 | E156: 119.08 | F156: 116.97 | G156: 113.53 | H156: 124.63 | I156: 128.07 | J156: 130.18 | K156: 125.95 | L156: 120.4 | M156: 117.63326
A157: 148 | B157: OIL | C157: 144 | D157: 145.62 | E157: 141.63 | F157: 139.27 | G157: 135.28 | H157: 147.98 | I157: 151.97 | J157: 154.33 | K157: 149.6 | L157: 143.25 | M157: 14.79674
A158: 149 | B158: OFSS | C158: 3006.45 | D158: 3014.82 | E158: 2989.68 | F158: 2972.92 | G158: 2947.78 | H158: 3031.58 | I158: 3056.72 | J158: 3073.48 | K158: 3039.95 | L158: 2998.05 | M158: 0.14112
A159: 150 | B159: PIIND | C159: 1113.8 | D159: 1120.90 | E159: 1101.90 | F159: 1090.00 | G159: 1071.00 | H159: 1132.80 | I159: 1151.80 | J159: 1163.70 | K159: 1139.9 | L159: 1109 | M159: 0.87242
A160: 151 | B160: PNBHOUSING | C160: 646.05 | D160: 651.32 | E160: 637.18 | F160: 628.32 | G160: 614.18 | H160: 660.18 | I160: 674.32 | J160: 683.18 | K160: 665.45 | L160: 642.45 | M160: 0.57752
A161: 152 | B161: PAGEIND | C161: 18061.55 | D161: 18088.47 | E161: 17893.08 | F161: 17724.62 | G161: 17529.23 | H161: 18256.93 | I161: 18452.32 | J161: 18620.78 | K161: 18283.85 | L161: 17920 | M161: 0.20933
A162: 153 | B162: PETRONET | C162: 260.05 | D162: 259.08 | E162: 257.17 | F162: 254.28 | G162: 252.37 | H162: 261.97 | I162: 263.88 | J162: 266.77 | K162: 261 | L162: 256.2 | M162: 45.36646
A163: 154 | B163: PFIZER | C163: 2900.1 | D163: 2910.32 | E163: 2880.83 | F163: 2861.57 | G163: 2832.08 | H163: 2929.58 | I163: 2959.07 | J163: 2978.33 | K163: 2939.8 | L163: 2891.05 | M163: 0.10825
A164: 155 | B164: PIDILITIND | C164: 1378.35 | D164: 1376.50 | E164: 1365.00 | F164: 1351.65 | G164: 1340.15 | H164: 1389.85 | I164: 1401.35 | J164: 1414.70 | K164: 1388 | L164: 1363.15 | M164: 4.23936
A165: 156 | B165: PEL | C165: 1895.6 | D165: 1905.20 | E165: 1858.95 | F165: 1822.30 | G165: 1776.05 | H165: 1941.85 | I165: 1988.10 | J165: 2024.75 | K165: 1951.45 | L165: 1868.55 | M165: 8.4573
A166: 157 | B166: PFC | C166: 103.3 | D166: 103.92 | E166: 101.78 | F166: 100.27 | G166: 98.13 | H166: 105.43 | I166: 107.57 | J166: 109.08 | K166: 106.05 | L166: 102.4 | M166: 62.7923
A167: 158 | B167: POWERGRID | C167: 205.75 | D167: 207.12 | E167: 202.98 | F167: 200.22 | G167: 196.08 | H167: 209.88 | I167: 214.02 | J167: 216.78 | K167: 211.25 | L167: 204.35 | M167: 88.63308
A168: 159 | B168: PRESTIGE | C168: 295.8 | D168: 294.63 | E168: 291.42 | F168: 287.03 | G168: 283.82 | H168: 299.02 | I168: 302.23 | J168: 306.62 | K168: 297.85 | L168: 290.25 | M168: 3.48236
A169: 160 | B169: PGHH | C169: 10054.9 | D169: 10063.95 | E169: 9927.90 | F169: 9800.90 | G169: 9664.85 | H169: 10190.95 | I169: 10327.00 | J169: 10454.00 | K169: 10200 | L169: 9936.95 | M169: 0.02191
A170: 161 | B170: PNB | C170: 65.65 | D170: 66.17 | E170: 64.38 | F170: 63.12 | G170: 61.33 | H170: 67.43 | I170: 69.22 | J170: 70.48 | K170: 67.95 | L170: 64.9 | M170: 171.66214
A171: 162 | B171: QUESS | C171: 464 | D171: 466.00 | E171: 458.00 | F171: 452.00 | G171: 444.00 | H171: 472.00 | I171: 480.00 | J171: 486.00 | K171: 474 | L171: 460 | M171: 0.69947
A172: 163 | B172: RBLBANK | C172: 313.85 | D172: 319.63 | E172: 280.32 | F172: 246.78 | G172: 207.47 | H172: 353.17 | I172: 392.48 | J172: 426.02 | K172: 358.95 | L172: 286.1 | M172: 349.31359
A173: 164 | B173: RECLTD | C173: 140.9 | D173: 142.28 | E173: 138.77 | F173: 136.63 | G173: 133.12 | H173: 144.42 | I173: 147.93 | J173: 150.07 | K173: 145.8 | L173: 140.15 | M173: 32.85159
A174: 165 | B174: RAJESHEXPO | C174: 695 | D174: 694.20 | E174: 684.30 | F174: 673.60 | G174: 663.70 | H174: 704.90 | I174: 714.80 | J174: 725.50 | K174: 704.1 | L174: 683.5 | M174: 1.38338
A175: 166 | B175: RELCAPITAL | C175: 34.65 | D175: 35.05 | E175: 33.40 | F175: 32.15 | G175: 30.50 | H175: 36.30 | I175: 37.95 | J175: 39.20 | K175: 36.7 | L175: 33.8 | M175: 175.9204
A176: 167 | B176: RELIANCE | C176: 1263.3 | D176: 1266.78 | E176: 1252.57 | F176: 1241.83 | G176: 1227.62 | H176: 1277.52 | I176: 1291.73 | J176: 1302.47 | K176: 1281 | L176: 1256.05 | M176: 53.05639
A177: 168 | B177: RELINFRA | C177: 38.3 | D177: 38.95 | E177: 36.70 | F177: 35.10 | G177: 32.85 | H177: 40.55 | I177: 42.80 | J177: 44.40 | K177: 41.2 | L177: 37.35 | M177: 187.97832
A178: 169 | B178: RPOWER | C178: 3.05 | D178: 3.10 | E178: 2.95 | F178: 2.85 | G178: 2.70 | H178: 3.20 | I178: 3.35 | J178: 3.45 | K178: 3.25 | L178: 3 | M178: 76.3135
A179: 170 | B179: SBILIFE | C179: 828.45 | D179: 830.60 | E179: 819.40 | F179: 810.35 | G179: 799.15 | H179: 839.65 | I179: 850.85 | J179: 859.90 | K179: 841.8 | L179: 821.55 | M179: 5.38964
A180: 171 | B180: SRF | C180: 2775.75 | D180: 2789.52 | E180: 2748.13 | F180: 2720.52 | G180: 2679.13 | H180: 2817.13 | I180: 2858.52 | J180: 2886.13 | K180: 2830.9 | L180: 2761.9 | M180: 2.22609
A181: 172 | B181: SHREECEM | C181: 19110.2 | D181: 19189.50 | E181: 18879.75 | F181: 18649.30 | G181: 18339.55 | H181: 19419.95 | I181: 19729.70 | J181: 19960.15 | K181: 19499.25 | L181: 18959.05 | M181: 0.07427
A182: 173 | B182: SRTRANSFIN | C182: 991.65 | D182: 1001.42 | E182: 970.33 | F182: 949.02 | G182: 917.93 | H182: 1022.73 | I182: 1053.82 | J182: 1075.13 | K182: 1032.5 | L182: 980.1 | M182: 10.93311
A183: 174 | B183: SIEMENS | C183: 1177.95 | D183: 1184.37 | E183: 1165.83 | F183: 1153.72 | G183: 1135.18 | H183: 1196.48 | I183: 1215.02 | J183: 1227.13 | K183: 1202.9 | L183: 1172.25 | M183: 1.40431
A184: 175 | B184: SBIN | C184: 284.9 | D184: 284.58 | E184: 282.52 | F184: 280.13 | G184: 278.07 | H184: 286.97 | I184: 289.03 | J184: 291.42 | K184: 286.65 | L184: 282.2 | M184: 189.79998
A185: 176 | B185: SAIL | C185: 31.1 | D185: 31.57 | E185: 30.38 | F185: 29.67 | G185: 28.48 | H185: 32.28 | I185: 33.47 | J185: 34.18 | K185: 32.75 | L185: 30.85 | M185: 247.41665
A186: 177 | B186: STRTECH | C186: 122.4 | D186: 123.42 | E186: 120.13 | F186: 117.87 | G186: 114.58 | H186: 125.68 | I186: 128.97 | J186: 131.23 | K186: 126.7 | L186: 121.15 | M186: 6.85301
A187: 178 | B187: SPARC | C187: 141.5 | D187: 141.62 | E187: 138.98 | F187: 136.47 | G187: 133.83 | H187: 144.13 | I187: 146.77 | J187: 149.28 | K187: 144.25 | L187: 139.1 | M187: 3.01821
A188: 179 | B188: SUNPHARMA | C188: 413.1 | D188: 415.43 | E188: 409.17 | F188: 405.23 | G188: 398.97 | H188: 419.37 | I188: 425.63 | J188: 429.57 | K188: 421.7 | L188: 411.5 | M188: 34.41725
A189: 180 | B189: SUNTV | C189: 441.8 | D189: 444.30 | E189: 432.00 | F189: 422.20 | G189: 409.90 | H189: 454.10 | I189: 466.40 | J189: 476.20 | K189: 456.6 | L189: 434.5 | M189: 13.34382
A190: 181 | B190: SYNGENE | C190: 303.55 | D190: 301.97 | E190: 298.93 | F190: 294.32 | G190: 291.28 | H190: 306.58 | I190: 309.62 | J190: 314.23 | K190: 305 | L190: 297.35 | M190: 4.92202
A191: 182 | B191: TVSMOTOR | C191: 359.75 | D191: 362.72 | E191: 353.43 | F191: 347.12 | G191: 337.83 | H191: 369.03 | I191: 378.32 | J191: 384.63 | K191: 372 | L191: 356.4 | M191: 11.68044
A192: 183 | B192: TATACHEM | C192: 565 | D192: 563.87 | E192: 559.73 | F192: 554.47 | G192: 550.33 | H192: 569.13 | I192: 573.27 | J192: 578.53 | K192: 568 | L192: 558.6 | M192: 6.5722
A193: 184 | B193: TCS | C193: 2239.25 | D193: 2235.80 | E193: 2219.45 | F193: 2199.65 | G193: 2183.30 | H193: 2255.60 | I193: 2271.95 | J193: 2291.75 | K193: 2252.15 | L193: 2216 | M193: 12.94621
A194: 185 | B194: TATAGLOBAL | C194: 280.05 | D194: 276.32 | E194: 271.33 | F194: 262.62 | G194: 257.63 | H194: 285.03 | I194: 290.02 | J194: 298.73 | K194: 281.3 | L194: 267.6 | M194: 76.32634
A195: 186 | B195: TATAMTRDVR | C195: 53.65 | D195: 54.83 | E195: 51.92 | F195: 50.18 | G195: 47.27 | H195: 56.57 | I195: 59.48 | J195: 61.22 | K195: 57.75 | L195: 53.1 | M195: 75.01502
A196: 187 | B196: TATAMOTORS | C196: 116.35 | D196: 118.38 | E196: 112.77 | F196: 109.18 | G196: 103.57 | H196: 121.97 | I196: 127.58 | J196: 131.17 | K196: 124 | L196: 114.8 | M196: 742.45952
A197: 188 | B197: TATAPOWER | C197: 55.45 | D197: 55.02 | E197: 54.18 | F197: 52.92 | G197: 52.08 | H197: 56.28 | I197: 57.12 | J197: 58.38 | K197: 55.85 | L197: 53.75 | M197: 74.47749
A198: 189 | B198: TATASTEEL | C198: 336.95 | D198: 340.42 | E198: 329.93 | F198: 322.92 | G198: 312.43 | H198: 347.43 | I198: 357.92 | J198: 364.93 | K198: 350.9 | L198: 333.4 | M198: 126.41716
A199: 190 | B199: TECHM | C199: 690.2 | D199: 686.55 | E199: 679.65 | F199: 669.10 | G199: 662.20 | H199: 697.10 | I199: 704.00 | J199: 714.55 | K199: 693.45 | L199: 676 | M199: 27.49273
A200: 191 | B200: NIACL | C200: 107.1 | D200: 108.03 | E200: 105.17 | F200: 103.23 | G200: 100.37 | H200: 109.97 | I200: 112.83 | J200: 114.77 | K200: 110.9 | L200: 106.1 | M200: 0.63119
A201: 192 | B201: RAMCOCEM | C201: 751.75 | D201: 753.73 | E201: 741.02 | F201: 730.28 | G201: 717.57 | H201: 764.47 | I201: 777.18 | J201: 787.92 | K201: 766.45 | L201: 743 | M201: 1.7041
A202: 193 | B202: TITAN | C202: 1110.95 | D202: 1116.65 | E202: 1101.80 | F202: 1092.65 | G202: 1077.80 | H202: 1125.80 | I202: 1140.65 | J202: 1149.80 | K202: 1131.5 | L202: 1107.5 | M202: 15.99333
A203: 194 | B203: TORNTPHARM | C203: 1668.8 | D203: 1675.72 | E203: 1654.13 | F203: 1639.47 | G203: 1617.88 | H203: 1690.38 | I203: 1711.97 | J203: 1726.63 | K203: 1697.3 | L203: 1661.05 | M203: 1.83948
A204: 195 | B204: TORNTPOWER | C204: 280.85 | D204: 282.32 | E204: 276.63 | F204: 272.42 | G204: 266.73 | H204: 286.53 | I204: 292.22 | J204: 296.43 | K204: 288 | L204: 278.1 | M204: 9.12918
A205: 196 | B205: UPL | C205: 557 | D205: 558.22 | E205: 544.93 | F205: 532.87 | G205: 519.58 | H205: 570.28 | I205: 583.57 | J205: 595.63 | K205: 571.5 | L205: 546.15 | M205: 37.47446
... 30 more rows

Sheet MidCap Intra
L5: Back To Main Page
A6: FOR INTRA DAY TRADING | K6: =Main!B10 -> 2019-08-29
A9: Sr.no | B9: Scrip | C9: CLOSE RATE | D9: Pivot Point | E9: Supports | H9: Resistances
C10: Point | E10: S1 | F10: S2 | G10: S3 | H10: R1 | I10: R2 | J10: R3 | K10: HIGH | L10: LOW | M10: Total Trade Quanity in Lakhs
A11: 1 | B11: 3MINDIA | C11: 20425.55 | D11: 20638.88 | E11: 20108.67 | F11: 19791.78 | G11: 19261.57 | H11: 20955.77 | I11: 21485.98 | J11: 21802.87 | K11: 21169.1 | L11: 20322 | M11: 0.00738
A12: 2 | B12: ABB | C12: 1361.4 | D12: 1367.85 | E12: 1345.65 | F12: 1329.90 | G12: 1307.70 | H12: 1383.60 | I12: 1405.80 | J12: 1421.55 | K12: 1390.05 | L12: 1352.1 | M12: 1.8278
A13: 3 | B13: ACC | C13: 1542.35 | D13: 1537.45 | E13: 1524.90 | F13: 1507.45 | G13: 1494.90 | H13: 1554.90 | I13: 1567.45 | J13: 1584.90 | K13: 1550 | L13: 1520 | M13: 6.43361
A14: 4 | B14: AIAENG | C14: 1551 | D14: 1551.30 | E14: 1532.70 | F14: 1514.40 | G14: 1495.80 | H14: 1569.60 | I14: 1588.20 | J14: 1606.50 | K14: 1569.9 | L14: 1533 | M14: 0.21648
A15: 5 | B15: APLAPOLLO | C15: 1275.35 | D15: 1287.43 | E15: 1252.92 | F15: 1230.48 | G15: 1195.97 | H15: 1309.87 | I15: 1344.38 | J15: 1366.82 | K15: 1321.95 | L15: 1265 | M15: 0.14516
A16: 6 | B16: AUBANK | C16: 669.45 | D16: 672.60 | E16: 661.90 | F16: 654.35 | G16: 643.65 | H16: 680.15 | I16: 690.85 | J16: 698.40 | K16: 683.3 | L16: 665.05 | M16: 1.15389
A17: 7 | B17: AAVAS | C17: 1557.85 | D17: 1547.38 | E17: 1525.77 | F17: 1493.68 | G17: 1472.07 | H17: 1579.47 | I17: 1601.08 | J17: 1633.17 | K17: 1569 | L17: 1515.3 | M17: 0.08127
A18: 8 | B18: ADANIGREEN | C18: 44.05 | D18: 44.25 | E18: 43.30 | F18: 42.55 | G18: 41.60 | H18: 45.00 | I18: 45.95 | J18: 46.70 | K18: 45.2 | L18: 43.5 | M18: 2.92461
A19: 9 | B19: ADANIPORTS | C19: 365.95 | D19: 368.08 | E19: 361.92 | F19: 357.88 | G19: 351.72 | H19: 372.12 | I19: 378.28 | J19: 382.32 | K19: 374.25 | L19: 364.05 | M19: 21.86454
A20: 10 | B20: ADANIPOWER | C20: 59.25 | D20: 59.15 | E20: 58.10 | F20: 56.95 | G20: 55.90 | H20: 60.30 | I20: 61.35 | J20: 62.50 | K20: 60.2 | L20: 58 | M20: 72.36667
A21: 11 | B21: ADANITRANS | C21: 234.75 | D21: 235.42 | E21: 230.93 | F21: 227.12 | G21: 222.63 | H21: 239.23 | I21: 243.72 | J21: 247.53 | K21: 239.9 | L21: 231.6 | M21: 0.91885
A22: 12 | B22: ABCAPITAL | C22: 87.75 | D22: 88.52 | E22: 86.73 | F22: 85.72 | G22: 83.93 | H22: 89.53 | I22: 91.32 | J22: 92.33 | K22: 90.3 | L22: 87.5 | M22: 8.18681
A23: 13 | B23: ABFRL | C23: 190.6 | D23: 193.18 | E23: 187.42 | F23: 184.23 | G23: 178.47 | H23: 196.37 | I23: 202.13 | J23: 205.32 | K23: 198.95 | L23: 190 | M23: 2.52589
A24: 14 | B24: ADVENZYMES | C24: 150 | D24: 151.25 | E24: 148.60 | F24: 147.20 | G24: 144.55 | H24: 152.65 | I24: 155.30 | J24: 156.70 | K24: 153.9 | L24: 149.85 | M24: 0.44244
A25: 15 | B25: AEGISCHEM | C25: 195.9 | D25: 195.30 | E25: 190.60 | F25: 185.30 | G25: 180.60 | H25: 200.60 | I25: 205.30 | J25: 210.60 | K25: 200 | L25: 190 | M25: 0.82283
A26: 16 | B26: AJANTPHARM | C26: 986.05 | D26: 979.70 | E26: 949.95 | F26: 913.85 | G26: 884.10 | H26: 1015.80 | I26: 1045.55 | J26: 1081.65 | K26: 1009.45 | L26: 943.6 | M26: 1.15371
A27: 17 | B27: AKZOINDIA | C27: 1700.1 | D27: 1704.32 | E27: 1693.88 | F27: 1687.67 | G27: 1677.23 | H27: 1710.53 | I27: 1720.97 | J27: 1727.18 | K27: 1714.75 | L27: 1698.1 | M27: 0.05633
A28: 18 | B28: APLLTD | C28: 497.7 | D28: 498.87 | E28: 492.93 | F28: 488.17 | G28: 482.23 | H28: 503.63 | I28: 509.57 | J28: 514.33 | K28: 504.8 | L28: 494.1 | M28: 0.07799
A29: 19 | B29: ALKEM | C29: 1829.85 | D29: 1824.92 | E29: 1804.93 | F29: 1780.02 | G29: 1760.03 | H29: 1849.83 | I29: 1869.82 | J29: 1894.73 | K29: 1844.9 | L29: 1800 | M29: 0.33453
A30: 20 | B30: ALBK | C30: 34.85 | D30: 34.97 | E30: 33.98 | F30: 33.12 | G30: 32.13 | H30: 35.83 | I30: 36.82 | J30: 37.68 | K30: 35.95 | L30: 34.1 | M30: 11.2204
A31: 21 | B31: ALLCARGO | C31: 92.2 | D31: 92.50 | E31: 91.20 | F31: 90.20 | G31: 88.90 | H31: 93.50 | I31: 94.80 | J31: 95.80 | K31: 93.8 | L31: 91.5 | M31: 0.45108
A32: 22 | B32: AMARAJABAT | C32: 612.6 | D32: 615.13 | E32: 604.47 | F32: 596.33 | G32: 585.67 | H32: 623.27 | I32: 633.93 | J32: 642.07 | K32: 625.8 | L32: 607 | M32: 2.73656
A33: 23 | B33: AMBUJACEM | C33: 205 | D33: 205.08 | E33: 202.67 | F33: 200.33 | G33: 197.92 | H33: 207.42 | I33: 209.83 | J33: 212.17 | K33: 207.5 | L33: 202.75 | M33: 16.74581
A34: 24 | B34: ANDHRABANK | C34: 18.7 | D34: 18.75 | E34: 18.50 | F34: 18.30 | G34: 18.05 | H34: 18.95 | I34: 19.20 | J34: 19.40 | K34: 19 | L34: 18.55 | M34: 4.16582
A35: 25 | B35: APOLLOHOSP | C35: 1521.4 | D35: 1511.13 | E35: 1487.27 | F35: 1453.13 | G35: 1429.27 | H35: 1545.27 | I35: 1569.13 | J35: 1603.27 | K35: 1535 | L35: 1477 | M35: 14.29654
A36: 26 | B36: APOLLOTYRE | C36: 168.55 | D36: 169.50 | E36: 166.05 | F36: 163.55 | G36: 160.10 | H36: 172.00 | I36: 175.45 | J36: 177.95 | K36: 172.95 | L36: 167 | M36: 23.66161
A37: 27 | B37: ASHOKLEY | C37: 66.75 | D37: 66.65 | E37: 65.75 | F37: 64.75 | G37: 63.85 | H37: 67.65 | I37: 68.55 | J37: 69.55 | K37: 67.55 | L37: 65.65 | M37: 316.18285
A38: 28 | B38: ASHOKA | C38: 99.4 | D38: 100.12 | E38: 96.43 | F38: 93.47 | G38: 89.78 | H38: 103.08 | I38: 106.77 | J38: 109.73 | K38: 103.8 | L38: 97.15 | M38: 8.50651
A39: 29 | B39: ASIANPAINT | C39: 1603.15 | D39: 1600.17 | E39: 1593.58 | F39: 1584.02 | G39: 1577.43 | H39: 1609.73 | I39: 1616.32 | J39: 1625.88 | K39: 1606.75 | L39: 1590.6 | M39: 5.65676
A40: 30 | B40: ASTERDM | C40: 117.55 | D40: 117.97 | E40: 116.58 | F40: 115.62 | G40: 114.23 | H40: 118.93 | I40: 120.32 | J40: 121.28 | K40: 119.35 | L40: 117 | M40: 0.24428
A41: 31 | B41: ASTRAZEN | C41: 1834.95 | D41: 1843.33 | E41: 1806.82 | F41: 1778.68 | G41: 1742.17 | H41: 1871.47 | I41: 1907.98 | J41: 1936.12 | K41: 1879.85 | L41: 1815.2 | M41: 0.08018
A42: 32 | B42: ASTRAL | C42: 1303.6 | D42: 1294.03 | E42: 1279.77 | F42: 1255.93 | G42: 1241.67 | H42: 1317.87 | I42: 1332.13 | J42: 1355.97 | K42: 1308.3 | L42: 1270.2 | M42: 0.17782
A43: 33 | B43: ATUL | C43: 3499.3 | D43: 3503.80 | E43: 3480.60 | F43: 3461.90 | G43: 3438.70 | H43: 3522.50 | I43: 3545.70 | J43: 3564.40 | K43: 3527 | L43: 3485.1 | M43: 0.1527
A44: 34 | B44: AUROPHARMA | C44: 591.1 | D44: 592.85 | E44: 584.20 | F44: 577.30 | G44: 568.65 | H44: 599.75 | I44: 608.40 | J44: 615.30 | K44: 601.5 | L44: 585.95 | M44: 25.6103
A45: 35 | B45: AVANTIFEED | C45: 309.45 | D45: 307.85 | E45: 303.70 | F45: 297.95 | G45: 293.80 | H45: 313.60 | I45: 317.75 | J45: 323.50 | K45: 312 | L45: 302.1 | M45: 3.36148
A46: 36 | B46: DMART | C46: 1553.3 | D46: 1550.70 | E46: 1522.60 | F46: 1491.90 | G46: 1463.80 | H46: 1581.40 | I46: 1609.50 | J46: 1640.20 | K46: 1578.8 | L46: 1520 | M46: 5.81625
A47: 37 | B47: AXISBANK | C47: 678.2 | D47: 680.35 | E47: 671.35 | F47: 664.50 | G47: 655.50 | H47: 687.20 | I47: 696.20 | J47: 703.05 | K47: 689.35 | L47: 673.5 | M47: 56.77087
A48: 38 | B48: BASF | C48: 1019.7 | D48: 1025.53 | E48: 1012.07 | F48: 1004.43 | G48: 990.97 | H48: 1033.17 | I48: 1046.63 | J48: 1054.27 | K48: 1039 | L48: 1017.9 | M48: 0.02107
A49: 39 | B49: BEML | C49: 801.85 | D49: 797.12 | E49: 779.23 | F49: 756.62 | G49: 738.73 | H49: 819.73 | I49: 837.62 | J49: 860.23 | K49: 815 | L49: 774.5 | M49: 14.443
A50: 40 | B50: BSE | C50: 524.95 | D50: 527.45 | E50: 515.50 | F50: 506.05 | G50: 494.10 | H50: 536.90 | I50: 548.85 | J50: 558.30 | K50: 539.4 | L50: 518 | M50: 1.05661
A51: 41 | B51: BAJAJ-AUTO | C51: 2766.75 | D51: 2777.08 | E51: 2740.22 | F51: 2713.68 | G51: 2676.82 | H51: 2803.62 | I51: 2840.48 | J51: 2867.02 | K51: 2813.95 | L51: 2750.55 | M51: 4.7996
A52: 42 | B52: BAJAJCON | C52: 253.2 | D52: 253.48 | E52: 249.97 | F52: 246.73 | G52: 243.22 | H52: 256.72 | I52: 260.23 | J52: 263.47 | K52: 257 | L52: 250.25 | M52: 0.7104
A53: 43 | B53: BAJAJELEC | C53: 394.95 | D53: 395.98 | E53: 385.97 | F53: 376.98 | G53: 366.97 | H53: 404.97 | I53: 414.98 | J53: 423.97 | K53: 406 | L53: 387 | M53: 1.48221
A54: 44 | B54: BAJFINANCE | C54: 3326.35 | D54: 3328.58 | E54: 3294.52 | F54: 3262.68 | G54: 3228.62 | H54: 3360.42 | I54: 3394.48 | J54: 3426.32 | K54: 3362.65 | L54: 3296.75 | M54: 12.50915
A55: 45 | B55: BAJAJFINSV | C55: 7035.95 | D55: 7053.08 | E55: 6966.17 | F55: 6896.38 | G55: 6809.47 | H55: 7122.87 | I55: 7209.78 | J55: 7279.57 | K55: 7140 | L55: 6983.3 | M55: 3.92626
A56: 46 | B56: BAJAJHLDNG | C56: 3303.65 | D56: 3314.55 | E56: 3279.25 | F56: 3254.85 | G56: 3219.55 | H56: 3338.95 | I56: 3374.25 | J56: 3398.65 | K56: 3349.85 | L56: 3290.15 | M56: 0.05657
A57: 47 | B57: BALKRISIND | C57: 745 | D57: 747.67 | E57: 738.58 | F57: 732.17 | G57: 723.08 | H57: 754.08 | I57: 763.17 | J57: 769.58 | K57: 756.75 | L57: 741.25 | M57: 2.25237
A58: 48 | B58: BALMLAWRIE | C58: 173.4 | D58: 173.35 | E58: 171.85 | F58: 170.30 | G58: 168.80 | H58: 174.90 | I58: 176.40 | J58: 177.95 | K58: 174.85 | L58: 171.8 | M58: 0.42569
A59: 49 | B59: BALRAMCHIN | C59: 129.3 | D59: 131.30 | E59: 125.55 | F59: 121.80 | G59: 116.05 | H59: 135.05 | I59: 140.80 | J59: 144.55 | K59: 137.05 | L59: 127.55 | M59: 26.57107
A60: 50 | B60: BANDHANBNK | C60: 474.7 | D60: 474.13 | E60: 471.27 | F60: 467.83 | G60: 464.97 | H60: 477.57 | I60: 480.43 | J60: 483.87 | K60: 477 | L60: 470.7 | M60: 8.1071
A61: 51 | B61: BANKBARODA | C61: 94.5 | D61: 95.30 | E61: 92.95 | F61: 91.40 | G61: 89.05 | H61: 96.85 | I61: 99.20 | J61: 100.75 | K61: 97.65 | L61: 93.75 | M61: 249.472
A62: 52 | B62: BANKINDIA | C62: 67.7 | D62: 68.35 | E62: 66.05 | F62: 64.40 | G62: 62.10 | H62: 70.00 | I62: 72.30 | J62: 73.95 | K62: 70.65 | L62: 66.7 | M62: 78.98518
A63: 53 | B63: MAHABANK | C63: 12 | D63: 12.05 | E63: 11.85 | F63: 11.70 | G63: 11.50 | H63: 12.20 | I63: 12.40 | J63: 12.55 | K63: 12.25 | L63: 11.9 | M63: 3.81453
A64: 54 | B64: BATAINDIA | C64: 1507.7 | D64: 1510.30 | E64: 1498.90 | F64: 1490.10 | G64: 1478.70 | H64: 1519.10 | I64: 1530.50 | J64: 1539.30 | K64: 1521.7 | L64: 1501.5 | M64: 7.61192
A65: 55 | B65: BERGEPAINT | C65: 366.4 | D65: 365.80 | E65: 362.80 | F65: 359.20 | G65: 356.20 | H65: 369.40 | I65: 372.40 | J65: 376.00 | K65: 368.8 | L65: 362.2 | M65: 6.92299
A66: 56 | B66: BDL | C66: 281.6 | D66: 284.53 | E66: 278.07 | F66: 274.53 | G66: 268.07 | H66: 288.07 | I66: 294.53 | J66: 298.07 | K66: 291 | L66: 281 | M66: 0.12421
A67: 57 | B67: BEL | C67: 103.7 | D67: 103.67 | E67: 102.78 | F67: 101.87 | G67: 100.98 | H67: 104.58 | I67: 105.47 | J67: 106.38 | K67: 104.55 | L67: 102.75 | M67: 86.88813
A68: 58 | B68: BHARATFORG | C68: 389.65 | D68: 392.72 | E68: 384.13 | F68: 378.62 | G68: 370.03 | H68: 398.23 | I68: 406.82 | J68: 412.33 | K68: 401.3 | L68: 387.2 | M68: 9.05159
A69: 59 | B69: BHEL | C69: 51.35 | D69: 51.78 | E69: 50.17 | F69: 48.98 | G69: 47.37 | H69: 52.97 | I69: 54.58 | J69: 55.77 | K69: 53.4 | L69: 50.6 | M69: 139.79685
A70: 60 | B70: BPCL | C70: 350.55 | D70: 346.85 | E70: 341.20 | F70: 331.85 | G70: 326.20 | H70: 356.20 | I70: 361.85 | J70: 371.20 | K70: 352.5 | L70: 337.5 | M70: 50.177
A71: 61 | B71: BHARTIARTL | C71: 345.8 | D71: 345.27 | E71: 341.03 | F71: 336.27 | G71: 332.03 | H71: 350.03 | I71: 354.27 | J71: 359.03 | K71: 349.5 | L71: 340.5 | M71: 55.24473
A72: 62 | B72: INFRATEL | C72: 248.8 | D72: 247.90 | E72: 245.30 | F72: 241.80 | G72: 239.20 | H72: 251.40 | I72: 254.00 | J72: 257.50 | K72: 250.5 | L72: 244.4 | M72: 10.90082
A73: 63 | B73: BIOCON | C73: 220.85 | D73: 222.77 | E73: 216.73 | F73: 212.62 | G73: 206.58 | H73: 226.88 | I73: 232.92 | J73: 237.03 | K73: 228.8 | L73: 218.65 | M73: 36.86564
A74: 64 | B74: BIRLACORPN | C74: 534.4 | D74: 538.53 | E74: 523.07 | F74: 511.73 | G74: 496.27 | H74: 549.87 | I74: 565.33 | J74: 576.67 | K74: 554 | L74: 527.2 | M74: 0.64434
A75: 65 | B75: BLISSGVS | C75: 96.6 | D75: 97.77 | E75: 94.08 | F75: 91.57 | G75: 87.88 | H75: 100.28 | I75: 103.97 | J75: 106.48 | K75: 101.45 | L75: 95.25 | M75: 1.50453
A76: 66 | B76: BLUEDART | C76: 2227.35 | D76: 2224.43 | E76: 2203.87 | F76: 2180.38 | G76: 2159.82 | H76: 2247.92 | I76: 2268.48 | J76: 2291.97 | K76: 2245 | L76: 2200.95 | M76: 0.00939
A77: 67 | B77: BLUESTARCO | C77: 738.4 | D77: 742.98 | E77: 711.87 | F77: 685.33 | G77: 654.22 | H77: 769.52 | I77: 800.63 | J77: 827.17 | K77: 774.1 | L77: 716.45 | M77: 0.45942
A78: 68 | B78: BBTC | C78: 893.7 | D78: 906.90 | E78: 868.80 | F78: 843.90 | G78: 805.80 | H78: 931.80 | I78: 969.90 | J78: 994.80 | K78: 945 | L78: 882 | M78: 6.42883
A79: 69 | B79: BOMDYEING | C79: 80.4 | D79: 81.73 | E79: 77.97 | F79: 75.53 | G79: 71.77 | H79: 84.17 | I79: 87.93 | J79: 90.37 | K79: 85.5 | L79: 79.3 | M79: 49.81747
A80: 70 | B80: BOSCHLTD | C80: 14198.45 | D80: 14245.40 | E80: 13939.75 | F80: 13681.05 | G80: 13375.40 | H80: 14504.10 | I80: 14809.75 | J80: 15068.45 | K80: 14551.05 | L80: 13986.7 | M80: 0.10376
A81: 71 | B81: BRIGADE | C81: 200.4 | D81: 197.03 | E81: 190.37 | F81: 180.33 | G81: 173.67 | H81: 207.07 | I81: 213.73 | J81: 223.77 | K81: 203.7 | L81: 187 | M81: 6.05497
A82: 72 | B82: BRITANNIA | C82: 2703.1 | D82: 2706.13 | E82: 2669.02 | F82: 2634.93 | G82: 2597.82 | H82: 2740.22 | I82: 2777.33 | J82: 2811.42 | K82: 2743.25 | L82: 2672.05 | M82: 11.49926
A83: 73 | B83: CARERATING | C83: 543.2 | D83: 539.33 | E83: 529.92 | F83: 516.63 | G83: 507.22 | H83: 552.62 | I83: 562.03 | J83: 575.32 | K83: 548.75 | L83: 526.05 | M83: 0.42045
A84: 74 | B84: CCL | C84: 241.9 | D84: 242.78 | E84: 239.27 | F84: 236.63 | G84: 233.12 | H84: 245.42 | I84: 248.93 | J84: 251.57 | K84: 246.3 | L84: 240.15 | M84: 0.35961
A85: 75 | B85: CESC | C85: 765.6 | D85: 769.70 | E85: 758.20 | F85: 750.80 | G85: 739.30 | H85: 777.10 | I85: 788.60 | J85: 796.00 | K85: 781.2 | L85: 762.3 | M85: 2.65699
A86: 76 | B86: CGPOWER | C86: 9.55 | D86: 9.55 | E86: 9.55 | F86: 9.55 | G86: 9.55 | H86: 9.55 | I86: 9.55 | J86: 9.55 | K86: 9.55 | L86: 9.55 | M86: 2.39073
A87: 77 | B87: CRISIL | C87: 1291.05 | D87: 1291.88 | E87: 1279.77 | F87: 1268.48 | G87: 1256.37 | H87: 1303.17 | I87: 1315.28 | J87: 1326.57 | K87: 1304 | L87: 1280.6 | M87: 0.06427
A88: 78 | B88: CADILAHC | C88: 223.25 | D88: 221.50 | E88: 218.30 | F88: 213.35 | G88: 210.15 | H88: 226.45 | I88: 229.65 | J88: 234.60 | K88: 224.7 | L88: 216.55 | M88: 25.7682
A89: 79 | B89: CANFINHOME | C89: 402.05 | D89: 401.02 | E89: 393.03 | F89: 384.02 | G89: 376.03 | H89: 410.03 | I89: 418.02 | J89: 427.03 | K89: 409 | L89: 392 | M89: 2.56427
A90: 80 | B90: CANBK | C90: 226.9 | D90: 227.92 | E90: 224.18 | F90: 221.47 | G90: 217.73 | H90: 230.63 | I90: 234.37 | J90: 237.08 | K90: 231.65 | L90: 225.2 | M90: 47.72624
A91: 81 | B91: CAPLIPOINT | C91: 413.8 | D91: 418.07 | E91: 407.83 | F91: 401.87 | G91: 391.63 | H91: 424.03 | I91: 434.27 | J91: 440.23 | K91: 428.3 | L91: 412.1 | M91: 0.23741
A92: 82 | B92: CARBORUNIV | C92: 284.75 | D92: 287.82 | E92: 276.93 | F92: 269.12 | G92: 258.23 | H92: 295.63 | I92: 306.52 | J92: 314.33 | K92: 298.7 | L92: 280 | M92: 0.13372
A93: 83 | B93: CASTROLIND | C93: 123.8 | D93: 124.62 | E93: 121.33 | F93: 118.87 | G93: 115.58 | H93: 127.08 | I93: 130.37 | J93: 132.83 | K93: 127.9 | L93: 122.15 | M93: 10.53407
A94: 84 | B94: CEATLTD | C94: 911.7 | D94: 905.57 | E94: 896.13 | F94: 880.57 | G94: 871.13 | H94: 921.13 | I94: 930.57 | J94: 946.13 | K94: 915 | L94: 890 | M94: 1.6289
A95: 85 | B95: CENTRALBK | C95: 19.55 | D95: 19.67 | E95: 19.13 | F95: 18.72 | G95: 18.18 | H95: 20.08 | I95: 20.62 | J95: 21.03 | K95: 20.2 | L95: 19.25 | M95: 4.77351
A96: 86 | B96: CDSL | C96: 192.5 | D96: 193.60 | E96: 190.45 | F96: 188.40 | G96: 185.25 | H96: 195.65 | I96: 198.80 | J96: 200.85 | K96: 196.75 | L96: 191.55 | M96: 1.02873
A97: 87 | B97: CENTURYPLY | C97: 133.6 | D97: 134.22 | E97: 132.13 | F97: 130.67 | G97: 128.58 | H97: 135.68 | I97: 137.77 | J97: 139.23 | K97: 136.3 | L97: 132.75 | M97: 0.84751
A98: 88 | B98: CERA | C98: 2513.6 | D98: 2493.00 | E98: 2460.85 | F98: 2408.10 | G98: 2375.95 | H98: 2545.75 | I98: 2577.90 | J98: 2630.65 | K98: 2525.15 | L98: 2440.25 | M98: 0.01893
A99: 89 | B99: CHAMBLFERT | C99: 152.55 | D99: 151.77 | E99: 148.78 | F99: 145.02 | G99: 142.03 | H99: 155.53 | I99: 158.52 | J99: 162.28 | K99: 154.75 | L99: 148 | M99: 4.85555
A100: 90 | B100: CHENNPETRO | C100: 187.05 | D100: 187.70 | E100: 185.45 | F100: 183.85 | G100: 181.60 | H100: 189.30 | I100: 191.55 | J100: 193.15 | K100: 189.95 | L100: 186.1 | M100: 1.00543
A101: 91 | B101: CHOLAHLDNG | C101: 443.5 | D101: 444.07 | E101: 434.93 | F101: 426.37 | G101: 417.23 | H101: 452.63 | I101: 461.77 | J101: 470.33 | K101: 453.2 | L101: 435.5 | M101: 9.70107
A102: 92 | B102: CHOLAFIN | C102: 266.45 | D102: 268.37 | E102: 262.13 | F102: 257.82 | G102: 251.58 | H102: 272.68 | I102: 278.92 | J102: 283.23 | K102: 274.6 | L102: 264.05 | M102: 11.35961
A103: 93 | B103: CIPLA | C103: 464.25 | D103: 466.87 | E103: 457.53 | F103: 450.82 | G103: 441.48 | H103: 473.58 | I103: 482.92 | J103: 489.63 | K103: 476.2 | L103: 460.15 | M103: 21.93022
A104: 94 | B104: CUB | C104: 193.2 | D104: 194.13 | E104: 191.17 | F104: 189.13 | G104: 186.17 | H104: 196.17 | I104: 199.13 | J104: 201.17 | K104: 197.1 | L104: 192.1 | M104: 1.7612
A105: 95 | B105: COALINDIA | C105: 185.05 | D105: 187.28 | E105: 181.97 | F105: 178.88 | G105: 173.57 | H105: 190.37 | I105: 195.68 | J105: 198.77 | K105: 192.6 | L105: 184.2 | M105: 107.9113
A106: 96 | B106: COCHINSHIP | C106: 345.35 | D106: 346.50 | E106: 343.80 | F106: 342.25 | G106: 339.55 | H106: 348.05 | I106: 350.75 | J106: 352.30 | K106: 349.2 | L106: 344.95 | M106: 0.20375
A107: 97 | B107: COFFEEDAY | C107: 82.85 | D107: 84.90 | E107: 80.80 | F107: 78.75 | G107: 74.65 | H107: 86.95 | I107: 91.05 | J107: 93.10 | K107: 89 | L107: 82.85 | M107: 13.45777
A108: 98 | B108: COLPAL | C108: 1213.05 | D108: 1209.73 | E108: 1201.47 | F108: 1189.88 | G108: 1181.62 | H108: 1221.32 | I108: 1229.58 | J108: 1241.17 | K108: 1218 | L108: 1198.15 | M108: 2.83377
A109: 99 | B109: CONCOR | C109: 485.2 | D109: 488.88 | E109: 478.37 | F109: 471.53 | G109: 461.02 | H109: 495.72 | I109: 506.23 | J109: 513.07 | K109: 499.4 | L109: 482.05 | M109: 6.87754
A110: 100 | B110: COROMANDEL | C110: 386.6 | D110: 384.40 | E110: 378.80 | F110: 371.00 | G110: 365.40 | H110: 392.20 | I110: 397.80 | J110: 405.60 | K110: 390 | L110: 376.6 | M110: 1.44995
A111: 101 | B111: CORPBANK | C111: 17.6 | D111: 17.75 | E111: 17.35 | F111: 17.10 | G111: 16.70 | H111: 18.00 | I111: 18.40 | J111: 18.65 | K111: 18.15 | L111: 17.5 | M111: 1.94598
A112: 102 | B112: COX&KINGS | C112: 4.85 | D112: 4.85 | E112: 4.85 | F112: 4.85 | G112: 4.85 | H112: 4.85 | I112: 4.85 | J112: 4.85 | K112: 4.85 | L112: 4.85 | M112: 5.52329
A113: 103 | B113: CREDITACC | C113: 524.05 | D113: 525.43 | E113: 517.87 | F113: 511.68 | G113: 504.12 | H113: 531.62 | I113: 539.18 | J113: 545.37 | K113: 533 | L113: 519.25 | M113: 0.48167
A114: 104 | B114: CROMPTON | C114: 226.35 | D114: 226.52 | E114: 224.93 | F114: 223.52 | G114: 221.93 | H114: 227.93 | I114: 229.52 | J114: 230.93 | K114: 228.1 | L114: 225.1 | M114: 2.54283
A115: 105 | B115: CUMMINSIND | C115: 569.6 | D115: 567.98 | E115: 557.62 | F115: 545.63 | G115: 535.27 | H115: 579.97 | I115: 590.33 | J115: 602.32 | K115: 578.35 | L115: 556 | M115: 9.15923
A116: 106 | B116: CYIENT | C116: 434 | D116: 436.07 | E116: 430.18 | F116: 426.37 | G116: 420.48 | H116: 439.88 | I116: 445.77 | J116: 449.58 | K116: 441.95 | L116: 432.25 | M116: 1.27955
A117: 107 | B117: DBCORP | C117: 136.4 | D117: 136.82 | E117: 134.58 | F117: 132.77 | G117: 130.53 | H117: 138.63 | I117: 140.87 | J117: 142.68 | K117: 139.05 | L117: 135 | M117: 0.22149
A118: 108 | B118: DCBBANK | C118: 199.3 | D118: 199.97 | E118: 197.43 | F118: 195.57 | G118: 193.03 | H118: 201.83 | I118: 204.37 | J118: 206.23 | K118: 202.5 | L118: 198.1 | M118: 4.70047
A119: 109 | B119: DCMSHRIRAM | C119: 389.8 | D119: 393.47 | E119: 381.93 | F119: 374.07 | G119: 362.53 | H119: 401.33 | I119: 412.87 | J119: 420.73 | K119: 405 | L119: 385.6 | M119: 0.69228
A120: 110 | B120: DLF | C120: 164.2 | D120: 162.88 | E120: 159.97 | F120: 155.73 | G120: 152.82 | H120: 167.12 | I120: 170.03 | J120: 174.27 | K120: 165.8 | L120: 158.65 | M120: 161.14232
A121: 111 | B121: DABUR | C121: 434.8 | D121: 436.70 | E121: 431.25 | F121: 427.70 | G121: 422.25 | H121: 440.25 | I121: 445.70 | J121: 449.25 | K121: 442.15 | L121: 433.15 | M121: 15.83233
A122: 112 | B122: DEEPAKFERT | C122: 80.9 | D122: 82.13 | E122: 78.77 | F122: 76.63 | G122: 73.27 | H122: 84.27 | I122: 87.63 | J122: 89.77 | K122: 85.5 | L122: 80 | M122: 1.45526
A123: 113 | B123: DEEPAKNTR | C123: 285.4 | D123: 287.63 | E123: 281.27 | F123: 277.13 | G123: 270.77 | H123: 291.77 | I123: 298.13 | J123: 302.27 | K123: 294 | L123: 283.5 | M123: 2.87692
A124: 114 | B124: DELTACORP | C124: 168.4 | D124: 168.63 | E124: 163.87 | F124: 159.33 | G124: 154.57 | H124: 173.17 | I124: 177.93 | J124: 182.47 | K124: 173.4 | L124: 164.1 | M124: 19.8721
A125: 115 | B125: DHFL | C125: 48.4 | D125: 47.87 | E125: 46.53 | F125: 44.67 | G125: 43.33 | H125: 49.73 | I125: 51.07 | J125: 52.93 | K125: 49.2 | L125: 46 | M125: 169.35967
A126: 116 | B126: DBL | C126: 376.35 | D126: 378.78 | E126: 369.57 | F126: 362.78 | G126: 353.57 | H126: 385.57 | I126: 394.78 | J126: 401.57 | K126: 388 | L126: 372 | M126: 3.09684
A127: 117 | B127: DISHTV | C127: 23 | D127: 23.50 | E127: 22.20 | F127: 21.40 | G127: 20.10 | H127: 24.30 | I127: 25.60 | J127: 26.40 | K127: 24.8 | L127: 22.7 | M127: 225.37161
A128: 118 | B128: DCAL | C128: 169.55 | D128: 169.77 | E128: 164.83 | F128: 160.12 | G128: 155.18 | H128: 174.48 | I128: 179.42 | J128: 184.13 | K128: 174.7 | L128: 165.05 | M128: 1.34867
A129: 119 | B129: DIVISLAB | C129: 1576.65 | D129: 1587.55 | E129: 1559.10 | F129: 1541.55 | G129: 1513.10 | H129: 1605.10 | I129: 1633.55 | J129: 1651.10 | K129: 1616 | L129: 1570 | M129: 4.19022
A130: 120 | B130: DIXON | C130: 2692.85 | D130: 2636.28 | E130: 2547.57 | F130: 2402.28 | G130: 2313.57 | H130: 2781.57 | I130: 2870.28 | J130: 3015.57 | K130: 2725 | L130: 2491 | M130: 0.33624
A131: 121 | B131: LALPATHLAB | C131: 1175.45 | D131: 1174.02 | E131: 1159.53 | F131: 1143.62 | G131: 1129.13 | H131: 1189.93 | I131: 1204.42 | J131: 1220.33 | K131: 1188.5 | L131: 1158.1 | M131: 0.15817
A132: 122 | B132: DRREDDY | C132: 2512.1 | D132: 2528.18 | E132: 2487.37 | F132: 2462.63 | G132: 2421.82 | H132: 2552.92 | I132: 2593.73 | J132: 2618.47 | K132: 2569 | L132: 2503.45 | M132: 4.23228
A133: 123 | B133: EIDPARRY | C133: 152.25 | D133: 155.20 | E133: 148.65 | F133: 145.05 | G133: 138.50 | H133: 158.80 | I133: 165.35 | J133: 168.95 | K133: 161.75 | L133: 151.6 | M133: 1.73209
A134: 124 | B134: EIHOTEL | C134: 162.05 | D134: 162.15 | E134: 159.95 | F134: 157.85 | G134: 155.65 | H134: 164.25 | I134: 166.45 | J134: 168.55 | K134: 164.35 | L134: 160.05 | M134: 1.13839
A135: 125 | B135: EDELWEISS | C135: 118.7 | D135: 119.07 | E135: 113.63 | F135: 108.57 | G135: 103.13 | H135: 124.13 | I135: 129.57 | J135: 134.63 | K135: 124.5 | L135: 114 | M135: 44.78092
A136: 126 | B136: EICHERMOT | C136: 16297.45 | D136: 16155.02 | E136: 15967.68 | F136: 15637.92 | G136: 15450.58 | H136: 16484.78 | I136: 16672.12 | J136: 17001.88 | K136: 16342.35 | L136: 15825.25 | M136: 1.93318
A137: 127 | B137: ELGIEQUIP | C137: 244.85 | D137: 242.02 | E137: 239.03 | F137: 233.22 | G137: 230.23 | H137: 247.83 | I137: 250.82 | J137: 256.63 | K137: 245 | L137: 236.2 | M137: 0.02125
A138: 128 | B138: EMAMILTD | C138: 301.1 | D138: 302.37 | E138: 298.73 | F138: 296.37 | G138: 292.73 | H138: 304.73 | I138: 308.37 | J138: 310.73 | K138: 306 | L138: 300 | M138: 1.47514
A139: 129 | B139: ENDURANCE | C139: 892.4 | D139: 893.85 | E139: 871.20 | F139: 850.00 | G139: 827.35 | H139: 915.05 | I139: 937.70 | J139: 958.90 | K139: 916.5 | L139: 872.65 | M139: 0.26298
A140: 130 | B140: ENGINERSIN | C140: 104.1 | D140: 105.12 | E140: 102.48 | F140: 100.87 | G140: 98.23 | H140: 106.73 | I140: 109.37 | J140: 110.98 | K140: 107.75 | L140: 103.5 | M140: 29.87918
A141: 131 | B141: EQUITAS | C141: 105 | D141: 105.48 | E141: 100.82 | F141: 96.63 | G141: 91.97 | H141: 109.67 | I141: 114.33 | J141: 118.52 | K141: 110.15 | L141: 101.3 | M141: 22.9864
A142: 132 | B142: ERIS | C142: 375.2 | D142: 375.58 | E142: 370.27 | F142: 365.33 | G142: 360.02 | H142: 380.52 | I142: 385.83 | J142: 390.77 | K142: 380.9 | L142: 370.65 | M142: 1.17954
A143: 133 | B143: ESCORTS | C143: 492.75 | D143: 493.25 | E143: 486.10 | F143: 479.45 | G143: 472.30 | H143: 499.90 | I143: 507.05 | J143: 513.70 | K143: 500.4 | L143: 486.6 | M143: 24.723
A144: 134 | B144: ESSELPACK | C144: 95.3 | D144: 93.77 | E144: 91.73 | F144: 88.17 | G144: 86.13 | H144: 97.33 | I144: 99.37 | J144: 102.93 | K144: 95.8 | L144: 90.2 | M144: 3.8415
A145: 135 | B145: EXIDEIND | C145: 178.4 | D145: 179.88 | E145: 176.47 | F145: 174.53 | G145: 171.12 | H145: 181.82 | I145: 185.23 | J145: 187.17 | K145: 183.3 | L145: 177.95 | M145: 7.88967
A146: 136 | B146: FDC | C146: 160.8 | D146: 161.07 | E146: 159.68 | F146: 158.57 | G146: 157.18 | H146: 162.18 | I146: 163.57 | J146: 164.68 | K146: 162.45 | L146: 159.95 | M146: 0.0683
A147: 137 | B147: FEDERALBNK | C147: 81.85 | D147: 82.87 | E147: 80.48 | F147: 79.12 | G147: 76.73 | H147: 84.23 | I147: 86.62 | J147: 87.98 | K147: 85.25 | L147: 81.5 | M147: 124.16532
A148: 138 | B148: FINEORG | C148: 1420.15 | D148: 1418.40 | E148: 1403.80 | F148: 1387.45 | G148: 1372.85 | H148: 1434.75 | I148: 1449.35 | J148: 1465.70 | K148: 1433 | L148: 1402.05 | M148: 0.01812
A149: 139 | B149: FINCABLES | C149: 362.35 | D149: 364.43 | E149: 357.97 | F149: 353.58 | G149: 347.12 | H149: 368.82 | I149: 375.28 | J149: 379.67 | K149: 370.9 | L149: 360.05 | M149: 2.43052
A150: 140 | B150: FINPIPE | C150: 509.1 | D150: 511.55 | E150: 503.55 | F150: 498.00 | G150: 490.00 | H150: 517.10 | I150: 525.10 | J150: 530.65 | K150: 519.55 | L150: 506 | M150: 0.13032
A151: 141 | B151: FSL | C151: 47.85 | D151: 48.55 | E151: 46.90 | F151: 45.95 | G151: 44.30 | H151: 49.50 | I151: 51.15 | J151: 52.10 | K151: 50.2 | L151: 47.6 | M151: 12.65965
A152: 142 | B152: FORTIS | C152: 122.35 | D152: 122.02 | E152: 121.23 | F152: 120.12 | G152: 119.33 | H152: 123.13 | I152: 123.92 | J152: 125.03 | K152: 122.8 | L152: 120.9 | M152: 2.8591
A153: 143 | B153: FCONSUMER | C153: 28.85 | D153: 28.85 | E153: 28.20 | F153: 27.55 | G153: 26.90 | H153: 29.50 | I153: 30.15 | J153: 30.80 | K153: 29.5 | L153: 28.2 | M153: 8.74156
A154: 144 | B154: FLFL | C154: 434.45 | D154: 438.67 | E154: 427.98 | F154: 421.52 | G154: 410.83 | H154: 445.13 | I154: 455.82 | J154: 462.28 | K154: 449.35 | L154: 432.2 | M154: 0.0954
A155: 145 | B155: FRETAIL | C155: 391 | D155: 394.75 | E155: 385.55 | F155: 380.10 | G155: 370.90 | H155: 400.20 | I155: 409.40 | J155: 414.85 | K155: 403.95 | L155: 389.3 | M155: 6.06326
A156: 146 | B156: GAIL | C156: 128.05 | D156: 129.72 | E156: 125.83 | F156: 123.62 | G156: 119.73 | H156: 131.93 | I156: 135.82 | J156: 138.03 | K156: 133.6 | L156: 127.5 | M156: 113.70702
A157: 147 | B157: GEPIL | C157: 794.2 | D157: 784.40 | E157: 767.80 | F157: 741.40 | G157: 724.80 | H157: 810.80 | I157: 827.40 | J157: 853.80 | K157: 801 | L157: 758 | M157: 0.29138
A158: 148 | B158: GET&D | C158: 151.8 | D158: 152.17 | E158: 149.33 | F158: 146.87 | G158: 144.03 | H158: 154.63 | I158: 157.47 | J158: 159.93 | K158: 155 | L158: 149.7 | M158: 0.12615
A159: 149 | B159: GHCL | C159: 194.05 | D159: 195.30 | E159: 190.95 | F159: 187.85 | G159: 183.50 | H159: 198.40 | I159: 202.75 | J159: 205.85 | K159: 199.65 | L159: 192.2 | M159: 0.73812
A160: 150 | B160: GMRINFRA | C160: 15.25 | D160: 15.33 | E160: 15.07 | F160: 14.88 | G160: 14.62 | H160: 15.52 | I160: 15.78 | J160: 15.97 | K160: 15.6 | L160: 15.15 | M160: 64.63307
A161: 151 | B161: GALAXYSURF | C161: 1318.95 | D161: 1317.65 | E161: 1302.30 | F161: 1285.65 | G161: 1270.30 | H161: 1334.30 | I161: 1349.65 | J161: 1366.30 | K161: 1333 | L161: 1301 | M161: 0.08753
A162: 152 | B162: GDL | C162: 98 | D162: 99.15 | E162: 96.35 | F162: 94.70 | G162: 91.90 | H162: 100.80 | I162: 103.60 | J162: 105.25 | K162: 101.95 | L162: 97.5 | M162: 0.5373
A163: 153 | B163: GAYAPROJ | C163: 109.1 | D163: 109.72 | E163: 107.48 | F163: 105.87 | G163: 103.63 | H163: 111.33 | I163: 113.57 | J163: 115.18 | K163: 111.95 | L163: 108.1 | M163: 0.09497
A164: 154 | B164: GICRE | C164: 171.5 | D164: 173.77 | E164: 167.78 | F164: 164.07 | G164: 158.08 | H164: 177.48 | I164: 183.47 | J164: 187.18 | K164: 179.75 | L164: 170.05 | M164: 0.49563
A165: 155 | B165: GILLETTE | C165: 7016.3 | D165: 7046.47 | E165: 6959.93 | F165: 6903.57 | G165: 6817.03 | H165: 7102.83 | I165: 7189.37 | J165: 7245.73 | K165: 7133 | L165: 6990.1 | M165: 0.01724
A166: 156 | B166: GSKCONS | C166: 7918.2 | D166: 7951.25 | E166: 7822.50 | F166: 7726.80 | G166: 7598.05 | H166: 8046.95 | I166: 8175.70 | J166: 8271.40 | K166: 8080 | L166: 7855.55 | M166: 0.09969
A167: 157 | B167: GLAXO | C167: 1201.7 | D167: 1200.88 | E167: 1194.77 | F167: 1187.83 | G167: 1181.72 | H167: 1207.82 | I167: 1213.93 | J167: 1220.87 | K167: 1207 | L167: 1193.95 | M167: 0.21171
A168: 158 | B168: GLENMARK | C168: 378.4 | D168: 377.38 | E168: 372.82 | F168: 367.23 | G168: 362.67 | H168: 382.97 | I168: 387.53 | J168: 393.12 | K168: 381.95 | L168: 371.8 | M168: 7.69987
A169: 159 | B169: GODFRYPHLP | C169: 1037.85 | D169: 1052.85 | E169: 1007.90 | F169: 977.95 | G169: 933.00 | H169: 1082.80 | I169: 1127.75 | J169: 1157.70 | K169: 1097.8 | L169: 1022.9 | M169: 5.11643
A170: 160 | B170: GODREJAGRO | C170: 456.5 | D170: 458.17 | E170: 451.33 | F170: 446.17 | G170: 439.33 | H170: 463.33 | I170: 470.17 | J170: 475.33 | K170: 465 | L170: 453 | M170: 0.18709
A171: 161 | B171: GODREJCP | C171: 600.2 | D171: 597.53 | E171: 590.07 | F171: 579.93 | G171: 572.47 | H171: 607.67 | I171: 615.13 | J171: 625.27 | K171: 605 | L171: 587.4 | M171: 11.08391
A172: 162 | B172: GODREJIND | C172: 426.5 | D172: 431.22 | E172: 419.43 | F172: 412.37 | G172: 400.58 | H172: 438.28 | I172: 450.07 | J172: 457.13 | K172: 443 | L172: 424.15 | M172: 0.89544
A173: 163 | B173: GODREJPROP | C173: 891.9 | D173: 894.67 | E173: 885.33 | F173: 878.77 | G173: 869.43 | H173: 901.23 | I173: 910.57 | J173: 917.13 | K173: 904 | L173: 888.1 | M173: 1.84157
A174: 164 | B174: GRANULES | C174: 92.85 | D174: 92.63 | E174: 91.77 | F174: 90.68 | G174: 89.82 | H174: 93.72 | I174: 94.58 | J174: 95.67 | K174: 93.5 | L174: 91.55 | M174: 3.91959
A175: 165 | B175: GRAPHITE | C175: 281.2 | D175: 284.93 | E175: 276.27 | F175: 271.33 | G175: 262.67 | H175: 289.87 | I175: 298.53 | J175: 303.47 | K175: 293.6 | L175: 280 | M175: 5.13189
A176: 166 | B176: GRASIM | C176: 713.5 | D176: 718.10 | E176: 703.50 | F176: 693.50 | G176: 678.90 | H176: 728.10 | I176: 742.70 | J176: 752.70 | K176: 732.7 | L176: 708.1 | M176: 13.94469
A177: 167 | B177: GESHIP | C177: 238.9 | D177: 239.08 | E177: 235.67 | F177: 232.43 | G177: 229.02 | H177: 242.32 | I177: 245.73 | J177: 248.97 | K177: 242.5 | L177: 235.85 | M177: 0.19147
A178: 168 | B178: GREAVESCOT | C178: 124 | D178: 124.73 | E178: 120.97 | F178: 117.93 | G178: 114.17 | H178: 127.77 | I178: 131.53 | J178: 134.57 | K178: 128.5 | L178: 121.7 | M178: 1.8175
A179: 169 | B179: GRINDWELL | C179: 546.6 | D179: 550.37 | E179: 537.93 | F179: 529.27 | G179: 516.83 | H179: 559.03 | I179: 571.47 | J179: 580.13 | K179: 562.8 | L179: 541.7 | M179: 0.07784
A180: 170 | B180: GRUH | C180: 253.55 | D180: 253.12 | E180: 249.83 | F180: 246.12 | G180: 242.83 | H180: 256.83 | I180: 260.12 | J180: 263.83 | K180: 256.4 | L180: 249.4 | M180: 3.58091
A181: 171 | B181: GUJALKALI | C181: 399.95 | D181: 404.10 | E181: 391.85 | F181: 383.75 | G181: 371.50 | H181: 412.20 | I181: 424.45 | J181: 432.55 | K181: 416.35 | L181: 396 | M181: 0.25285
A182: 172 | B182: GUJGASLTD | C182: 178.25 | D182: 178.60 | E182: 176.20 | F182: 174.15 | G182: 171.75 | H182: 180.65 | I182: 183.05 | J182: 185.10 | K182: 181 | L182: 176.55 | M182: 1.09579
A183: 173 | B183: GMDCLTD | C183: 63.9 | D183: 64.42 | E183: 62.88 | F183: 61.87 | G183: 60.33 | H183: 65.43 | I183: 66.97 | J183: 67.98 | K183: 65.95 | L183: 63.4 | M183: 0.77037
A184: 174 | B184: GNFC | C184: 182.75 | D184: 185.72 | E184: 178.53 | F184: 174.32 | G184: 167.13 | H184: 189.93 | I184: 197.12 | J184: 201.33 | K184: 192.9 | L184: 181.5 | M184: 2.03207
A185: 175 | B185: GPPL | C185: 79.05 | D185: 80.08 | E185: 77.27 | F185: 75.48 | G185: 72.67 | H185: 81.87 | I185: 84.68 | J185: 86.47 | K185: 82.9 | L185: 78.3 | M185: 1.12913
A186: 176 | B186: GSFC | C186: 72.25 | D186: 73.22 | E186: 70.58 | F186: 68.92 | G186: 66.28 | H186: 74.88 | I186: 77.52 | J186: 79.18 | K186: 75.85 | L186: 71.55 | M186: 3.53393
A187: 177 | B187: GSPL | C187: 218.9 | D187: 217.10 | E187: 214.20 | F187: 209.50 | G187: 206.60 | H187: 221.80 | I187: 224.70 | J187: 229.40 | K187: 220 | L187: 212.4 | M187: 22.37039
A188: 178 | B188: GULFOILLUB | C188: 845.35 | D188: 847.38 | E188: 838.12 | F188: 830.88 | G188: 821.62 | H188: 854.62 | I188: 863.88 | J188: 871.12 | K188: 856.65 | L188: 840.15 | M188: 0.08132
A189: 179 | B189: HEG | C189: 934.3 | D189: 944.28 | E189: 921.02 | F189: 907.73 | G189: 884.47 | H189: 957.57 | I189: 980.83 | J189: 994.12 | K189: 967.55 | L189: 931 | M189: 1.63008
A190: 180 | B190: HCLTECH | C190: 1123.95 | D190: 1115.42 | E190: 1100.83 | F190: 1077.72 | G190: 1063.13 | H190: 1138.53 | I190: 1153.12 | J190: 1176.23 | K190: 1130 | L190: 1092.3 | M190: 34.92642
A191: 181 | B191: HDFCAMC | C191: 2400.15 | D191: 2414.32 | E191: 2349.83 | F191: 2299.52 | G191: 2235.03 | H191: 2464.63 | I191: 2529.12 | J191: 2579.43 | K191: 2478.8 | L191: 2364 | M191: 8.40356
A192: 182 | B192: HDFCBANK | C192: 2247.5 | D192: 2243.73 | E192: 2230.12 | F192: 2212.73 | G192: 2199.12 | H192: 2261.12 | I192: 2274.73 | J192: 2292.12 | K192: 2257.35 | L192: 2226.35 | M192: 34.15647
A193: 183 | B193: HDFCLIFE | C193: 547.7 | D193: 547.73 | E193: 538.07 | F193: 528.43 | G193: 518.77 | H193: 557.37 | I193: 567.03 | J193: 576.67 | K193: 557.4 | L193: 538.1 | M193: 75.23593
A194: 184 | B194: HATHWAY | C194: 33.25 | D194: 31.53 | E194: 29.82 | F194: 26.38 | G194: 24.67 | H194: 34.97 | I194: 36.68 | J194: 40.12 | K194: 33.25 | L194: 28.1 | M194: 23.26437
A195: 185 | B195: HATSUN | C195: 597.55 | D195: 597.33 | E195: 594.67 | F195: 591.78 | G195: 589.12 | H195: 600.22 | I195: 602.88 | J195: 605.77 | K195: 600 | L195: 594.45 | M195: 0.01625
A196: 186 | B196: HAVELLS | C196: 666.2 | D196: 666.02 | E196: 660.18 | F196: 654.17 | G196: 648.33 | H196: 672.03 | I196: 677.87 | J196: 683.88 | K196: 671.85 | L196: 660 | M196: 9.99474
A197: 187 | B197: HEIDELBERG | C197: 200.4 | D197: 199.40 | E197: 196.30 | F197: 192.20 | G197: 189.10 | H197: 203.50 | I197: 206.60 | J197: 210.70 | K197: 202.5 | L197: 195.3 | M197: 3.51544
A198: 188 | B198: HERITGFOOD | C198: 333.8 | D198: 336.27 | E198: 327.53 | F198: 321.27 | G198: 312.53 | H198: 342.53 | I198: 351.27 | J198: 357.53 | K198: 345 | L198: 330 | M198: 0.11333
A199: 189 | B199: HEROMOTOCO | C199: 2568.5 | D199: 2583.17 | E199: 2540.33 | F199: 2512.17 | G199: 2469.33 | H199: 2611.33 | I199: 2654.17 | J199: 2682.33 | K199: 2626 | L199: 2555 | M199: 6.3176
A200: 190 | B200: HEXAWARE | C200: 386.65 | D200: 389.73 | E200: 382.22 | F200: 377.78 | G200: 370.27 | H200: 394.17 | I200: 401.68 | J200: 406.12 | K200: 397.25 | L200: 385.3 | M200: 6.32373
A201: 191 | B201: HFCL | C201: 18.7 | D201: 18.87 | E201: 18.53 | F201: 18.37 | G201: 18.03 | H201: 19.03 | I201: 19.37 | J201: 19.53 | K201: 19.2 | L201: 18.7 | M201: 11.17559
A202: 192 | B202: HSCL | C202: 79.75 | D202: 80.53 | E202: 78.27 | F202: 76.78 | G202: 74.52 | H202: 82.02 | I202: 84.28 | J202: 85.77 | K202: 82.8 | L202: 79.05 | M202: 1.75813
A203: 193 | B203: HIMATSEIDE | C203: 128.75 | D203: 130.58 | E203: 126.67 | F203: 124.58 | G203: 120.67 | H203: 132.67 | I203: 136.58 | J203: 138.67 | K203: 134.5 | L203: 128.5 | M203: 0.34466
A204: 194 | B204: HINDALCO | C204: 178.4 | D204: 178.97 | E204: 175.93 | F204: 173.47 | G204: 170.43 | H204: 181.43 | I204: 184.47 | J204: 186.93 | K204: 182 | L204: 176.5 | M204: 58.51491
A205: 195 | B205: HAL | C205: 656.05 | D205: 657.33 | E205: 648.72 | F205: 641.38 | G205: 632.77 | H205: 664.67 | I205: 673.28 | J205: 680.62 | K205: 665.95 | L205: 650 | M205: 0.0452
A206: 196 | B206: HINDCOPPER | C206: 30.9 | D206: 31.37 | E206: 30.23 | F206: 29.57 | G206: 28.43 | H206: 32.03 | I206: 33.17 | J206: 33.83 | K206: 32.5 | L206: 30.7 | M206: 4.64826
... 320 more rows

Sheet Bulk Deals
E6: Back To Main Page
A7: Subject : | B7: BULK DEAL | D7: =Main!B10 -> 2019-08-29
A9: Date | B9: Scrip code | C9: Scrip Name | D9: Client Name | E9: Buy / Sell | F9: Quantity Traded | G9: Trade Price / Wt.Avg.trade price | H9: Exchange
A10: 2019-08-28 | B10: 532975 | C10: AISHWARYA | D10: SRINIDHI INFIN LIMITED | E10: BUY | F10: 218,397 | G10: 1.68 | H10: BSE
A11: 2019-08-28 | B11: 532975 | C11: AISHWARYA | D11: SRINIVAS PARAMKUSHAM | E11: SELL | F11: 223,640 | G11: 1.68 | H11: BSE
A12: 2019-08-28 | B12: 513117 | C12: AMFORG | D12: NAINESH TRADING AND CONSULTANCY LLP | E12: BUY | F12: 150,000 | G12: 1.08 | H12: BSE
A13: 2019-08-28 | B13: 513117 | C13: AMFORG | D13: VINIYOG INVESTMENT AND TRADING COMPANY PRIVATE LIMITED | E13: SELL | F13: 150,000 | G13: 1.08 | H13: BSE
A14: 2019-08-28 | B14: 533144 | C14: COX&KINGS | D14: THE BOARD OF REGENTS OF THE UNIVERSITY OF TEXAS SYSTEM - SAGA TREE CAPITAL ADVISORS PTE LTD | E14: SELL | F14: 1,267,708 | G14: 4.69 | H14: BSE
A15: 2019-08-28 | B15: 533144 | C15: COX&KINGS | D15: ALPHA LEON ENTERPRISES LLP | E15: BUY | F15: 1,300,971 | G15: 4.71 | H15: BSE
A16: 2019-08-28 | B16: 533144 | C16: COX&KINGS | D16: ALPHA LEON ENTERPRISES LLP | E16: SELL | F16: 523,426 | G16: 4.64 | H16: BSE
A17: 2019-08-28 | B17: 540903 | C17: CRPRISK | D17: NISHIL SURENDRABHAI MARFATIA | E17: BUY | F17: 118,000 | G17: 21.00 | H17: BSE
A18: 2019-08-28 | B18: 540903 | C18: CRPRISK | D18: AMRUTLAL VANMALIDAS SHAH | E18: SELL | F18: 118,000 | G18: 21.00 | H18: BSE
A19: 2019-08-28 | B19: 522183 | C19: ITL | D19: SASMEETA SRIVASTAVA | E19: BUY | F19: 20,000 | G19: 98.90 | H19: BSE
A20: 2019-08-28 | B20: 522183 | C20: ITL | D20: PAYAL T SHRIVASTAVA | E20: SELL | F20: 23,589 | G20: 98.72 | H20: BSE
A21: 2019-08-28 | B21: 540756 | C21: KAARYAFSL | D21: SHREYA NISHIL MARFATIA | E21: BUY | F21: 45,000 | G21: 19.00 | H21: BSE
A22: 2019-08-28 | B22: 540756 | C22: KAARYAFSL | D22: NISHIL SURENDRABHAI MARFATIA | E22: BUY | F22: 57,000 | G22: 18.39 | H22: BSE
A23: 2019-08-28 | B23: 540756 | C23: KAARYAFSL | D23: KARAN JITENDRA SHAH | E23: SELL | F23: 45,000 | G23: 19 | H23: BSE
A24: 2019-08-28 | B24: 540756 | C24: KAARYAFSL | D24: AMRUTLAL VANMALIDAS SHAH | E24: SELL | F24: 45,000 | G24: 18.50 | H24: BSE
A25: 2019-08-28 | B25: 541634 | C25: RAWEDGE | D25: TRANSLANDS INFRASTRUCTURE DEVELOPERS PRIVATE LIMITED | E25: BUY | F25: 73,600 | G25: 70 | H25: BSE
A26: 2019-08-28 | B26: 542725 | C26: SBC | D26: JAYESH SETH | E26: BUY | F26: 84,000 | G26: 24.14 | H26: BSE
A27: 2019-08-28 | B27: 539520 | C27: SHAILJA | D27: RANJEET SINGH | E27: BUY | F27: 25,000 | G27: 8.08 | H27: BSE
A28: 2019-08-28 | B28: 539520 | C28: SHAILJA | D28: RANJEET SINGH | E28: SELL | F28: 25,000 | G28: 7.37 | H28: BSE
A29: 2019-08-28 | B29: 539520 | C29: SHAILJA | D29: RAM SAGAR TIWARI | E29: BUY | F29: 25,000 | G29: 7.37 | H29: BSE
A30: 2019-08-28 | B30: 539520 | C30: SHAILJA | D30: RAM SAGAR TIWARI | E30: SELL | F30: 25,000 | G30: 8.08 | H30: BSE
A31: 2019-08-28 | B31: 539026 | C31: SSPNFIN | D31: SAINT GLOBAL MARKETS LLP | E31: SELL | F31: 12,000 | G31: 47.38 | H31: BSE
A32: 2019-08-28 | B32: 532646 | C32: UNIPLY | D32: KESHAV KANTAMNENI | E32: BUY | F32: 1,330,000 | G32: 55.5 | H32: BSE
A33: 2019-08-28 | B33: 532646 | C33: UNIPLY | D33: KKN HOLDINGS PVT. LTD. | E33: SELL | F33: 1,330,000 | G33: 55.5 | H33: BSE
A34: 2019-08-28 | B34: 531867 | C34: UNITINT | D34: HEMIL MAYURBHAI SHAH | E34: BUY | F34: 100,000 | G34: 5.03 | H34: BSE
A35: 2019-08-28 | B35: 531867 | C35: UNITINT | D35: JINAL DIPAKBHAI SHAH | E35: SELL | F35: 99,477 | G35: 5.02 | H35: BSE
A36: 2019-08-28 | B36: 539402 | C36: VAL | D36: HIRAL AMARKUMAR SHAH | E36: BUY | F36: 48,000 | G36: 11.28 | H36: BSE
A37: 2019-08-28 | B37: 539402 | C37: VAL | D37: NOPEA CAPITAL SERVICES PRIVATE LIMITED | E37: SELL | F37: 48,000 | G37: 11.28 | H37: BSE
A38: 2019-08-28 | B38: 522108 | C38: YUKEN | D38: VEENA GIRDHARI MOTWANI | E38: BUY | F38: 68,200 | G38: 513.3 | H38: BSE
A39: 2019-08-28 | B39: 522108 | C39: YUKEN | D39: NEHA KISAN LAL | E39: BUY | F39: 70,150 | G39: 513.3 | H39: BSE
A40: 2019-08-28 | B40: 522108 | C40: YUKEN | D40: FAZAL NABI SHAIK | E40: SELL | F40: 136,000 | G40: 513.3 | H40: BSE
A41: 2019-08-28 | B41: ASTRON | C41: Astron Paper Bord Mil Ltd | D41: EURO PLUS CAPITAL LIMITED | E41: BUY | F41: 311,898 | G41: 91.18 | H41: NSE
A42: 2019-08-28 | B42: ASTRON | C42: Astron Paper Bord Mil Ltd | D42: SHAH NIRAJ RAJNIKANT | E42: BUY | F42: 240,100 | G42: 91.03 | H42: NSE
A43: 2019-08-28 | B43: DHFL | C43: Dewan Housing Fin Corp | D43: TOWER RESEARCH CAPITAL MARKETS INDIA PRIVATE LIMITED | E43: BUY | F43: 1,695,326 | G43: 47.23 | H43: NSE
A44: 2019-08-28 | B44: RELCAPITAL | C44: Reliance Capital Limited | D44: TOWER RESEARCH CAPITAL MARKETS INDIA PRIVATE LIMITED | E44: BUY | F44: 2,275,335 | G44: 35.28 | H44: NSE
A45: 2019-08-28 | B45: RELINFRA | C45: Reliance Infrastructu Ltd | D45: TOWER RESEARCH CAPITAL MARKETS INDIA PRIVATE LIMITED | E45: BUY | F45: 2,166,753 | G45: 39.15 | H45: NSE
A46: 2019-08-28 | B46: RELINFRA | C46: Reliance Infrastructu Ltd | D46: ALPHAGREP SECURITIES PRIVATE LIMITED | E46: BUY | F46: 1375505 | G46: 39.09 | H46: NSE
A47: 2019-08-28 | B47: TIMETECHNO | C47: Time Technoplast Limited | D47: DALTON ASIA (MASTER) FUND LP | E47: BUY | F47: 2331174 | G47: 64.35 | H47: NSE
A48: 2019-08-28 | B48: VASA | C48: Vasa Retail & Oversea Ltd | D48: SHRIVASTAV UTSAV PRAMODKUMAR | E48: BUY | F48: 172000 | G48: 17.95 | H48: NSE
A49: 2019-08-28 | B49: YESBANK | C49: Yes Bank Limited | D49: TOWER RESEARCH CAPITAL MARKETS INDIA PRIVATE LIMITED | E49: BUY | F49: 26709752 | G49: 61.27 | H49: NSE
A50: 2019-08-28 | B50: ASTRON | C50: Astron Paper Bord Mil Ltd | D50: SHAH NIRAJ RAJNIKANT | E50: SELL | F50: 240100 | G50: 91.21 | H50: NSE
A51: 2019-08-28 | B51: ASTRON | C51: Astron Paper Bord Mil Ltd | D51: RT SUPER TECHNOLOGIES PRIVATE LIMITED | E51: SELL | F51: 311898 | G51: 90.97 | H51: NSE
A52: 2019-08-28 | B52: DHFL | C52: Dewan Housing Fin Corp | D52: TOWER RESEARCH CAPITAL MARKETS INDIA PRIVATE LIMITED | E52: SELL | F52: 1695326 | G52: 47.15 | H52: NSE
A53: 2019-08-28 | B53: RELCAPITAL | C53: Reliance Capital Limited | D53: TOWER RESEARCH CAPITAL MARKETS INDIA PRIVATE LIMITED | E53: SELL | F53: 2275335 | G53: 35.36 | H53: NSE
A54: 2019-08-28 | B54: RELINFRA | C54: Reliance Infrastructu Ltd | D54: ALPHAGREP SECURITIES PRIVATE LIMITED | E54: SELL | F54: 1373185 | G54: 39.11 | H54: NSE
A55: 2019-08-28 | B55: RELINFRA | C55: Reliance Infrastructu Ltd | D55: TOWER RESEARCH CAPITAL MARKETS INDIA PRIVATE LIMITED | E55: SELL | F55: 2166753 | G55: 39.39 | H55: NSE
A56: 2019-08-28 | B56: SPENTEX | C56: Spentex Industries Ltd | D56: CITIGROUP VENTURE CAPITAL INTERNATIONAL GROWTH PATNERSHIP MAURITIUS LTD | E56: SELL | F56: 538225 | G56: 0.21 | H56: NSE
A57: 2019-08-28 | B57: TALWALKARS | C57: Talwalkar Fitness Ltd | D57: THE MASTER TRUST BANK OF JAPAN LTD. AS TRUSTEE FOR NISSAY WORLD SPORTS MOTHER FUND | E57: SELL | F57: 182747 | G57: 8.15 | H57: NSE
A58: 2019-08-28 | B58: TALWGYM | C58: Talwalkars Lifestyles Ltd | D58: THE MASTER TRUST BANK OF JAPAN LTD. AS TRUSTEE FOR NISSAY WORLD SPORTS MOTHER FUND | E58: SELL | F58: 177514 | G58: 14.4 | H58: NSE
A59: 2019-08-28 | B59: TIMETECHNO | C59: Time Technoplast Limited | D59: MORGAN STANLEY ASIA (SINGAPORE) PTE | E59: SELL | F59: 2191729 | G59: 64.35 | H59: NSE
A60: 2019-08-28 | B60: VASA | C60: Vasa Retail & Oversea Ltd | D60: SHRIVASTAVA PAYAL T | E60: SELL | F60: 172000 | G60: 17.95 | H60: NSE
A61: 2019-08-28 | B61: YESBANK | C61: Yes Bank Limited | D61: TOWER RESEARCH CAPITAL MARKETS INDIA PRIVATE LIMITED | E61: SELL | F61: 26709752 | G61: 61.33 | H61: NSE

Sheet Call Tracker (Equity & F&O)
M5: Back To Main Page
A6: Retail Research Technical Calls & Fundamental Performance Report for the month of August-2019
M7: =Main!B10 -> 2019-08-29
B8: Positional Call
A9: Sr.no | B9: Date | D9: Company | E9: Rec | F9: Rec Price | G9: Stop Loss*** | H9: Call Closed At | I9: Target | J9: Remark | K9: Profit / Loss per Share | L9: Gain / Loss % | M9: Status | N9: Closed Date | O9: NSE Closed Price
A10: 1 | B10: 2019-07-10 | D10: TCS | E10: Buy | F10: 2110 | G10: 1973 | H10: 2211 | I10: 2295-2345 | J10: Profit of Rs.101/- | K10: =H10-F10 -> 101 | L10: =K10/F10 -> 4.79% | M10: Successful | N10: 2019-08-01 | R10: H
A11: 2 | B11: 2019-07-12 | D11: LT | E11: Buy<> | F11: 1457 | G11: 1353 | H11: 1352.5 | I11: 1630-1680 | J11: Loss of Rs.104.50/- | K11: =H11-F11 -> -104.5 | L11: =K11/F11 -> -7.17% | M11: Unsuccessful | N11: 2019-08-01 | R11: H
A12: 3 | B12: 2019-07-17 | D12: BHARTIARTL | E12: Buy | F12: 348 | G12: 322 | H12: 373 | I12: 392 -396 | J12: Profit of Rs.25/- | K12: 25 | L12: 7.18% | M12: Successful | N12: 2019-08-06 | R12: R
A13: 4 | B13: 2019-07-18 | D13: NAVINFLUOR | E13: Buy | F13: 612 | G13: 570 | H13: 647 | I13: 680 -700 | J13: Profit of Rs.35/- | K13: =H13-F13 -> 35 | L13: =K13/F13 -> 5.72% | M13: Successful | N13: 2019-08-02 | R13: H
A14: 5 | B14: 2019-07-19 | D14: ACC | E14: Buy | F14: 1620 | G14: 1518 | H14: 1515 | I14: 1750-1800 | J14: Loss of Rs.105/- | K14: -105 | L14: -6.48% | M14: Unsuccessful | N14: 2019-08-01 | R14: H
A15: 6 | B15: 2019-07-22 | D15: MOTHERSUMI | E15: Buy | F15: 110 | G15: 103 | H15: 101.5 | I15: 121-123 | J15: Loss of Rs.8.5/- | K15: -8.5 | L15: -7.73% | M15: Unsuccessful | N15: 2019-08-05 | R15: R
A16: 7 | B16: 2019-07-26 | D16: M&M | E16: Buy | F16: 552.5 | G16: 530 | H16: 525 | I16: 590-600 | J16: Loss of Rs.27.5/- | K16: -27.5 | L16: -4.98% | M16: Unsuccessful | N16: 2019-08-07 | R16: H
A17: 8 | B17: 2019-07-26 | D17: GLENMARK | E17: Buy | F17: 425.5 | G17: 395 | H17: 432 | I17: 490-500 | J17: Profit of Rs.6.50/- | K17: =H17-F17 -> 6.5 | L17: =K17/F17 -> 1.53% | M17: Neutral | N17: 2019-08-09 | R17: H
A18: 9 | B18: 2019-07-31 | D18: BANKBARODA | E18: Buy | F18: 106.5 | G18: 99 | H18: 99 | I18: 120-122 | J18: Loss of Rs.7.5/- | K18: =H18-F18 -> -7.5 | L18: =K18/F18 -> -7.04% | M18: Unsuccessful | N18: 2019-08-07 | R18: H
A19: 10 | B19: 2019-08-01 | D19: WIPRO | E19: Sell | F19: 276 | G19: 292 | H19: 265 | I19: 250-240 | J19: Profit of Rs.11/- | K19: =F19-H19 -> 11 | L19: =K19/F19 -> 3.99% | M19: Successful | N19: 2019-08-02 | R19: H
A20: 11 | B20: 2019-08-01 | D20: TATASTEEL | E20: Buy | F20: 428.5 | G20: 405 | H20: 400.5 | I20: 470-475 | J20: Loss of Rs.28/- | K20: =H20-F20 -> -28 | L20: -6.53% | M20: Unsuccessful | N20: 2019-08-05 | R20: R
A21: 12 | B21: 2019-08-01 | D21: FEDERALBNK | E21: Buy | F21: 90.5 | G21: 84.7 | H21: 83.8 | I21: 101-103 | J21: Loss of Rs.6.70/- | K21: =H21-F21 -> -6.7 | L21: =K21/F21 -> -7.40% | M21: Unsuccessful | N21: 2019-08-13 | R21: R
A22: 13 | B22: 2019-08-01 | D22: HDFCBANK | E22: Buy | F22: 2205-2215 | G22: 2130 | I22: 2320-2370 | J22: Open | O22: =VLOOKUP(D22,Sheet2!A25:M1664,6,0) -> 2247.5 | R22: H
A23: 14 | B23: 2019-08-02 | D23: LT | E23: Buy | F23: 1345-1355 | G23: 1270 | I23: 1500 | J23: Open | O23: =VLOOKUP(D23,Sheet2!A26:M1665,6,0) -> 1344.65 | R23: H
A24: 15 | B24: 2019-08-02 | D24: ULTRACEMCO | E24: Buy | F24: 4291.5 | G24: 4080 | H24: 4080 | I24: 4700-4750 | J24: Loss of Rs.211.50/- | K24: =H24-F24 -> -211.5 | L24: =K24/F24 -> -4.93% | M24: Unsuccessful | N24: 2019-08-19 | R24: R
A25: 16 | B25: 2019-08-07 | D25: BAJFINANCE | E25: Buy{} | F25: 3295 | G25: 3118 | H25: 3261 | I25: 3550-3650 | J25: Loss of Rs.34/- | K25: =H25-F25 -> -34 | L25: =K25/F25 -> -1.03% | M25: Unsuccessful | N25: 2019-08-22 | R25: H
A26: 17 | B26: 2019-08-08 | D26: POWERGRID | E26: Buy | F26: 199 | G26: 187 | H26: 210.05 | I26: 220-224 | J26: Profit of Rs.11.05/- | K26: 11.05 | L26: 5.55% | M26: Successful | N26: 2019-08-16 | R26: R
A27: 18 | B27: 2019-08-09 | D27: ITC | E27: Buy | F27: 257 | G27: 246.3 | H27: 246.3 | I27: 275-280 | J27: Loss of Rs.10.70/- | K27: -10.7 | L27: -4.16% | M27: Unsuccessful | N27: 2019-08-21 | R27: R
A28: 19 | B28: 2019-08-09 | D28: TATASTEEL | E28: Buy | F28: 367.5 | G28: 330 | H28: 332 | I28: 440 | J28: Loss of Rs.35.50/- | K28: =H28-F28 -> -35.5 | L28: =K28/F28 -> -9.66% | M28: Unsuccessful | N28: 2019-08-26 | R28: R
A29: 20 | B29: 2019-08-09 | D29: M&M | E29: Buy | F29: 540 | G29: 515 | H29: 508.5 | I29: 575-585 | J29: Loss of Rs.31.50/- | K29: =H29-F29 -> -31.5 | L29: =K29/F29 -> -5.83% | M29: Unsuccessful | N29: 2019-08-14 | R29: H
A30: 21 | B30: 2019-08-09 | D30: SBIN | E30: Buy | F30: 296 | G30: 279 | H30: 278.5 | I30: 328-332 | J30: Loss of Rs.17.50/- | K30: -17.5 | L30: -5.91% | M30: Unsuccessful | N30: 2019-08-21 | R30: R
A31: 22 | B31: 2019-08-09 | D31: TATACHEM | E31: Buy | F31: 564-568 | G31: 534 | I31: 620-640 | J31: Open | O31: =VLOOKUP(D31,Sheet2!A34:M1673,6,0) -> 565 | R31: H
A32: 23 | B32: 2019-08-13 | D32: CONCOR | E32: Buy | F32: 478 | G32: 448 | H32: 496 | I32: 520-540 | J32: Profit of Rs.18/- | K32: =H32-F32 -> 18 | L32: =K32/F32 -> 3.77% | M32: Successful | N32: 2019-08-23 | R32: H
A33: 24 | B33: 2019-08-19 | D33: TATAELXSI | E33: Buy | F33: 635 | G33: 597 | H33: 660.5 | I33: 700-720 | J33: Part Profit of Rs.25.50/- | K33: =H33-F33 -> 25.5 | L33: =K33/F33 -> 4.02% | M33: Successful | N33: 2019-08-27 | O33: =VLOOKUP(D33,Sheet2!A36:M1675,6,0) -> 648.6 | R33: R
A34: 26 | B34: 2019-08-23 | D34: IOC | E34: Buy | F34: 122.5 | G34: 114.4 | H34: 127.5 | I34: 135 | J34: Part Profit of Rs.5/- | K34: =H34-F34 -> 5 | L34: =K34/F34 -> 4.08% | M34: Successful | N34: 2019-08-27 | O34: =VLOOKUP(D34,Sheet2!A37:M1676,6,0) -> 122.9 | R34: H
A38: CLBS = Closing Basis *** | F38: Reinitiated $
A39: Dividend adjusted <> | F39: Revised stoploss #
A40: Part book {}
B42: Momentum Call
A43: Sr.no | B43: Date | D43: Company | E43: Rec | F43: Rec Price | G43: Stop Loss | H43: Call Closed At | I43: Target | J43: Remark | K43: Profit / Loss per Share/Lot | L43: Gain / Loss % | M43: Gain / Loss per Lot | N43: Lot | O43: Status | P43: Closed Date
A44: 1 | B44: 2019-08-01 | D44: KOTAKBANK AUG FUT | E44: Buy | F44: 1498 | G44: 1467 | H44: 1516.5 | I44: 1540-1550 | J44: Profit of Rs.18.50/- | K44: =H44-F44 -> 18.5 | M44: =N44*K44 -> 7400 | N44: 400 | O44: Successful | P44: 2019-08-02 | R44: N
A45: 2 | B45: 2019-08-01 | D45: COLPAL AUG FUT | E45: Buy | F45: 1180.5 | G45: 1163 | H45: 1191.5 | I45: 1210 | J45: Profit of Rs.11/- | K45: 11 | M45: =N45*K45 -> 7700 | N45: 700 | O45: Successful | P45: 2019-08-02 | R45: N
A46: 3 | B46: 2019-08-02 | D46: NIFTY AUG FUT | E46: Buy | F46: 10920 | G46: 10880 | H46: 10975 | I46: 11000 | J46: Profit of Rs.55/- | K46: 55 | M46: 4125 | N46: 75 | O46: Successful | P46: 2019-08-02 | R46: R
A47: 4 | B47: 2019-08-02 | D47: BANKNIFTY AUG FUT | E47: Buy | F47: 28175 | G47: 28040 | H47: 28345 | I47: 28400 | J47: Profit of Rs.170/- | K47: 170 | M47: 3400 | N47: 20 | O47: Successful | P47: 2019-08-02 | R47: R
A48: 5 | B48: 2019-08-02 | D48: ICICIBANK | E48: Buy | F48: 407 | G48: 395 | H48: 416 | I48: 430-435 | J48: Profit of Rs.9/- | K48: 9 | L48: =K48/F48 -> 2.21% | O48: Successful | P48: 2019-08-02 | R48: H
A49: 6 | B49: 2019-08-02 | D49: AMARAJABAT AUG FUT | E49: Buy | F49: 656.5 | G49: 638 | H49: 639.5 | I49: 680-685 | J49: Loss of Rs.17/- | K49: =H49-F49 -> -17 | M49: =N49*K49 -> -11900 | N49: 700 | O49: Successful | P49: 2019-08-02 | R49: N
A50: 7 | B50: 2019-08-02 | D50: ACC | E50: Buy | F50: 1529 | G50: 1480 | H50: 1561 | I50: 1580 | J50: Profit of Rs.32/- | K50: 32 | L50: =K50/F50 -> 2.09% | O50: Successful | P50: 2019-08-07 | R50: H
A51: 8 | B51: 2019-08-05 | D51: ICICIBANK | E51: Buy | F51: 400 | G51: 389 | H51: 409 | I51: 420 | J51: Profit of Rs.9/- | K51: =H51-F51 -> 9 | L51: =K51/F51 -> 2.25% | O51: Successful | P51: 2019-08-06 | R51: H
A52: 9 | B52: 2019-08-05 | D52: KOTAKBANK AUG FUT | E52: Buy | F52: 1481.5 | G52: 1450 | H52: 1499 | I52: 1540 | J52: Profit of Rs.17.5/- | K52: 17.5 | M52: =N52*K52 -> 7000 | N52: 400 | O52: Successful | P52: 2019-08-07 | R52: N
A53: 10 | B53: 2019-08-05 | D53: NIITTECH AUG FUT | E53: Buy | F53: 1200 | G53: 1183 | H53: 1211 | I53: 1235 | J53: Profit of Rs.11/- | K53: =H53-F53 -> 11 | M53: =N53*K53 -> 8250 | N53: 750 | O53: Successful | P53: 2019-08-06 | R53: N
A54: 11 | B54: 2019-08-07 | D54: NIFTY AUG FUT | E54: Buy | F54: 10970 | G54: 10920 | H54: 10920 | I54: 11100 | J54: Loss of Rs.50/- | K54: -50 | M54: -3750 | N54: 75 | O54: UnSuccessful | P54: 2019-08-07 | R54: R
A55: 12 | B55: 2019-08-07 | D55: BANKNIFTY AUG FUT | E55: Buy | F55: 28180 | G55: 28040 | H55: 28040 | I55: 28400 | J55: Loss of Rs.140/- | K55: -140 | M55: -2800 | N55: 20 | O55: UnSuccessful | P55: 2019-08-07 | R55: R
A56: 13 | B56: 2019-08-08 | D56: ICICIBANK | E56: Buy | F56: 407 | G56: 394 | H56: 412.5 | I56: 425 | J56: Profit of Rs.5.50/- | K56: 5.5 | L56: =K56/F56 -> 1.35% | O56: Successful | P56: 2019-08-08 | R56: H
A57: 14 | B57: 2019-08-08 | D57: RELIANCE | E57: Buy | F57: 1115 | G57: 1088 | H57: 1134 | I57: 1160 | J57: Profit of Rs.19/- | K57: 19 | L57: 1.70% | O57: Successful | P57: 2019-08-08 | R57: H
A58: 15 | B58: 2019-08-08 | D58: AMARAJABAT AUG FUT | E58: Buy | F58: 643 | G58: 626 | H58: 654 | I58: 670 | J58: Profit of Rs.11/- | K58: 11 | M58: =N58*K58 -> 7700 | N58: 700 | O58: Successful | P58: 2019-08-09 | R58: N
A59: 16 | B59: 2019-08-08 | D59: TATAELXSI AUG FUT | E59: Buy | F59: 628 | G59: 608 | H59: 641 | I59: 665 | J59: Profit of Rs.13/- | K59: 13 | M59: 7800 | N59: 600 | O59: Successful | P59: 2019-08-09 | R59: N
A60: 17 | B60: 2019-08-09 | D60: DABUR AUG FUT | E60: Buy | F60: 436.5 | G60: 426 | H60: 442.25 | I60: 455 | J60: Profit of Rs.5.75/- | K60: 5.75 | M60: 7187.5 | N60: 1250 | O60: Successful | P60: 2019-08-09 | R60: N
A61: 18 | B61: 2019-08-09 | D61: AMARAJABAT AUG FUT | E61: Buy | F61: 641 | G61: 624 | H61: 624 | I61: 670 | J61: Loss of Rs.17/- | K61: =H61-F61 -> -17 | M61: -11900 | N61: 700 | O61: UnSuccessful | P61: 2019-08-13 | R61: N
A62: 19 | B62: 2019-08-13 | D62: SIEMENS AUG FUT | E62: Buy | F62: 1164.5 | G62: 1139 | H62: 1142.5 | I62: 1200 | J62: Loss of Rs.22/- | K62: -22 | M62: -12100 | N62: 550 | O62: UnSuccessful | P62: 2019-08-13 | R62: N
A63: 20 | B63: 2019-08-13 | D63: NIFTY AUG FUT | E63: Buy | F63: 11015 | G63: 10940 | H63: 10940 | I63: 11150 | J63: Loss of Rs.75/- | K63: =H63-F63 -> -75 | M63: =N63*K63 -> -5625 | N63: 75 | O63: UnSuccessful | P63: 2019-08-13 | R63: R
A64: 21 | B64: 2019-08-13 | D64: NIFTY AUG FUT | E64: Buy | F64: 11070 | G64: 10990 | H64: 11125 | I64: 11200 | J64: Profit of Rs.55/- | K64: 55 | M64: 4125 | N64: 75 | O64: Successful | P64: 2019-08-13 | R64: R
A65: 22 | B65: 2019-08-13 | D65: COLPAL | E65: Buy | F65: 1220 | G65: 1188 | H65: 1187 | I65: 1250-1260 | J65: Loss of Rs.33/- | K65: -33 | L65: =K65/F65 -> -2.70% | O65: UnSuccessful | P65: 2019-08-16 | R65: H
A66: 23 | B66: 2019-08-14 | D66: MARICO AUG FUT | E66: Buy | F66: 392.5 | G66: 386 | H66: 396.05 | I66: 405 | J66: Profit of Rs.3.55/- | K66: =H66-F66 -> 3.55 | M66: =N66*K66 -> 9230 | N66: 2600 | O66: Successful | P66: 2019-08-19 | R66: N
A67: 24 | B67: 2019-08-14 | D67: TORNTPOWER AUG FUT | E67: Sell | F67: 294.5 | G67: 299 | H67: 291.5 | I67: 282 | J67: Profit of Rs.3/- | K67: =F67-H67 -> 3 | M67: =N67*K67 -> 9000 | N67: 3000 | O67: Successful | P67: 2019-08-13 | R67: N
A68: 25 | B68: 2019-08-14 | D68: HINDUNILVR AUG FUT | E68: Buy | F68: 1848.5 | G68: 1818 | H68: 1818 | I68: 1900 | J68: Loss of Rs.30.5/- | K68: =H68-F68 -> -30.5 | M68: -9150 | N68: 300 | O68: UnSuccessful | P68: 2019-08-19 | R68: H
A69: 26 | B69: 2019-08-14 | D69: KOTAKBANK AUG FUT | E69: Buy | F69: 1485 | G69: 1455 | H69: 1501 | I69: 1540-1550 | J69: Profit of Rs.16/- | K69: =H69-F69 -> 16 | M69: =N69*K69 -> 6400 | N69: 400 | O69: Successful | P69: 2019-08-16 | R69: N
A70: 27 | B70: 2019-08-16 | D70: TVSMOTOR AUG FUT | E70: Buy | F70: 372 | G70: 360 | H70: 379.5 | I70: 390 | J70: Profit of Rs.7.50/- | K70: =H70-F70 -> 7.5 | M70: =N70*K70 -> 8250 | N70: 1100 | O70: Successful | P70: 2019-08-16 | R70: N
A71: 28 | B71: 2019-08-16 | D71: ASIANPAINT | E71: Sell | F71: 1578 | G71: 1624 | H71: 1577 | I71: 1520-1500 | J71: Neutral | K71: 1 | L71: =K71/F71 -> 0.06% | O71: Neutral | R71: H
A72: 29 | B72: 2019-08-19 | D72: ZEEL AUG FUT | E72: Sell | F72: 348 | G72: 356.3 | H72: 343.25 | I72: 330 | J72: Profit of Rs.4.75/- | K72: =F72-H72 -> 4.75 | M72: =N72*K72 -> 6175 | N72: 1300 | O72: Successful | P72: 2019-08-19 | R72: R
A73: 30 | B73: 2019-08-19 | D73: EXIDEIND AUG FUT | E73: Buy | F73: 179.5 | G73: 175 | H73: 175 | I73: 190 | J73: Loss of Rs.4.50/- | K73: =H73-F73 -> -4.5 | M73: -10800 | N73: 2400 | O73: UnSuccessful | P73: 2019-08-21 | R73: N
A74: 31 | B74: 2019-08-19 | D74: RAYMOND AUG FUT | E74: Buy | F74: 632 | G74: 616 | H74: 616.5 | I74: 660 | J74: Loss of Rs.15.5/- | K74: =H74-F74 -> -15.5 | M74: =N74*K74 -> -12400 | N74: 800 | O74: UnSuccessful | P74: 2019-08-19 | R74: N
A75: 32 | B75: 2019-08-20 | D75: APOLLOHOSP AUG FUT | E75: Buy | F75: 1467.5 | G75: 1491 | H75: 1451 | I75: 1420 | J75: Profit of Rs.16.50/- | K75: =F75-H75 -> 16.5 | M75: 8250 | N75: 500 | O75: Successful | P75: 2019-08-22 | R75: R
A76: 33 | B76: 2019-08-20 | D76: POWERGRID AUG FUT | E76: Buy | F76: 206.25 | G76: 203 | H76: 208.45 | I76: 212 | J76: Profit of Rs.2.20/- | K76: =H76-F76 -> 2.2 | M76: =N76*K76 -> 8800 | N76: 4000 | O76: Successful | P76: 2019-08-20 | R76: N
A77: 34 | B77: 2019-08-20 | D77: TVSMOTOR AUG FUT | E77: Buy | F77: 371 | G77: 360 | H77: 360 | I77: 390 | J77: Loss of Rs.11/- | K77: -11 | M77: -12100 | N77: 1100 | O77: UnSuccessful | P77: 2019-08-22 | R77: N
A78: 35 | B78: 2019-08-21 | D78: NIFTY AUG FUT | E78: Buy | F78: 11005 | G78: 10940 | H78: 10940 | I78: 11120 | J78: Loss of Rs.65/- | K78: =H78-F78 -> -65 | M78: =N78*K78 -> -4875 | N78: 75 | O78: UnSuccessful | P78: 2019-08-21 | R78: R
A79: 36 | B79: 2019-08-21 | D79: INDUSINDBK AUG FUT | E79: Buy | F79: 1406 | G79: 1375 | H79: 1377 | I79: 1450 | J79: Loss of Rs.29/- | K79: -29 | M79: -11600 | N79: 400 | O79: UnSuccessful | P79: 2019-08-21 | R79: N
A80: 37 | B80: 2019-08-21 | D80: POWERGRID AUG FUT | E80: Buy | F80: 206 | G80: 203 | H80: 203 | I80: 212 | J80: Loss of Rs.3/- | K80: =H80-F80 -> -3 | M80: =N80*K80 -> -12000 | N80: 4000 | O80: UnSuccessful | P80: 2019-08-22 | R80: N
A81: 38 | B81: 2019-08-22 | D81: ULTRACEMCO AUG FUT | E81: Buy | F81: 3935 | G81: 3880 | H81: 3880 | I81: 4020 | J81: Loss of Rs.55/- | K81: -55 | M81: -11000 | N81: 200 | O81: UnSuccessful | P81: 2019-08-22 | R81: H
A82: 39 | B82: 2019-08-22 | D82: NIFTY AUG FUT | E82: Buy | F82: 10840 | G82: 10740 | H82: 10740 | I82: 11000-11050 | J82: Loss of Rs.100/- | K82: =H82-F82 -> -100 | M82: =N82*K82 -> -7500 | N82: 75 | O82: UnSuccessful | P82: 2019-08-22 | R82: R
A83: 40 | B83: 2019-08-22 | D83: HDFC | E83: Buy | F83: 2030 | G83: 1990 | H83: 2092.5 | I83: 2100-2120 | J83: Profit of Rs.62.50/- | K83: 62.5 | L83: =K83/F83 -> 3.08% | O83: Successful | P83: 2019-08-26 | R83: H
A84: 41 | B84: 2019-08-23 | D84: JUSTDIAL | E84: Buy | F84: 674 | G84: 650 | H84: 692 | I84: 720 | J84: Profit of Rs.18/- | K84: =H84-F84 -> 18 | L84: =K84/F84 -> 2.67% | O84: Successful | P84: 2019-08-26 | R84: R
A85: 42 | B85: 2019-08-23 | D85: ICICIBANK | E85: Buy | F85: 392.5 | G85: 379 | H85: 401.5 | I85: 410-415 | J85: Profit of Rs.9/- | K85: =H85-F85 -> 9 | L85: =K85/F85 -> 2.29% | O85: Successful | P85: 2019-08-23 | R85: H
A86: 43 | B86: 2019-08-23 | D86: HINDALCO | E86: Buy | F86: 176 | G86: 169 | H86: 179.5 | I86: 185-189 | J86: Profit of Rs.3.50/- | K86: 3.5 | L86: 1.99% | O86: Successful | P86: 2019-08-23 | R86: H
A87: 44 | B87: 2019-08-23 | D87: SBIN | E87: Buy | F87: 273 | G87: 259 | H87: 288 | I87: 290-295 | J87: Profit of Rs.15/- | K87: 15 | L87: 5.49% | O87: Successful | P87: 2019-08-26 | R87: H
A88: 45 | B88: 2019-08-26 | D88: CONCOR SEP FUT | E88: Buy | F88: 487 | G88: 477 | H88: 493 | I88: 500-505 | J88: Profit of Rs.6/- | K88: 6 | M88: =N88*K88 -> 9378 | N88: 1563 | O88: Successful | P88: 2019-08-26 | R88: N
A89: 46 | B89: 2019-08-26 | D89: COLPAL SEP FUT | E89: Buy | F89: 1205 | G89: 1187 | H89: 1216 | I89: 1230-1240 | J89: Profit of Rs.11/- | K89: =H89-F89 -> 11 | M89: =N89*K89 -> 7700 | N89: 700 | O89: Successful | P89: 2019-08-27 | R89: N
A90: 47 | B90: 2019-08-27 | D90: EXIDEIND SEP FUT | E90: Buy | F90: 180.5 | G90: 175 | H90: 184.5 | I90: 192 | J90: Profit of Rs.4/- | K90: =H90-F90 -> 4 | M90: =N90*K90 -> 9600 | N90: 2400 | O90: Successful | P90: 2019-08-27 | R90: N
A91: 48 | B91: 2019-08-27 | D91: TORNTPOWER AUG FUT | E91: Sell | F91: 289.5 | G91: 294 | H91: 286 | I91: 280 | J91: Profit of Rs.3.50/- | K91: =F91-H91 -> 3.5 | M91: =N91*K91 -> 10500 | N91: 3000 | O91: Successful | P91: 2019-08-27 | R91: N
A92: 49 | B92: 2019-08-27 | D92: HINDALCO | E92: Buy | F92: 178.50-180.50 | G92: 173 | I92: 190-195 | J92: Open | R92: H
A93: 50 | B93: 2019-08-27 | D93: ICICIBANK | E93: Sell | F93: 419.5 | G93: 428 | H93: 411.5 | I93: 405 | J93: Profit of Rs.8/- | K93: 8 | L93: =K93/F93 -> 1.91% | O93: Successful | P93: 2019-08-28 | R93: H
A94: 51 | B94: 2019-08-28 | D94: HDFC SEP FUT | E94: Sell | F94: 2175-2180 | G94: 2202 | I94: 2140 | J94: Open
A100: CLBS = Closing Basis ***
A101: Dividend adjusted <> | F101: Reinitiated $
F102: Revised stoploss #
A104: Master Trade High Risk
A105: Sr.no | B105: Date | D105: Company | E105: Rec | F105: Rec Price | G105: Stop Loss | H105: Call Closed At | I105: Target | J105: Remark | K105: Profit / Loss per share | L105: Gain / Loss per Lot | M105: Lot | N105: Status | O105: Closed Date
A106: 1 | B106: 2019-08-01 | D106: NIFTY AUG FUT | E106: Buy | F106: 11075 | G106: 10945 | H106: 10945 | I106: 11350-11400 | J106: Loss of Rs.130/- | K106: =H106-F106 -> -130 | L106: =K106*M106 -> -9750 | M106: 75 | N106: Unsuccessful | O106: 2019-08-01 | R106: H
A107: 2 | B107: 2019-08-23 | D107: NIFTY AUG FUT | E107: Buy | F107: 10710 | G107: 10540 | H107: 10805 | I107: 10900 | J107: Profit of Rs.61/- | K107: =H107-F107 -> 95 | L107: =61*75 -> 4575 | M107: 75 | N107: Successful | O107: 2019-08-23 | R107: H
D108: Nifty AUG 10800 CE | E108: Sell | F108: 61 | H108: 95 | K108: -34 | R108: H
A109: 3 | B109: 2019-08-27 | D109: NIFTY AUG FUT | E109: Sell | F109: 11085 | G109: 11220 | H109: 11035 | I109: 10900 | J109: Profit of Rs.16/- | K109: =F109-H109 -> 50 | L109: =16*75 -> 1200 | M109: 75 | N109: Neutral | O109: 2019-08-28 | R109: H
D110: Nifty AUG 11100 CE | E110: Buy | F110: 61.50 | H110: 27.5 | K110: -34 | R110: H
A115: Master Trade Medium Risk
A116: Sr.no | B116: Date | D116: Company | E116: Rec | F116: Rec Price | G116: Stop Loss | H116: Call Closed At | I116: Target | J116: Remark | K116: Profit/ Loss per lot | L116: Gain / Loss per Lot | M116: Lot | N116: Status | O116: Closed Date
A117: 1 | B117: 2019-07-29 | D117: NIFTY 01-AUG 11300 CE | E117: Buy | F117: 33 | H117: 0 | I117: 60-80 | J117: Loss of Rs.33/- | K117: =H117-F117 -> -33 | L117: =K117*M117 -> -2475 | M117: 75 | N117: Unsuccessful | O117: 2019-08-01 | R117: H
A118: 2 | B118: 2019-08-02 | D118: NIFTY 8-AUG 11100 CE | E118: Buy | F118: 42 | G118: 15 | H118: 57 | I118: 80-90 | J118: Profit of Rs.15/- | K118: =H118-F118 -> 15 | L118: =K118*M118 -> 1125 | M118: 75 | N118: Successful | O118: 2019-08-02 | R118: H
A119: 3 | B119: 2019-08-05 | D119: NIFTY 8-AUG 11000 CE | E119: Buy | F119: 33.5 | G119: 8 | H119: 45 | I119: 80 | J119: Profit of Rs.11.5/- | K119: =H119-F119 -> 11.5 | L119: =K119*M119 -> 862.5 | M119: 75 | N119: Successful | O119: 2019-08-05 | R119: H
A120: 4 | B120: 2019-08-05 | D120: NIFTY 8-AUG 11000 CE | E120: Buy | F120: 33 | G120: 8 | H120: 39.5 | I120: 80 | J120: Profit of Rs.6.5/- | K120: =H120-F120 -> 6.5 | L120: =K120*M120 -> 487.5 | M120: 75 | N120: Successful | O120: 2019-08-05 | R120: H
A121: 5 | B121: 2019-08-06 | D121: NIFTY 8-AUG 10900 PE | E121: Buy | F121: 33 | G121: 8 | H121: 43 | I121: 80-90 | J121: Profit of Rs.10/- | K121: =H121-F121 -> 10 | L121: =K121*M121 -> 750 | M121: 75 | N121: Successful | O121: 2019-08-06 | R121: N
A122: 6 | B122: 2019-08-07 | D122: NIFTY 8-AUG 11000 CE | E122: Buy | F122: 31 | G122: 8 | H122: 41.5 | I122: 80 | J122: Profit of Rs.10.5/- | K122: 10.5 | L122: 787.5 | M122: 75 | N122: Successful | O122: 2019-08-07 | R122: H
A123: 6 | B123: 2019-08-07 | D123: NIFTY 14-AUG 11100 CE | E123: Buy | F123: 41.5 | G123: 15 | H123: 50.5 | I123: 80 | J123: Profit of Rs.9/- | K123: =H123-F123 -> 9 | L123: =K123*M123 -> 675 | M123: 75 | N123: Successful | O123: 2019-08-08 | R123: H
A124: 7 | B124: 2019-08-08 | D124: NIFTY 14-AUG 11200 CE | E124: Buy | F124: 28 | H124: 39 | I124: 60-80 | J124: Profit of Rs.11/- | K124: =H124-F124 -> 11 | L124: =K124*M124 -> 825 | M124: 75 | N124: Successful | O124: 2019-08-08 | R124: H
A125: 8 | B125: 2019-08-09 | D125: NIFTY 14-AUG 11000 PE | E125: Buy | F125: 30 | G125: 14 | H125: 40 | I125: 50-60 | J125: Profit of Rs.10/- | K125: =H125-F125 -> 10 | L125: =K125*M125 -> 750 | M125: 75 | N125: Successful | O125: 2019-08-09 | R125: H
A126: 9 | B126: 2019-08-09 | D126: NIFTY 14-AUG 11250 CE | E126: Buy | F126: 27 | G126: 8 | H126: 11 | I126: 50-60 | J126: Loss of Rs.16/- | K126: -16 | L126: -1200 | M126: 75 | N126: Unsuccessful | O126: 2019-08-13 | R126: H
A127: 10 | B127: 2019-08-14 | D127: HEROMOTOCO 2550 PE AUG | E127: Buy | F127: 40.5 | G127: 18 | H127: 52 | I127: 75-85 | J127: Profit of Rs.11.50/- | K127: =H127-F127 -> 11.5 | L127: =K127*M127 -> 2300 | M127: 200 | N127: Successful | O127: 2019-08-16 | R127: H
A128: 11 | B128: 2019-08-14 | D128: NIFTY 22-AUG 11200 CE | E128: Buy | F128: 38 | G128: 17 | H128: 22 | I128: 80 | J128: Loss of Rs.16/- | K128: =H128-F128 -> -16 | L128: =K128*M128 -> -1200 | M128: 75 | N128: Unsuccessful | O128: 2019-08-16 | R128: H
A129: 12 | B129: 2019-08-16 | D129: APOLLOHOSP AUG 1400 PE | E129: Buy | F129: 29 | G129: 9 | H129: 9 | I129: 60 | J129: Loss of Rs.16/- | K129: =H129-F129 -> -20 | L129: =K129*M129 -> -11000 | M129: 550 | N129: Unsuccessful | O129: 2019-08-21 | R129: R
A130: 13 | B130: 2019-08-20 | D130: VOLTAS AUG 590 PE | E130: Buy | F130: 5 | G130: 1.8 | H130: 6.4 | I130: 10.00-12.00 | J130: Profit of Rs.1.40/- | K130: =H130-F130 -> 1.4 | L130: =K130*M130 -> 1400 | M130: 1000 | N130: Successful | O130: 2019-08-20 | R130: H
A131: 14 | B131: 2019-08-20 | D131: NIFTY 29-AUG 11200 CE | E131: Buy | F131: 41 | G131: 17 | H131: 53 | I131: 80 | J131: Profit of Rs.12/- | K131: 12 | L131: 900 | M131: 75 | N131: Successful | O131: 2019-08-20 | R131: H
A132: 15 | B132: 2019-08-20 | D132: ICICIBANK AUG 420 CE | E132: Buy | F132: 6.05 | G132: 2 | H132: 1.9 | I132: 12.00-14.00 | J132: Loss of Rs.4.15/- | K132: -4.15 | L132: -5706.25 | M132: 1375 | N132: Unsuccessful | O132: 2019-08-22 | R132: H
A133: 16 | B133: 2019-08-22 | D133: NIFTY 29-AUG 11100 CE | E133: Buy | F133: 36.5 | G133: 17 | H133: 16.5 | I133: 70-80 | J133: Loss of Rs.20/- | K133: =H133-F133 -> -20 | L133: =K133*M133 -> -1500 | M133: 75 | N133: Unsuccessful | O133: 2019-08-22 | R133: H
A134: 17 | B134: 2019-08-22 | D134: BHARTIARTL AUG 360 CE | E134: Buy | F134: 4.15 | G134: 1.8 | H134: 4.8 | I134: 8.00-9.00 | J134: Profit of Rs.0.65/- | K134: 0.65 | L134: 1203.15 | M134: 1851 | N134: Successful | O134: 2019-08-23 | R134: N
A135: 18 | B135: 2019-08-22 | D135: BAJAJ-AUTO 29-AUG 2650 PE | E135: Buy | F135: 13 | G135: 0 | H135: 13 | I135: 35-40 | J135: Neutral | N135: Neutral | O135: 2019-08-22 | R135: H
A136: 19 | B136: 2019-08-23 | D136: BANKBARODA AUG 95 CE | E136: Buy | F136: 1.4 | G136: 0.4 | H136: 2 | I136: 4 | J136: Profit of Rs.0.6/- | K136: =H136-F136 -> 0.6 | L136: =K136*M136 -> 2700 | M136: 4500 | N136: Successful | O136: 2019-08-23 | R136: H
A137: 20 | B137: 2019-08-23 | D137: BHARTIARTL AUG 360 CE | E137: Buy | F137: 3.5 | G137: 1.2 | H137: 4.3 | I137: 8 | J137: Profit of Rs.0.80/- | K137: 0.8 | L137: 1480.8 | M137: 1851 | N137: Successful | O137: 2019-08-23 | R137: N
A138: 21 | B138: 2019-08-23 | D138: BAJAJ-AUTO 29-AUG 2750 | E138: Buy | F138: 38 | G138: 17 | H138: 48 | I138: 70-80 | J138: Profit of Rs.10/- | K138: 10 | L138: 2500 | M138: 250 | N138: Successful | O138: 2019-08-23 | R138: H
A139: 22 | B139: 2019-08-23 | D139: BAJAJ-AUTO 29-AUG 2750 | E139: Buy | F139: 37.5 | G139: 17 | H139: 48 | I139: 70-80 | J139: Profit of Rs.10.50/- | K139: =H139-F139 -> 10.5 | L139: =K139*M139 -> 2625 | M139: 250 | N139: Successful | O139: 2019-08-26 | R139: H
A140: 23 | B140: 2019-08-23 | D140: APOLLOHOSP AUG 1460 CE | E140: Buy | F140: 13 | G140: 4 | H140: 17.5 | I140: 30 | J140: Profit of Rs.4.50/- | K140: 4.5 | L140: 2250 | M140: 500 | N140: Successful | O140: 2019-08-26 | R140: N
A141: 24 | B141: 2019-08-23 | D141: KOTAKBANK AUG 1500 CE | E141: Buy | F141: 15 | G141: 4 | H141: 19.25 | I141: 30-35 | J141: Profit of Rs.4.25/- | K141: 4.25 | L141: 1700 | M141: 400 | N141: Successful | O141: 2019-08-26 | R141: N
A142: 25 | B142: 2019-08-23 | D142: BHARTIARTL AUG 350 PE | E142: Buy | F142: 3.5 | G142: 0.9 | H142: 4.4 | I142: 8 | J142: Profit of Rs.0.90/- | K142: =H142-F142 -> 0.9 | L142: =K142*M142 -> 1665.9 | M142: 1851 | N142: Successful | O142: 2019-08-26 | R142: N
A143: 26 | B143: 2019-08-26 | D143: NIFTY 29-AUG 11000 CE | E143: Buy | F143: 49 | G143: 17 | H143: 59 | I143: 70.8 | J143: Profit of Rs.10/- | K143: =H143-F143 -> 10 | L143: =K143*M143 -> 750 | M143: 75 | N143: Successful | O143: 2019-08-26 | R143: H
A144: 27 | B144: 2019-08-26 | D144: HINDUNILVR AUG 1880 CE | E144: Buy | F144: 12 | G144: 4 | H144: 19.5 | I144: 25-30 | J144: Profit of Rs.7.50/- | K144: =H144-F144 -> 7.5 | L144: =K144*M144 -> 2250 | M144: 300 | N144: Successful | O144: 2019-08-27 | R144: N
A145: 28 | B145: 2019-08-26 | D145: HINDALCO AUG 180 CE | E145: Buy | F145: 1.35 | G145: 0 | H145: 2.05 | I145: 2.50-3.00 | J145: Profit of Rs.0.70/- | K145: =H145-F145 -> 0.7 | L145: =K145*M145 -> 2450 | M145: 3500 | N145: Successful | O145: 2019-08-26 | R145: H
A146: 29 | B146: 2019-08-26 | D146: BAJFINANCE AUG 3300 CE | E146: Buy | F146: 32 | G146: 14 | H146: 42 | I146: 70 | J146: Profit of Rs.10/- | K146: =H146-F146 -> 10 | L146: =K146*M146 -> 2500 | M146: 250 | N146: Successful | O146: 2019-08-26 | R146: H
A147: 30 | B147: 2019-08-27 | D147: NIFTY 29-AUG 11000 PE | E147: Buy | F147: 36 | G147: 17 | H147: 47 | I147: 70-80 | J147: Profit of Rs.11/- | K147: =H147-F147 -> 11 | L147: =K147*M147 -> 825 | M147: 75 | N147: Successful | O147: 2019-08-27 | R147: H
A148: 31 | B148: 2019-08-27 | D148: NIFTY 29-AUG 11000 PE | E148: Buy | F148: 34 | G148: 17 | H148: 44.5 | I148: 70-80 | J148: Profit of Rs.10.50/- | K148: 10.5 | L148: 787.5 | M148: 75 | N148: Successful | O148: 2019-08-27 | R148: H
A149: 32 | B149: 2019-08-27 | D149: HINDUNILVR AUG 1860 CE | E149: Buy | F149: 9.5 | G149: 0 | H149: 14.5 | I149: 25-30 | J149: Profit of Rs.5/- | K149: =H149-F149 -> 5 | L149: =K149*M149 -> 1500 | M149: 300 | N149: Successful | O149: 2019-08-27 | R149: N
A150: 33 | B150: 2019-08-28 | D150: NIFTY 05-Sep 10950 PE | E150: Buy | F150: 40 | G150: 19 | H150: 49.5 | I150: 70-80 | J150: Profit of Rs.9.50/- | K150: =H150-F150 -> 9.5 | L150: =K150*M150 -> 712.5 | M150: 75 | N150: Successful | O150: 2019-08-28
A151: 34 | B151: 2019-08-28 | D151: HINDUNILVR AUG 1840 CE | E151: Buy | F151: 8.00-10.00 | I151: 25-30 | J151: Open
A156: Techno -Funda (positional)
A157: Sr.no | B157: Date | D157: Company | E157: Rec | F157: Rec Price | G157: Stop Loss*** | H157: Call Closed At | I157: Target | J157: Remark | K157: Profit / Loss per Share | L157: Gain / Loss % | M157: Status | N157: Closed Date | O157: NSE Closed Price
A158: 1 | B158: 2019-08-13 | D158: ITC | E158: Buy | F158: 246-248 | G158: 228 | I158: 290-300 | J158: Open | O158: =VLOOKUP(D158,Sheet2!A131:M1770,6,0) -> 245.95
A162: CLBS = Closing Basis *** | F162: Reinitiated $
A163: Dividend adjusted <> | F163: Revised stoploss #
B168: Investment Idea
A169: Sr.no | B169: Date | D169: Company | E169: Rec | F169: Rec Price | G169: Point of Review | H169: Close Rate | I169: Target | J169: Remark | K169: Profit / Loss per Share | L169: Gain / Loss % | M169: Status | N169: Closed Date
A170: 1 | B170: 2013-11-01 | D170: L&T Finance Holding | E170: Accu | F170: 82.00 | G170: - | H170: 100 | I170: 100.00 | J170: Target Achieved | K170: =H170-F170 -> 18.00 | L170: =K170/F170 -> 21.95% | M170: Successful | N170: 2016-10-14
A171: 2 | B171: 2014-06-04 | D171: Finolex Inds | E171: Buy | F171: 257.00 | G171: - | H171: 300 | I171: 300.00 | J171: Target Achieved | K171: =H171-F171 -> 43.00 | L171: 16.73% | M171: Successful | N171: 2014-07-02
A172: 3 | B172: 2014-07-08 | D172: JK Cement | E172: Buy | F172: 393.00 | G172: - | H172: 468 | I172: 468.00 | J172: Target Achieved | K172: =H172-F172 -> 75.00 | L172: 19.08% | M172: Successful | N172: 2014-08-12
A173: 4 | B173: 2014-08-06 | D173: Finolex Cables | E173: Buy | F173: 205.00 | G173: - | H173: 275 | I173: 250.00 | J173: Target Achieved | K173: 70.00 | L173: 34.15% | M173: Successful | N173: 2014-11-19
A174: 5 | B174: 2014-09-04 | D174: Exide Inds | E174: Buy | F174: 162.00 | G174: - | H174: 190 | I174: 190.00 | J174: Target Achieved | K174: 28.00 | L174: 17.28% | M174: Successful | N174: 2015-01-02
A175: 6 | B175: 2014-09-04 | D175: Deepak Nitrite | E175: Buy | F175: 75.00 | G175: - | H175: 91.5 | I175: 95-100 | J175: Profit of Rs.16.50/- | K175: 16.50 | L175: 22.00% | M175: Successful | N175: 2014-11-11
A176: 7 | B176: 2014-10-01 | D176: Mercks | E176: Buy | F176: 850.00 | G176: - | H176: 982.5 | I176: 1050.00 | J176: Profit of Rs.132.50/- | K176: 132.50 | L176: 15.59% | M176: Successful | N176: 2015-02-04
A177: 8 | B177: 2014-10-01 | D177: Grindwell Norton | E177: Buy | F177: 475.00 | G177: - | H177: 515 | I177: 600.00 | J177: Profit of Rs.40/- | K177: 40.00 | L177: 8.42% | M177: Successful | N177: 2014-10-27
A178: 9 | B178: 2014-10-01 | D178: Snowman Logistics | E178: Buy | F178: 86.00 | G178: - | H178: 99 | I178: 140.00 | J178: Profit of Rs.13.00/- | K178: 13.00 | L178: 15.12% | M178: Successful | N178: 2014-10-27
A179: 10 | B179: 2014-10-14 | D179: Birla Corp | E179: Buy | F179: 496.60 | G179: - | H179: 621 | I179: 580.00 | J179: Target Achieved | K179: 124.40 | L179: 25.05% | M179: Successful | N179: 2016-08-23
A180: 11 | B180: 2014-10-14 | D180: Ultratech Cem | E180: Buy | F180: 2481.90 | G180: - | H180: 2840 | I180: 2870.00 | J180: Profit of Rs.358.10/- | K180: 358.10 | L180: 14.43% | M180: Successful | N180: 2015-01-13
A181: 12 | B181: 2014-10-16 | D181: Sintex Inds | E181: Buy | F181: 84.50 | G181: - | H181: 93 | I181: 110.00 | J181: Profit of Rs.8.50/- | K181: 8.50 | L181: 10.06% | M181: Successful | N181: 2014-10-27
A182: 13 | B182: 2014-10-16 | D182: HSIL | E182: Buy | F182: 401.00 | G182: - | H182: 428 | I182: 450.00 | J182: Profit of Rs.27.00/- | K182: 27.00 | L182: 6.73% | M182: Successful | N182: 2015-01-16
A183: 14 | B183: 2014-10-16 | D183: Eveready Inds | E183: Buy | F183: 101.00 | G183: - | H183: 112 | I183: 120.00 | J183: Profit of Rs.11.00/- | K183: 11.00 | L183: 10.89% | M183: Successful | N183: 2014-10-27
A184: 15 | B184: 2014-11-11 | D184: Pennar Inds | E184: Buy | F184: 59.00 | G184: - | H184: 76 | I184: 76.00 | J184: Target Achieved | K184: 17.00 | L184: 28.81% | M184: Successful | N184: 2017-10-24
A185: 16 | B185: 2014-11-11 | D185: Snowman Logistics | E185: Buy | F185: 99.00 | G185: - | H185: 120 | I185: 120.00 | J185: Profit of Rs.21/- | K185: 21.00 | L185: 21.21% | M185: Successful | N185: 2014-11-17
A186: 17 | B186: 2014-11-13 | D186: Dharamsi Morarji Chem | E186: Buy | F186: 22.00 | G186: - | H186: 33.55 | I186: 32.00 | J186: Profit of Rs 11.55/- | K186: 11.55 | L186: 52.50% | M186: Successful | N186: 2015-07-03
A187: 18 | B187: 2014-12-03 | D187: Tatachem | E187: Buy | F187: 440.00 | G187: - | H187: 520 | I187: 520.00 | J187: Profit of Rs 80.00/- | K187: 80.00 | L187: 18.18% | M187: Successful | N187: 2015-07-23
A188: 19 | B188: 2014-12-03 | D188: Advanta | E188: Buy | F188: 360.00 | G188: - | H188: 427 | I188: 425.00 | J188: Profit of Rs.67.00/- | K188: 67.00 | L188: 18.61% | M188: Successful | N188: 2015-02-23
A189: 20 | B189: 2015-01-08 | D189: GDL | E189: Buy | F189: 360.00 | G189: - | H189: 455 | I189: 420.00 | J189: Profit of Rs.95.00/- | K189: 95.00 | L189: 26.39% | M189: Successful | N189: 2015-01-20
A190: 21 | B190: 2015-01-08 | D190: NRB Bearing | E190: Buy | F190: 130.00 | H190: 175.5 | I190: 165.00 | J190: Profit of Rs 45.50/- | K190: 45.50 | L190: 35.00% | M190: Successful | N190: 2017-12-19
A191: 22 | B191: 2015-02-05 | D191: GSFC | E191: Accu | F191: 98.00 | H191: 120 | I191: 120.00 | J191: Target Achieved | K191: 22.00 | L191: 22.45% | M191: Successful | N191: 2017-01-18
A192: 23 | B192: 2015-02-05 | D192: Sundrmfast | E192: Accu | F192: 196.00 | H192: 262 | I192: 255.00 | J192: Target Achieved | K192: 66.00 | L192: 33.67% | M192: Successful | N192: 2016-08-17
A193: 24 | B193: 2015-03-04 | D193: GPPL | E193: Accu | F193: 235 | H193: 77.00 | I193: 280-285 | J193: Loss of Rs.158/- | K193: =H193-F193 -> -158.00 | L193: -67.23% | M193: Unsuccessful | N193: 2019-02-26
A194: 25 | B194: 2015-03-04 | D194: ORIENTCEM | E194: Accu | F194: 185.00 | H194: 224 | I194: 220-225 | J194: Target Achieved | K194: 39.00 | L194: =K194/F194 -> 21.08% | M194: Successful | N194: 2016-10-04
A195: 26 | B195: 2015-03-27 | D195: PFS | E195: Accu | F195: 49.5 | H195: 15.85 | I195: 67.00 | J195: Loss of Rs.33.65/- | K195: =H195-F195 -> -33.65 | L195: =K195/F195 -> -68% | M195: Unsuccessful | N195: 2019-06-11
A196: 27 | B196: 2015-03-30 | D196: Walchandnagar Ind Ltd | E196: Accu | F196: 183.50 | H196: 219 | I196: 218.00 | J196: Profit of Rs.35.50/- | K196: 35.50 | L196: =K196/F196 -> 19.35% | M196: Successful | N196: 2015-04-09
A197: 28 | B197: 2015-04-20 | D197: Kalpataru Power Transmission Ltd | E197: Accu | F197: =(227+237)/2 -> 232.00 | H197: 298 | I197: 298.00 | J197: Target Achieved | K197: 66.00 | L197: 28.45% | M197: Successful | N197: 2017-03-29
A198: 29 | B198: 2015-05-04 | D198: Mastek Ltd | E198: Buy | F198: 385.00 | H198: =212.5+331 -> 543.5 | I198: 510.00 | J198: Profit of Rs 158.50/- | K198: 158.50 | L198: 41.17% | M198: Successful | N198: 2015-08-19
A199: 30 | B199: 2015-05-04 | D199: Suprajit Eng | E199: Buy | F199: 115.50 | H199: 146 | I199: 142.00 | J199: Profit of Rs 30.50/- | K199: 30.50 | L199: 26.41% | M199: Successful | N199: 2015-07-17
A200: 31 | B200: 2015-05-27 | D200: TCI | E200: Buy | F200: 237.50 | H200: 279.5 | I200: 278.00 | J200: Target Achieved | K200: 42.00 | L200: 17.68% | M200: Successful | N200: 2015-08-06
A201: 32 | B201: 2015-06-19 | D201: HSIL | E201: Accu | F201: 340.00 | H201: 448 | I201: 448.00 | J201: Target Achieved | K201: 108.00 | L201: 31.76% | M201: Successful | N201: 2017-10-10
A202: 33 | B202: 2015-07-06 | D202: Capital First | E202: Accu | F202: 390.00 | H202: 460 | I202: 460.00 | J202: Target Achieved | K202: 70.00 | L202: 17.95% | M202: Successful | N202: 2016-04-18
A203: 34 | B203: 2015-07-10 | D203: Dolphin OffShore | E203: Accu | F203: 122.5 | H203: 61.00 | I203: 172.00 | J203: Loss of Rs.61.50/- | K203: -61.50 | L203: -50.20% | M203: Unsuccessful | N203: 2018-08-21
A204: 35 | B204: 2015-08-03 | D204: Allcargo logistics | E204: Accu | F204: 297.50 | H204: 350 | I204: 360.00 | J204: Profit of Rs 52.50/- | K204: 52.50 | L204: 17.65% | M204: Successful | N204: 2015-08-16
A205: 36 | B205: 2015-08-03 | D205: Camline Fine | E205: Accu | F205: 115.50 | H205: 149 | I205: 140.00 | J205: Profit of Rs 33.50/- | K205: 33.50 | L205: 29.00% | M205: Successful | N205: 2017-01-05
A206: 37 | B206: 2015-09-04 | D206: TCI | E206: Accu | F206: 226.00 | H206: 292 | I206: 292.00 | J206: Target Achieved | K206: 66.00 | L206: 29.20% | M206: Successful | N206: 2015-10-09
A207: 38 | B207: 2015-09-07 | D207: Kalpataru Power Transmission Ltd | E207: Accu | F207: 232.50 | H207: 312.5 | I207: 310.00 | J207: Target Achieved | K207: 80.00 | L207: 34.41% | M207: Successful | N207: 2017-03-29
A208: 39 | B208: 2015-09-21 | D208: LLOYD ELECTRIC & ENG LTD | E208: Accu | F208: 196.50 | H208: 238 | I208: 238.00 | J208: Target Achieved | K208: 41.50 | L208: 21.12% | M208: Successful | N208: 2015-10-14
A209: 40 | B209: 2015-09-24 | D209: L&T Finance Holding | E209: Accu | F209: 65.00 | H209: 82 | I209: 82.00 | J209: Target Achieved | K209: 17.00 | L209: 26.15% | M209: Successful | N209: 2016-07-27
A210: 41 | B210: 2015-10-14 | D210: KEC International ltd | E210: Accu | F210: 144.00 | H210: 182.5 | I210: 181.00 | J210: Target Achieved | K210: 38.50 | L210: 26.74% | M210: Successful | N210: 2017-03-23
A211: 42 | B211: 2015-10-14 | D211: Gruh Finance | E211: Accu | F211: 264.00 | H211: 311 | I211: 311.00 | J211: Target Achieved | K211: 47.00 | L211: 17.80% | M211: Successful | N211: 2016-08-22
A212: 43 | B212: 2015-11-10 | D212: Pidilitind | E212: Buy | F212: 549.50 | H212: 630 | I212: 630.00 | J212: Target Achieved | K212: 80.50 | L212: 14.65% | M212: Successful | N212: 2016-02-19
A213: 44 | B213: 2015-12-04 | D213: Zensar Technology | E213: Accu | F213: 1027.50 | H213: 1315 | I213: 1250.00 | J213: Target Achieved | K213: =H213-F213 -> 287.50 | L213: 27.98% | M213: Successful | N213: 2018-05-24
A214: 45 | B214: 2015-12-29 | D214: Vinati Organics Ltd | E214: Accu | F214: 465.00 | H214: 540 | I214: 540.00 | J214: Target Achieved | K214: 75.00 | L214: 16.13% | M214: Successful | N214: 2016-06-09
A215: 46 | B215: 2016-01-11 | D215: GSFC | E215: Buy | F215: 81.00 | H215: 110 | I215: 110.00 | J215: Target Achieved | K215: 29.00 | L215: 35.80% | M215: Successful | N215: 2017-01-10
A216: 47 | B216: 2016-01-13 | D216: SSWL | E216: Buy | F216: 417.50 | H216: 547 | I216: 535.00 | J216: Target Achieved | K216: 129.50 | L216: 31.02% | M216: Successful | N216: 2016-07-27
A217: 48 | B217: 2016-02-08 | D217: Persistent System Ltd | E217: Accu | F217: 650.00 | H217: 800 | I217: 800.00 | J217: Target Achieved | K217: 150.00 | L217: 23.08% | M217: Successful | N217: 2018-02-23
A218: 49 | B218: 2016-03-04 | D218: UPL | E218: Accu | F218: 437.50 | H218: 504.5 | I218: 522.00 | J218: Profit of Rs.67/- | K218: 67.00 | L218: 15.31% | M218: Successful | N218: 2016-04-20
A219: 50 | B219: 2016-03-09 | D219: Ashoka Buildcon Ltd | E219: Accu | F219: 189.50 | H219: 218 | I219: 218.00 | J219: Target Achieved | K219: 28.50 | L219: 15.04% | M219: Successful | N219: 2017-10-26
A220: 51 | B220: 2016-04-11 | D220: PTC INDIA FIN SERV LTD | E220: Accu | F220: 36.5 | H220: 15.85 | I220: 60.00 | J220: Loss of Rs.20.65/- | K220: -20.65 | L220: -56.58% | M220: Unsuccessful | N220: 2019-06-11
A221: 52 | B221: 2016-04-12 | D221: CAMLINFINE $ | E221: Accu | F221: 93.00 | H221: 149 | I221: 140.00 | J221: Profit of Rs 56/- | K221: 56.00 | L221: 60.22% | M221: Successful | N221: 2017-01-05
A222: 53 | B222: 2016-04-12 | D222: Greaves Cotton Ltd. | E222: Accu | F222: 130.00 | H222: 150 | I222: 150-155 | J222: Target Achieved | K222: 20.00 | L222: 15.38% | M222: Successful | N222: 2016-07-13
A223: 54 | B223: 2016-05-02 | D223: KEC International ltd $ | E223: Accu | F223: 127.50 | H223: 148 | I223: 148-150 | J223: Target Achieved | K223: 20.50 | L223: 16.08% | M223: Successful | N223: 2016-07-13
A224: 55 | B224: 2016-05-03 | D224: Mindtree | E224: Accu | F224: 675.00 | H224: 815 | I224: 790-800 | J224: Target Achieved | K224: 140.00 | L224: 20.74% | M224: Successful | N224: 2018-02-23
A225: 56 | B225: 2016-06-06 | D225: TRITURBINE | E225: Accu | F225: 110.00 | H225: 126.5 | I225: 125.00 | J225: Profit of Rs.16.50/- | K225: 16.50 | L225: 15.00% | M225: Successful | N225: 2016-07-01
A226: 57 | B226: 2016-06-17 | D226: Pennar Industries Ltd | E226: Accu | F226: 44.00 | H226: 69.5 | I226: 69.50 | J226: Profit of Rs.25.50/- | K226: 25.50 | L226: 57.95% | M226: Successful | N226: 2017-08-30
A227: 58 | B227: 2016-07-05 | D227: Bajaj Corp Ltd | E227: Accu | F227: 395 | H227: =(468.5+342.5)/2 -> 405.50 | I227: 510.00 | J227: Profit of Rs.10.50/- | K227: 10.50 | L227: 3% | M227: Neutral | N227: 2019-05-21
A228: 59 | B228: 2016-08-02 | D228: GPPL $ | E228: Buy | F228: 169.5 | H228: 77.00 | I228: 198-200 | J228: Loss of Rs.92.5/- | K228: -92.50 | L228: -54.57% | M228: Unsuccessful | N228: 2019-02-26
A229: 60 | B229: 2016-08-04 | D229: WONDERLA HOLIDAYS LTD | E229: Accu | F229: 400 | H229: 305.00 | I229: 475.00 | J229: Loss of Rs.95/- | K229: -95.00 | L229: -23.75% | M229: Unsuccessful | N229: 2019-05-21
... 88 more rows

Sheet Sheet2 (hidden)
A1: SYMBOL | B1: SERIES | C1: OPEN | D1: HIGH | E1: LOW | F1: CLOSE | G1: LAST | H1: PREVCLOSE | I1: TOTTRDQTY | J1: TOTTRDVAL | K1: TIMESTAMP | L1: TOTALTRADES | M1: ISIN | N1: ISIN
A2: 20MICRONS | B2: EQ | C2: 32.55 | D2: 33.9 | E2: 32.5 | F2: 32.7 | G2: 32.7 | H2: 33 | I2: 34199 | J2: 1127311 | K2: 2019-08-28 | L2: 216 | M2: INE144J01027
A3: 21STCENMGM | B3: EQ | C3: 12.45 | D3: 12.45 | E3: 12.45 | F3: 12.45 | G3: 12.45 | H3: 12.25 | I3: 92 | J3: 1145.4 | K3: 2019-08-28 | L3: 4 | M3: INE253B01015
A4: 3IINFOTECH | B4: EQ | C4: 1.75 | D4: 1.75 | E4: 1.7 | F4: 1.75 | G4: 1.75 | H4: 1.75 | I4: 410593 | J4: 709606.75 | K4: 2019-08-28 | L4: 306 | M4: INE748C01020
A5: 3MINDIA | B5: EQ | C5: 20935.05 | D5: 21169.1 | E5: 20322 | F5: 20425.55 | G5: 20365 | H5: 20928.35 | I5: 738 | J5: 15208493.2 | K5: 2019-08-28 | L5: 478 | M5: INE470A01017
A6: 5PAISA | B6: EQ | C6: 135.3 | D6: 141.1 | E6: 135.25 | F6: 140.9 | G6: 141 | H6: 134.4 | I6: 24214 | J6: 3389218.45 | K6: 2019-08-28 | L6: 515 | M6: INE618L01018
A7: 63MOONS | B7: EQ | C7: 128.9 | D7: 128.9 | E7: 120.65 | F7: 120.65 | G7: 120.65 | H7: 126.95 | I7: 269282 | J7: 33150522.8 | K7: 2019-08-28 | L7: 2371 | M7: INE111B01023
A8: 8KMILES | B8: EQ | C8: 58.3 | D8: 58.3 | E8: 53 | F8: 54.4 | G8: 54.25 | H8: 55.55 | I8: 178941 | J8: 9994827.8 | K8: 2019-08-28 | L8: 1816 | M8: INE650K01021
A9: A2ZINFRA | B9: EQ | C9: 10.35 | D9: 10.35 | E9: 9.75 | F9: 9.8 | G9: 9.8 | H9: 10.2 | I9: 188062 | J9: 1869536.45 | K9: 2019-08-28 | L9: 325 | M9: INE619I01012
A10: AARTIDRUGS | B10: EQ | C10: 467.35 | D10: 469.25 | E10: 456.3 | F10: 462.2 | G10: 464.65 | H10: 469.2 | I10: 5042 | J10: 2335421 | K10: 2019-08-28 | L10: 423 | M10: INE767A01016
A11: AARTIIND | B11: EQ | C11: 1570.3 | D11: 1620 | E11: 1570.1 | F11: 1588.35 | G11: 1590 | H11: 1568.4 | I11: 54979 | J11: 87690865.35 | K11: 2019-08-28 | L11: 5773 | M11: INE769A01020
A12: AARVEEDEN | B12: EQ | C12: 13.55 | D12: 14 | E12: 12.65 | F12: 13.5 | G12: 13.65 | H12: 13.9 | I12: 1511 | J12: 19950.3 | K12: 2019-08-28 | L12: 77 | M12: INE273D01019
A13: AAVAS | B13: EQ | C13: 1545 | D13: 1569 | E13: 1515.3 | F13: 1557.85 | G13: 1547.95 | H13: 1543.5 | I13: 8127 | J13: 12547617.05 | K13: 2019-08-28 | L13: 1478 | M13: INE216P01012
A14: ABAN | B14: EQ | C14: 24.6 | D14: 24.65 | E14: 23.7 | F14: 24.65 | G14: 24.65 | H14: 23.5 | I14: 58318 | J14: 1436307.35 | K14: 2019-08-28 | L14: 196 | M14: INE421A01028
A15: ABB | B15: EQ | C15: 1375.15 | D15: 1390.05 | E15: 1352.1 | F15: 1361.4 | G15: 1355 | H15: 1378.5 | I15: 182780 | J15: 249633292.4 | K15: 2019-08-28 | L15: 3037 | M15: INE117A01022
A16: ABBOTINDIA | B16: EQ | C16: 9240 | D16: 9247.95 | E16: 9015.15 | F16: 9081.1 | G16: 9021 | H16: 9142.95 | I16: 28209 | J16: 257434164.4 | K16: 2019-08-28 | L16: 867 | M16: INE358A01014
A17: ABCAPITAL | B17: EQ | C17: 89.4 | D17: 90.3 | E17: 87.5 | F17: 87.75 | G17: 87.65 | H17: 89.4 | I17: 818681 | J17: 72647370.75 | K17: 2019-08-28 | L17: 8098 | M17: INE674K01013
A18: ABFRL | B18: EQ | C18: 194.6 | D18: 198.95 | E18: 190 | F18: 190.6 | G18: 190.6 | H18: 194.4 | I18: 252589 | J18: 49007007.4 | K18: 2019-08-28 | L18: 8341 | M18: INE647O01011
A19: ABSLNN50ET | B19: EQ | C19: 262.49 | D19: 262.49 | E19: 259.72 | F19: 259.72 | G19: 259.72 | H19: 256.74 | I19: 6 | J19: 1563.86 | K19: 2019-08-28 | L19: 2 | M19: INF209KB1B87
A20: ACC | B20: EQ | C20: 1538 | D20: 1550 | E20: 1520 | F20: 1542.35 | G20: 1541.5 | H20: 1539.6 | I20: 643361 | J20: 988864498.5 | K20: 2019-08-28 | L20: 24128 | M20: INE012A01025
A21: ACCELYA | B21: EQ | C21: 731.2 | D21: 754 | E21: 731.2 | F21: 739 | G21: 739 | H21: 731.2 | I21: 3767 | J21: 2801023.2 | K21: 2019-08-28 | L21: 157 | M21: INE793A01012
A22: ACE | B22: EQ | C22: 56.5 | D22: 57.75 | E22: 54.15 | F22: 54.5 | G22: 54.55 | H22: 56.2 | I22: 202293 | J22: 11283081.8 | K22: 2019-08-28 | L22: 4708 | M22: INE731H01025
A23: ADANIENT | B23: EQ | C23: 136.2 | D23: 137.1 | E23: 132.15 | F23: 135.95 | G23: 135.75 | H23: 137.15 | I23: 5312871 | J23: 716387912.2 | K23: 2019-08-28 | L23: 18411 | M23: INE423A01024
A24: ADANIGAS | B24: EQ | C24: 148.8 | D24: 149.9 | E24: 146.05 | F24: 147.1 | G24: 146.45 | H24: 148.2 | I24: 232974 | J24: 34510273.45 | K24: 2019-08-28 | L24: 2677 | M24: INE399L01023
A25: ADANIGREEN | B25: EQ | C25: 45 | D25: 45.2 | E25: 43.5 | F25: 44.05 | G25: 43.8 | H25: 44.95 | I25: 292461 | J25: 12957177.4 | K25: 2019-08-28 | L25: 1938 | M25: INE364U01010
A26: ADANIPORTS | B26: EQ | C26: 373.1 | D26: 374.25 | E26: 364.05 | F26: 365.95 | G26: 367.4 | H26: 372.05 | I26: 2186454 | J26: 806026951.2 | K26: 2019-08-28 | L26: 30580 | M26: INE742F01042
A27: ADANIPOWER | B27: EQ | C27: 59.75 | D27: 60.2 | E27: 58 | F27: 59.25 | G27: 59.25 | H27: 59.95 | I27: 7236667 | J27: 428542677.2 | K27: 2019-08-28 | L27: 13121 | M27: INE814H01011
A28: ADANITRANS | B28: EQ | C28: 238 | D28: 239.9 | E28: 231.6 | F28: 234.75 | G28: 235 | H28: 236.3 | I28: 91885 | J28: 21633593.9 | K28: 2019-08-28 | L28: 3358 | M28: INE931S01010
A29: ADFFOODS | B29: EQ | C29: 268.45 | D29: 268.5 | E29: 263 | F29: 263.6 | G29: 263.25 | H29: 269.7 | I29: 9805 | J29: 2599905.9 | K29: 2019-08-28 | L29: 747 | M29: INE982B01019
A30: ADHUNIK | B30: BE | C30: 1.1 | D30: 1.2 | E30: 1.1 | F30: 1.1 | G30: 1.1 | H30: 1.15 | I30: 7831 | J30: 9046.15 | K30: 2019-08-28 | L30: 16 | M30: INE400H01019
A31: ADHUNIKIND | B31: EQ | C31: 87.5 | D31: 90.6 | E31: 87.3 | F31: 88.85 | G31: 87.3 | H31: 87.2 | I31: 36275 | J31: 3218817.45 | K31: 2019-08-28 | L31: 432 | M31: INE452L01012
A32: ADLABS | B32: EQ | C32: 3.8 | D32: 3.8 | E32: 3.6 | F32: 3.6 | G32: 3.6 | H32: 3.75 | I32: 52912 | J32: 194946.75 | K32: 2019-08-28 | L32: 199 | M32: INE172N01012
A33: ADORWELD | B33: EQ | C33: 291.35 | D33: 295 | E33: 285.05 | F33: 286.4 | G33: 285.1 | H33: 291.4 | I33: 3192 | J33: 921363.8 | K33: 2019-08-28 | L33: 439 | M33: INE045A01017
A34: ADROITINFO | B34: BE | C34: 10.5 | D34: 11.1 | E34: 10.1 | F34: 10.15 | G34: 10.1 | H34: 10.6 | I34: 29897 | J34: 316446.8 | K34: 2019-08-28 | L34: 23 | M34: INE737B01033
A35: ADSL | B35: EQ | C35: 14.95 | D35: 14.95 | E35: 13.65 | F35: 13.85 | G35: 14 | H35: 14.65 | I35: 43200 | J35: 601996.9 | K35: 2019-08-28 | L35: 191 | M35: INE102I01027
A36: ADVANIHOTR | B36: EQ | C36: 53.85 | D36: 53.85 | E36: 52.5 | F36: 53.45 | G36: 53.5 | H36: 53.8 | I36: 1067 | J36: 56359.2 | K36: 2019-08-28 | L36: 29 | M36: INE199C01026
A37: ADVENZYMES | B37: EQ | C37: 150 | D37: 153.9 | E37: 149.85 | F37: 150 | G37: 150.75 | H37: 149.75 | I37: 44244 | J37: 6682768.45 | K37: 2019-08-28 | L37: 842 | M37: INE837H01020
A38: AEGISCHEM | B38: EQ | C38: 197.65 | D38: 200 | E38: 190 | F38: 195.9 | G38: 195 | H38: 197.65 | I38: 82283 | J38: 16023504.85 | K38: 2019-08-28 | L38: 2910 | M38: INE208C01025
A39: AFFLE | B39: EQ | C39: 841.4 | D39: 855.55 | E39: 827.15 | F39: 830.55 | G39: 828.8 | H39: 838.25 | I39: 38728 | J39: 32439207.6 | K39: 2019-08-28 | L39: 2285 | M39: INE00WC01019
A40: AGARIND | B40: EQ | C40: 123.95 | D40: 128 | E40: 121.6 | F40: 127.15 | G40: 125.5 | H40: 121.7 | I40: 11339 | J40: 1420987.6 | K40: 2019-08-28 | L40: 444 | M40: INE204E01012
A41: AGCNET | B41: EQ | C41: 125 | D41: 125 | E41: 115.35 | F41: 117.35 | G41: 116 | H41: 126.6 | I41: 17287 | J41: 2056833.45 | K41: 2019-08-28 | L41: 370 | M41: INE676A01019
A42: AGLSL | B42: EQ | C42: 45.05 | D42: 48.05 | E42: 45.05 | F42: 46.9 | G42: 46.9 | H42: 46.45 | I42: 3482 | J42: 160530.45 | K42: 2019-08-28 | L42: 36 | M42: INE517U01013
A43: AGRITECH | B43: EQ | C43: 45.05 | D43: 45.5 | E43: 44.4 | F43: 44.65 | G43: 44.9 | H43: 45.85 | I43: 7660 | J43: 342874.05 | K43: 2019-08-28 | L43: 110 | M43: INE449G01018
A44: AGROPHOS | B44: BE | C44: 90.5 | D44: 93.2 | E44: 85.3 | F44: 90 | G44: 90 | H44: 89.5 | I44: 1024 | J44: 92540.4 | K44: 2019-08-28 | L44: 14 | M44: INE740V01019
A45: AHLEAST | B45: EQ | C45: 157.35 | D45: 160 | E45: 157.35 | F45: 157.55 | G45: 157.5 | H45: 159.7 | I45: 775 | J45: 122433.75 | K45: 2019-08-28 | L45: 214 | M45: INE926K01017
A46: AHLUCONT | B46: EQ | C46: 306.4 | D46: 312 | E46: 306.4 | F46: 310.05 | G46: 310 | H46: 305.05 | I46: 53915 | J46: 16712788.9 | K46: 2019-08-28 | L46: 136 | M46: INE758C01029
A47: AHLWEST | B47: EQ | C47: 300 | D47: 304.9 | E47: 280 | F47: 292.95 | G47: 298 | H47: 285.85 | I47: 1637 | J47: 480298.6 | K47: 2019-08-28 | L47: 97 | M47: INE915K01010
A48: AIAENG | B48: EQ | C48: 1569.9 | D48: 1569.9 | E48: 1533 | F48: 1551 | G48: 1540 | H48: 1550.4 | I48: 21648 | J48: 33665531.05 | K48: 2019-08-28 | L48: 1072 | M48: INE212H01026
A49: AIONJSW | B49: EQ | C49: 14.6 | D49: 14.6 | E49: 13.8 | F49: 14 | G49: 14.2 | H49: 14.6 | I49: 18638 | J49: 264422.8 | K49: 2019-08-28 | L49: 194 | M49: INE743C01021
A50: AIRAN | B50: EQ | C50: 16.2 | D50: 17.7 | E50: 16 | F50: 17.3 | G50: 16.15 | H50: 16.75 | I50: 5646 | J50: 96647.1 | K50: 2019-08-28 | L50: 81 | M50: INE645W01026
A51: AJANTPHARM | B51: EQ | C51: 954.85 | D51: 1009.45 | E51: 943.6 | F51: 986.05 | G51: 997 | H51: 948.65 | I51: 115371 | J51: 111627711.1 | K51: 2019-08-28 | L51: 6453 | M51: INE031B01049
A52: AJMERA | B52: EQ | C52: 120.9 | D52: 122 | E52: 118.1 | F52: 120.65 | G52: 121.05 | H52: 120.1 | I52: 45494 | J52: 5472013.9 | K52: 2019-08-28 | L52: 1716 | M52: INE298G01027
A53: AKSHARCHEM | B53: EQ | C53: 208.55 | D53: 215.95 | E53: 205.05 | F53: 206.1 | G53: 206.05 | H53: 213.45 | I53: 1637 | J53: 344224.95 | K53: 2019-08-28 | L53: 133 | M53: INE542B01011
A54: AKSHOPTFBR | B54: EQ | C54: 7.75 | D54: 7.75 | E54: 7.75 | F54: 7.75 | G54: 7.75 | H54: 7.4 | I54: 192472 | J54: 1491658 | K54: 2019-08-28 | L54: 257 | M54: INE523B01011
A55: AKZOINDIA | B55: EQ | C55: 1713.35 | D55: 1714.75 | E55: 1698.1 | F55: 1700.1 | G55: 1701 | H55: 1701.9 | I55: 5633 | J55: 9583272.45 | K55: 2019-08-28 | L55: 381 | M55: INE133A01011
A56: ALANKIT | B56: EQ | C56: 19 | D56: 19.4 | E56: 18.6 | F56: 19.15 | G56: 19.25 | H56: 19.4 | I56: 172426 | J56: 3298708.8 | K56: 2019-08-28 | L56: 563 | M56: INE914E01040
A57: ALBERTDAVD | B57: EQ | C57: 341.95 | D57: 349.7 | E57: 331 | F57: 334.75 | G57: 334 | H57: 339.55 | I57: 5245 | J57: 1780074.1 | K57: 2019-08-28 | L57: 273 | M57: INE155C01010
A58: ALBK | B58: EQ | C58: 35.4 | D58: 35.95 | E58: 34.1 | F58: 34.85 | G58: 34.75 | H58: 35.35 | I58: 1122040 | J58: 39121427.5 | K58: 2019-08-28 | L58: 5462 | M58: INE428A01015
A59: ALCHEM | B59: BE | C59: 1.05 | D59: 1.05 | E59: 1.05 | F59: 1.05 | G59: 1.05 | H59: 1.1 | I59: 1229 | J59: 1290.45 | K59: 2019-08-28 | L59: 12 | M59: INE964B01033
A60: ALEMBICLTD | B60: BE | C60: 35.2 | D60: 35.9 | E60: 35.2 | F60: 35.2 | G60: 35.2 | H60: 37.05 | I60: 37957 | J60: 1338100.15 | K60: 2019-08-28 | L60: 228 | M60: INE426A01027
A61: ALICON | B61: EQ | C61: 390 | D61: 417 | E61: 390 | F61: 405 | G61: 405 | H61: 393.9 | I61: 281 | J61: 113853.25 | K61: 2019-08-28 | L61: 36 | M61: INE062D01024
A62: ALKALI | B62: EQ | C62: 40.05 | D62: 43.4 | E62: 40.05 | F62: 41.4 | G62: 41.5 | H62: 41 | I62: 17822 | J62: 736866.55 | K62: 2019-08-28 | L62: 394 | M62: INE773I01017
A63: ALKEM | B63: EQ | C63: 1800 | D63: 1844.9 | E63: 1800 | F63: 1829.85 | G63: 1833 | H63: 1826.9 | I63: 33453 | J63: 61207810.5 | K63: 2019-08-28 | L63: 6045 | M63: INE540L01014
A64: ALKYLAMINE | B64: EQ | C64: 749.6 | D64: 753.85 | E64: 740 | F64: 752.4 | G64: 751.1 | H64: 748.25 | I64: 1845 | J64: 1382995.4 | K64: 2019-08-28 | L64: 148 | M64: INE150B01021
A65: ALLCARGO | B65: EQ | C65: 93.8 | D65: 93.8 | E65: 91.5 | F65: 92.2 | G65: 92 | H65: 92.45 | I65: 45108 | J65: 4159802.95 | K65: 2019-08-28 | L65: 1126 | M65: INE418H01029
A66: ALLSEC | B66: EQ | C66: 260.3 | D66: 270 | E66: 258.3 | F66: 269.95 | G66: 268 | H66: 269.85 | I66: 2525 | J66: 673929.75 | K66: 2019-08-28 | L66: 76 | M66: INE835G01018
A67: ALMONDZ | B67: EQ | C67: 10.35 | D67: 10.4 | E67: 10.05 | F67: 10.05 | G67: 10.05 | H67: 9.95 | I67: 5041 | J67: 52291.4 | K67: 2019-08-28 | L67: 17 | M67: INE326B01027
A68: ALOKTEXT | B68: EQ | C68: 2.8 | D68: 2.8 | E68: 2.65 | F68: 2.7 | G68: 2.65 | H68: 2.75 | I68: 2598421 | J68: 7120278.4 | K68: 2019-08-28 | L68: 839 | M68: INE270A01011
A69: ALPA | B69: EQ | C69: 15.8 | D69: 15.8 | E69: 14.1 | F69: 14.35 | G69: 14.5 | H69: 15.3 | I69: 8039 | J69: 117570.65 | K69: 2019-08-28 | L69: 175 | M69: INE385I01010
A70: ALPHAGEO | B70: EQ | C70: 207 | D70: 207.75 | E70: 197 | F70: 197.45 | G70: 197.05 | H70: 201.75 | I70: 13406 | J70: 2711835.05 | K70: 2019-08-28 | L70: 607 | M70: INE137C01018
A71: ALPSINDUS | B71: BE | C71: 0.55 | D71: 0.6 | E71: 0.55 | F71: 0.55 | G71: 0.55 | H71: 0.6 | I71: 2070 | J71: 1139.5 | K71: 2019-08-28 | L71: 6 | M71: INE093B01015
A72: AMARAJABAT | B72: EQ | C72: 625.8 | D72: 625.8 | E72: 607 | F72: 612.6 | G72: 612.75 | H72: 622.7 | I72: 273656 | J72: 168258058.9 | K72: 2019-08-28 | L72: 10004 | M72: INE885A01032
A73: AMBER | B73: EQ | C73: 841 | D73: 859 | E73: 821 | F73: 841.3 | G73: 826 | H73: 833.3 | I73: 14806 | J73: 12423357.5 | K73: 2019-08-28 | L73: 1229 | M73: INE371P01015
A74: AMBIKCO | B74: EQ | C74: 886 | D74: 899.95 | E74: 838.2 | F74: 842.95 | G74: 848 | H74: 886.75 | I74: 9210 | J74: 7882333.4 | K74: 2019-08-28 | L74: 790 | M74: INE540G01014
A75: AMBUJACEM | B75: EQ | C75: 205 | D75: 207.5 | E75: 202.75 | F75: 205 | G75: 204.75 | H75: 205.1 | I75: 1674581 | J75: 343554839.5 | K75: 2019-08-28 | L75: 26497 | M75: INE079A01024
A76: AMDIND | B76: EQ | C76: 16.6 | D76: 17.7 | E76: 16.6 | F76: 17.05 | G76: 16.9 | H76: 16.9 | I76: 7505 | J76: 128152.6 | K76: 2019-08-28 | L76: 88 | M76: INE005I01014
A77: AMJLAND | B77: EQ | C77: 17.5 | D77: 17.55 | E77: 17.05 | F77: 17.5 | G77: 17.5 | H77: 17.7 | I77: 2003 | J77: 34994.1 | K77: 2019-08-28 | L77: 30 | M77: INE606A01024
A78: AMRUTANJAN | B78: EQ | C78: 285 | D78: 286.7 | E78: 283.85 | F78: 285 | G78: 285 | H78: 283.55 | I78: 13250 | J78: 3775155.1 | K78: 2019-08-28 | L78: 387 | M78: INE098F01031
A79: ANANTRAJ | B79: EQ | C79: 26.15 | D79: 27.9 | E79: 25.95 | F79: 27.5 | G79: 27.55 | H79: 26.05 | I79: 408914 | J79: 11044131 | K79: 2019-08-28 | L79: 1292 | M79: INE242C01024
A80: ANDHRABANK | B80: EQ | C80: 19 | D80: 19 | E80: 18.55 | F80: 18.7 | G80: 18.75 | H80: 19.05 | I80: 416582 | J80: 7822963.6 | K80: 2019-08-28 | L80: 1255 | M80: INE434A01013
A81: ANDHRACEMT | B81: EQ | C81: 2.3 | D81: 2.3 | E81: 2.3 | F81: 2.3 | G81: 2.3 | H81: 2.2 | I81: 2722 | J81: 6260.6 | K81: 2019-08-28 | L81: 11 | M81: INE666E01012
A82: ANDHRSUGAR | B82: EQ | C82: 290.15 | D82: 298 | E82: 288.45 | F82: 289.4 | G82: 290 | H82: 291.25 | I82: 16833 | J82: 4909976.45 | K82: 2019-08-28 | L82: 1219 | M82: INE715B01013
A83: ANIKINDS | B83: EQ | C83: 8.15 | D83: 8.5 | E83: 7.8 | F83: 8.35 | G83: 8.35 | H83: 8 | I83: 2204 | J83: 18370.6 | K83: 2019-08-28 | L83: 33 | M83: INE087B01017
A84: ANKITMETAL | B84: BE | C84: 0.4 | D84: 0.45 | E84: 0.4 | F84: 0.4 | G84: 0.4 | H84: 0.45 | I84: 2124 | J84: 860.6 | K84: 2019-08-28 | L84: 8 | M84: INE106I01010
A85: ANSALAPI | B85: EQ | C85: 4.1 | D85: 4.25 | E85: 3.9 | F85: 4.2 | G85: 4.25 | H85: 4.05 | I85: 48775 | J85: 204118.15 | K85: 2019-08-28 | L85: 153 | M85: INE436A01026
A86: ANSALHSG | B86: EQ | C86: 5.45 | D86: 5.9 | E86: 5.1 | F86: 5.35 | G86: 5.3 | H86: 5 | I86: 266877 | J86: 1425331.65 | K86: 2019-08-28 | L86: 778 | M86: INE880B01015
A87: ANTGRAPHIC | B87: BE | C87: 0.75 | D87: 0.85 | E87: 0.75 | F87: 0.85 | G87: 0.85 | H87: 0.8 | I87: 58302 | J87: 47061.7 | K87: 2019-08-28 | L87: 34 | M87: INE414B01021
A88: ANUP | B88: EQ | C88: 418.8 | D88: 426.55 | E88: 410.5 | F88: 418.55 | G88: 417 | H88: 420.6 | I88: 12192 | J88: 5109731.8 | K88: 2019-08-28 | L88: 657 | M88: INE294Z01018
A89: APARINDS | B89: EQ | C89: 542.35 | D89: 554.95 | E89: 542.35 | F89: 548.95 | G89: 551.5 | H89: 540.65 | I89: 2213 | J89: 1213235 | K89: 2019-08-28 | L89: 298 | M89: INE372A01015
A90: APCL | B90: EQ | C90: 146 | D90: 148 | E90: 141.1 | F90: 141.3 | G90: 145.65 | H90: 145.9 | I90: 4575 | J90: 655147.05 | K90: 2019-08-28 | L90: 74 | M90: INE071F01012
A91: APCOTEXIND | B91: EQ | C91: 209.9 | D91: 209.9 | E91: 203 | F91: 204.7 | G91: 203.3 | H91: 207.1 | I91: 7181 | J91: 1483533 | K91: 2019-08-28 | L91: 356 | M91: INE116A01032
A92: APEX | B92: EQ | C92: 210 | D92: 210.8 | E92: 200.05 | F92: 200.65 | G92: 200.05 | H92: 208.85 | I92: 39085 | J92: 7983777.75 | K92: 2019-08-28 | L92: 1278 | M92: INE346W01013
A93: APLAPOLLO | B93: EQ | C93: 1303.45 | D93: 1321.95 | E93: 1265 | F93: 1275.35 | G93: 1279.9 | H93: 1303.45 | I93: 14516 | J93: 18653208.4 | K93: 2019-08-28 | L93: 926 | M93: INE702C01019
A94: APLLTD | B94: EQ | C94: 503.8 | D94: 504.8 | E94: 494.1 | F94: 497.7 | G94: 494.25 | H94: 500.3 | I94: 7799 | J94: 3897993.6 | K94: 2019-08-28 | L94: 698 | M94: INE901L01018
A95: APOLLO | B95: EQ | C95: 77.4 | D95: 78.25 | E95: 74.25 | F95: 75.45 | G95: 75.75 | H95: 77.4 | I95: 9698 | J95: 738642.15 | K95: 2019-08-28 | L95: 372 | M95: INE713T01010
A96: APOLLOHOSP | B96: EQ | C96: 1478.7 | D96: 1535 | E96: 1477 | F96: 1521.4 | G96: 1516.05 | H96: 1475.55 | I96: 1429654 | J96: 2162631161 | K96: 2019-08-28 | L96: 52346 | M96: INE437A01024
A97: APOLLOTYRE | B97: EQ | C97: 172.5 | D97: 172.95 | E97: 167 | F97: 168.55 | G97: 167.55 | H97: 172 | I97: 2366161 | J97: 402050866.8 | K97: 2019-08-28 | L97: 39371 | M97: INE438A01022
A98: APOLSINHOT | B98: EQ | C98: 750 | D98: 788 | E98: 742.5 | F98: 749.5 | G98: 748.1 | H98: 744.8 | I98: 879 | J98: 660493.75 | K98: 2019-08-28 | L98: 76 | M98: INE451F01024
A99: APTECHT | B99: EQ | C99: 133.4 | D99: 137.45 | E99: 131.5 | F99: 133.2 | G99: 133.35 | H99: 130.8 | I99: 295817 | J99: 39842481.2 | K99: 2019-08-28 | L99: 5032 | M99: INE266F01018
A100: ARCHIDPLY | B100: EQ | C100: 26.15 | D100: 26.65 | E100: 25.2 | F100: 25.6 | G100: 25.65 | H100: 26.5 | I100: 4604 | J100: 118136.55 | K100: 2019-08-28 | L100: 392 | M100: INE877I01016
A101: ARCHIES | B101: EQ | C101: 17.45 | D101: 17.5 | E101: 17 | F101: 17.05 | G101: 17.1 | H101: 17.1 | I101: 7242 | J101: 124586.6 | K101: 2019-08-28 | L101: 72 | M101: INE731A01020
A102: ARCOTECH | B102: EQ | C102: 2.15 | D102: 2.25 | E102: 2.1 | F102: 2.15 | G102: 2.2 | H102: 2.2 | I102: 33679 | J102: 73028.85 | K102: 2019-08-28 | L102: 57 | M102: INE574I01035
A103: ARIES | B103: EQ | C103: 53.75 | D103: 53.95 | E103: 50.4 | F103: 50.85 | G103: 51.25 | H103: 53.4 | I103: 16555 | J103: 861289.1 | K103: 2019-08-28 | L103: 347 | M103: INE298I01015
A104: ARIHANT | B104: EQ | C104: 18.4 | D104: 18.4 | E104: 15.65 | F104: 16.8 | G104: 16.8 | H104: 15.75 | I104: 1339 | J104: 22307.35 | K104: 2019-08-28 | L104: 19 | M104: INE413D01011
A105: ARIHANTSUP | B105: EQ | C105: 29.85 | D105: 29.9 | E105: 28.7 | F105: 29.55 | G105: 29.55 | H105: 28.6 | I105: 3265 | J105: 95382.55 | K105: 2019-08-28 | L105: 76 | M105: INE643K01018
A106: ARMANFIN | B106: EQ | C106: 399 | D106: 399 | E106: 362.55 | F106: 370.9 | G106: 362.55 | H106: 386.35 | I106: 632 | J106: 242541.35 | K106: 2019-08-28 | L106: 94 | M106: INE109C01017
A107: AROGRANITE | B107: EQ | C107: 43.95 | D107: 43.95 | E107: 40.4 | F107: 41.2 | G107: 40.8 | H107: 40.55 | I107: 77631 | J107: 3251997.35 | K107: 2019-08-28 | L107: 1109 | M107: INE210C01013
A108: ARROWGREEN | B108: BE | C108: 50.5 | D108: 50.55 | E108: 47.2 | F108: 48.5 | G108: 48.5 | H108: 48.15 | I108: 12779 | J108: 638916.3 | K108: 2019-08-28 | L108: 91 | M108: INE570D01018
A109: ARROWTEX | B109: EQ | C109: 10.65 | D109: 10.65 | E109: 9.65 | F109: 10.1 | G109: 9.85 | H109: 10.5 | I109: 11228 | J109: 111241.75 | K109: 2019-08-28 | L109: 74 | M109: INE933J01015
A110: ARSHIYA | B110: EQ | C110: 18.25 | D110: 19.5 | E110: 18.2 | F110: 18.85 | G110: 18.3 | H110: 18.25 | I110: 103725 | J110: 1929791.15 | K110: 2019-08-28 | L110: 260 | M110: INE968D01022
A111: ARSSINFRA | B111: EQ | C111: 23.35 | D111: 23.35 | E111: 21.3 | F111: 21.3 | G111: 21.3 | H111: 22.4 | I111: 7317 | J111: 158424.2 | K111: 2019-08-28 | L111: 214 | M111: INE267I01010
A112: ARVIND | B112: EQ | C112: 48.4 | D112: 48.95 | E112: 45.8 | F112: 46.55 | G112: 46.35 | H112: 48.55 | I112: 5865763 | J112: 276600745.1 | K112: 2019-08-28 | L112: 16213 | M112: INE034A01011
A113: ARVINDFASN | B113: EQ | C113: 510 | D113: 516.7 | E113: 500.1 | F113: 506 | G113: 501.75 | H113: 518.25 | I113: 55070 | J113: 28101530.7 | K113: 2019-08-28 | L113: 2366 | M113: INE955V01021
A114: ARVSMART | B114: EQ | C114: 88.3 | D114: 90.95 | E114: 87.3 | F114: 88.25 | G114: 87.3 | H114: 89.5 | I114: 5706 | J114: 506640.4 | K114: 2019-08-28 | L114: 262 | M114: INE034S01021
A115: ASAHIINDIA | B115: EQ | C115: 184.95 | D115: 186.95 | E115: 182 | F115: 182.85 | G115: 182 | H115: 184.15 | I115: 13724 | J115: 2543175.4 | K115: 2019-08-28 | L115: 267 | M115: INE439A01020
A116: ASAHISONG | B116: EQ | C116: 125 | D116: 126 | E116: 121 | F116: 121.5 | G116: 121.5 | H116: 125.75 | I116: 1826 | J116: 222893.95 | K116: 2019-08-28 | L116: 97 | M116: INE228I01012
A117: ASAL | B117: EQ | C117: 30.6 | D117: 32.5 | E117: 30.55 | F117: 31.95 | G117: 32.5 | H117: 30.6 | I117: 2737 | J117: 85821.8 | K117: 2019-08-28 | L117: 42 | M117: INE900C01027
A118: ASHAPURMIN | B118: BE | C118: 26.3 | D118: 27.7 | E118: 25.75 | F118: 26.5 | G118: 26 | H118: 26.85 | I118: 17344 | J118: 458427.2 | K118: 2019-08-28 | L118: 83 | M118: INE348A01023
A119: ASHIANA | B119: EQ | C119: 115.85 | D119: 116.4 | E119: 112.45 | F119: 113.15 | G119: 113.45 | H119: 114.95 | I119: 20724 | J119: 2367464.3 | K119: 2019-08-28 | L119: 328 | M119: INE365D01021
A120: ASHIMASYN | B120: EQ | C120: 7.2 | D120: 7.6 | E120: 7.1 | F120: 7.1 | G120: 7.1 | H120: 7.45 | I120: 4201 | J120: 30237.55 | K120: 2019-08-28 | L120: 46 | M120: INE440A01010
A121: ASHOKA | B121: EQ | C121: 102.6 | D121: 103.8 | E121: 97.15 | F121: 99.4 | G121: 98.65 | H121: 102.4 | I121: 850651 | J121: 84609821.55 | K121: 2019-08-28 | L121: 3679 | M121: INE442H01029
A122: ASHOKLEY | B122: EQ | C122: 67 | D122: 67.55 | E122: 65.65 | F122: 66.75 | G122: 66.75 | H122: 66.65 | I122: 31618285 | J122: 2103994686 | K122: 2019-08-28 | L122: 92413 | M122: INE208A01029
A123: ASIANHOTNR | B123: EQ | C123: 100 | D123: 107 | E123: 92.7 | F123: 104.25 | G123: 105 | H123: 102.25 | I123: 2326 | J123: 241143.05 | K123: 2019-08-28 | L123: 62 | M123: INE363A01022
A124: ASIANPAINT | B124: EQ | C124: 1599.2 | D124: 1606.75 | E124: 1590.6 | F124: 1603.15 | G124: 1604.05 | H124: 1599.45 | I124: 565676 | J124: 904439156 | K124: 2019-08-28 | L124: 48199 | M124: INE021A01026
A125: ASIANTILES | B125: EQ | C125: 221.2 | D125: 224.5 | E125: 218 | F125: 221.4 | G125: 219.5 | H125: 220.8 | I125: 91886 | J125: 20281021.05 | K125: 2019-08-28 | L125: 1955 | M125: INE022I01019
A126: ASPINWALL | B126: EQ | C126: 135.25 | D126: 137.75 | E126: 135.2 | F126: 137.35 | G126: 137.75 | H126: 136.05 | I126: 1094 | J126: 148019.6 | K126: 2019-08-28 | L126: 18 | M126: INE991I01015
A127: ASSAMCO | B127: BE | C127: 1 | D127: 1.05 | E127: 0.95 | F127: 1.05 | G127: 1 | H127: 1 | I127: 69430 | J127: 71892.7 | K127: 2019-08-28 | L127: 61 | M127: INE442A01024
A128: ASTEC | B128: EQ | C128: 365.7 | D128: 380 | E128: 365.7 | F128: 376.75 | G128: 380 | H128: 364.6 | I128: 6259 | J128: 2341877.65 | K128: 2019-08-28 | L128: 299 | M128: INE563J01010
A129: ASTERDM | B129: EQ | C129: 118.8 | D129: 119.35 | E129: 117 | F129: 117.55 | G129: 117.85 | H129: 116.9 | I129: 24428 | J129: 2888600.45 | K129: 2019-08-28 | L129: 1343 | M129: INE914M01019
A130: ASTRAL | B130: EQ | C130: 1281 | D130: 1308.3 | E130: 1270.2 | F130: 1303.6 | G130: 1304.35 | H130: 1284.9 | I130: 17782 | J130: 23068763.85 | K130: 2019-08-28 | L130: 1783 | M130: INE006I01046
A131: ASTRAMICRO | B131: EQ | C131: 75.8 | D131: 78.4 | E131: 74.45 | F131: 75.05 | G131: 74.7 | H131: 74.85 | I131: 104962 | J131: 8048131.5 | K131: 2019-08-28 | L131: 979 | M131: INE386C01029
A132: ASTRAZEN | B132: EQ | C132: 1860 | D132: 1879.85 | E132: 1815.2 | F132: 1834.95 | G132: 1840 | H132: 1850.8 | I132: 8018 | J132: 14775600.25 | K132: 2019-08-28 | L132: 1461 | M132: INE203A01020
A133: ASTRON | B133: EQ | C133: 88 | D133: 94.4 | E133: 87.35 | F133: 92.85 | G133: 92.95 | H133: 88.05 | I133: 1059089 | J133: 96370949.1 | K133: 2019-08-28 | L133: 3603 | M133: INE646X01014
A134: ATFL | B134: EQ | C134: 481.7 | D134: 498 | E134: 481.7 | F134: 492.25 | G134: 496 | H134: 481.6 | I134: 2847 | J134: 1384869.85 | K134: 2019-08-28 | L134: 189 | M134: INE209A01019
A135: ATLANTA | B135: EQ | C135: 6.7 | D135: 6.7 | E135: 6.1 | F135: 6.6 | G135: 6.2 | H135: 6.4 | I135: 192923 | J135: 1281625.4 | K135: 2019-08-28 | L135: 178 | M135: INE285H01022
A136: ATLASCYCLE | B136: BE | C136: 37 | D136: 38.15 | E136: 36.1 | F136: 37.35 | G136: 38 | H136: 37.55 | I136: 3832 | J136: 141062 | K136: 2019-08-28 | L136: 59 | M136: INE446A01025
A137: ATNINTER | B137: BE | C137: 0.1 | D137: 0.2 | E137: 0.1 | F137: 0.15 | G137: 0.1 | H137: 0.15 | I137: 6100 | J137: 947.2 | K137: 2019-08-28 | L137: 8 | M137: INE803A01027
A138: ATUL | B138: EQ | C138: 3503.1 | D138: 3527 | E138: 3485.1 | F138: 3499.3 | G138: 3491.3 | H138: 3520.55 | I138: 15270 | J138: 53472896.35 | K138: 2019-08-28 | L138: 3273 | M138: INE100A01010
A139: ATULAUTO | B139: EQ | C139: 222.95 | D139: 225.8 | E139: 215 | F139: 216.9 | G139: 216.5 | H139: 222.3 | I139: 11858 | J139: 2599291.2 | K139: 2019-08-28 | L139: 1089 | M139: INE951D01028
A140: AUBANK | B140: EQ | C140: 670 | D140: 683.3 | E140: 665.05 | F140: 669.45 | G140: 666 | H140: 673.5 | I140: 115389 | J140: 77668718.05 | K140: 2019-08-28 | L140: 14649 | M140: INE949L01017
A141: AURIONPRO | B141: EQ | C141: 94 | D141: 97.7 | E141: 89.55 | F141: 90.35 | G141: 90.7 | H141: 93.9 | I141: 14742 | J141: 1352141.15 | K141: 2019-08-28 | L141: 707 | M141: INE132H01018
A142: AUROPHARMA | B142: EQ | C142: 590.5 | D142: 601.5 | E142: 585.95 | F142: 591.1 | G142: 590.7 | H142: 588.35 | I142: 2561030 | J142: 1521875008 | K142: 2019-08-28 | L142: 48387 | M142: INE406A01037
A143: AUSOMENT | B143: EQ | C143: 33.25 | D143: 33.25 | E143: 29.6 | F143: 31.85 | G143: 32.3 | H143: 31.05 | I143: 333 | J143: 10053.55 | K143: 2019-08-28 | L143: 44 | M143: INE218C01016
A144: AUTOAXLES | B144: EQ | C144: 830.05 | D144: 834.95 | E144: 800.1 | F144: 809.4 | G144: 806.05 | H144: 833.65 | I144: 3004 | J144: 2457908.75 | K144: 2019-08-28 | L144: 540 | M144: INE449A01011
A145: AUTOIND | B145: EQ | C145: 35.95 | D145: 35.95 | E145: 33.4 | F145: 34 | G145: 34 | H145: 34.55 | I145: 4702 | J145: 158575.15 | K145: 2019-08-28 | L145: 78 | M145: INE718H01014
A146: AUTOLITIND | B146: EQ | C146: 20.5 | D146: 22.6 | E146: 19.65 | F146: 21.05 | G146: 20.35 | H146: 20.85 | I146: 2296 | J146: 47285.05 | K146: 2019-08-28 | L146: 63 | M146: INE448A01013
A147: AVADHSUGAR | B147: EQ | C147: 226.9 | D147: 231.45 | E147: 210.15 | F147: 219.2 | G147: 219.85 | H147: 224.9 | I147: 98258 | J147: 21712390.9 | K147: 2019-08-28 | L147: 2908 | M147: INE349W01017
A148: AVANTIFEED | B148: EQ | C148: 306.3 | D148: 312 | E148: 302.1 | F148: 309.45 | G148: 310 | H148: 304.1 | I148: 336148 | J148: 103916216.8 | K148: 2019-08-28 | L148: 8824 | M148: INE871C01038
A149: AVTNPL | B149: EQ | C149: 21.55 | D149: 21.9 | E149: 21 | F149: 21.7 | G149: 21.75 | H149: 21.2 | I149: 17586 | J149: 379875.65 | K149: 2019-08-28 | L149: 126 | M149: INE488D01021
A150: AXISBANK | B150: EQ | C150: 685.1 | D150: 689.35 | E150: 673.5 | F150: 678.2 | G150: 677.1 | H150: 682.95 | I150: 5677087 | J150: 3868573328 | K150: 2019-08-28 | L150: 91198 | M150: INE238A01034
A151: AXISCADES | B151: EQ | C151: 62.55 | D151: 63.75 | E151: 60.8 | F151: 62.5 | G151: 63.5 | H151: 62.75 | I151: 127861 | J151: 7956892.6 | K151: 2019-08-28 | L151: 664 | M151: INE555B01013
A152: AXISGOLD | B152: EQ | C152: 3400.05 | D152: 3412 | E152: 3387 | F152: 3409.45 | G152: 3404.15 | H152: 3379.6 | I152: 373 | J152: 1268583.3 | K152: 2019-08-28 | L152: 115 | M152: INF846K01347
A153: AXISNIFTY | B153: EQ | C153: 1136.8 | D153: 1143.08 | E153: 1128.7 | F153: 1129.2 | G153: 1129.2 | H153: 1136.84 | I153: 160 | J153: 181266.2 | K153: 2019-08-28 | L153: 13 | M153: INF846K01ZL0
A154: AYMSYNTEX | B154: EQ | C154: 32.7 | D154: 32.75 | E154: 30.8 | F154: 31.15 | G154: 30.9 | H154: 31.5 | I154: 9155 | J154: 287402.1 | K154: 2019-08-28 | L154: 40 | M154: INE193B01039
A155: BAGFILMS | B155: EQ | C155: 3.1 | D155: 3.15 | E155: 2.7 | F155: 2.75 | G155: 2.75 | H155: 3.05 | I155: 914331 | J155: 2601037.95 | K155: 2019-08-28 | L155: 608 | M155: INE116D01028
A156: BAJAJ-AUTO | B156: EQ | C156: 2760 | D156: 2813.95 | E156: 2750.55 | F156: 2766.75 | G156: 2761.75 | H156: 2766.5 | I156: 479960 | J156: 1339408758 | K156: 2019-08-28 | L156: 26766 | M156: INE917I01010
A157: BAJAJCON | B157: EQ | C157: 254.9 | D157: 257 | E157: 250.25 | F157: 253.2 | G157: 256.5 | H157: 253.45 | I157: 71040 | J157: 17973588.6 | K157: 2019-08-28 | L157: 847 | M157: INE933K01021
A158: BAJAJELEC | B158: EQ | C158: 394 | D158: 406 | E158: 387 | F158: 394.95 | G158: 391.55 | H158: 393.3 | I158: 148221 | J158: 58958187.95 | K158: 2019-08-28 | L158: 4693 | M158: INE193E01025
A159: BAJAJFINSV | B159: EQ | C159: 7107 | D159: 7140 | E159: 6983.3 | F159: 7035.95 | G159: 7040 | H159: 7126.5 | I159: 392626 | J159: 2764506685 | K159: 2019-08-28 | L159: 39063 | M159: INE918I01018
A160: BAJAJHIND | B160: EQ | C160: 5.4 | D160: 5.6 | E160: 5.3 | F160: 5.45 | G160: 5.45 | H160: 5.35 | I160: 1966282 | J160: 10747393.65 | K160: 2019-08-28 | L160: 1780 | M160: INE306A01021
A161: BAJAJHLDNG | B161: EQ | C161: 3349.85 | D161: 3349.85 | E161: 3290.15 | F161: 3303.65 | G161: 3301.1 | H161: 3324.35 | I161: 5657 | J161: 18726314.05 | K161: 2019-08-28 | L161: 1603 | M161: INE118A01012
A162: BAJFINANCE | B162: EQ | C162: 3348.8 | D162: 3362.65 | E162: 3296.75 | F162: 3326.35 | G162: 3331 | H162: 3357.75 | I162: 1250915 | J162: 4160155279 | K162: 2019-08-28 | L162: 74309 | M162: INE296A01024
A163: BALAJITELE | B163: EQ | C163: 51.6 | D163: 62.4 | E163: 51.5 | F163: 62.4 | G163: 62.4 | H163: 52 | I163: 1183677 | J163: 69374378.4 | K163: 2019-08-28 | L163: 7231 | M163: INE794B01026
A164: BALAMINES | B164: EQ | C164: 264 | D164: 264 | E164: 253.1 | F164: 256.2 | G164: 256.95 | H164: 259.95 | I164: 15935 | J164: 4094737.4 | K164: 2019-08-28 | L164: 413 | M164: INE050E01027
A165: BALAXI | B165: BE | C165: 80.75 | D165: 88 | E165: 80.75 | F165: 86.7 | G165: 86.95 | H165: 85 | I165: 212 | J165: 18303.8 | K165: 2019-08-28 | L165: 7 | M165: INE618N01014
A166: BALKRISHNA | B166: EQ | C166: 20.4 | D166: 20.5 | E166: 18.05 | F166: 18.55 | G166: 18.55 | H166: 19.3 | I166: 12553 | J166: 237659.8 | K166: 2019-08-28 | L166: 142 | M166: INE875R01011
A167: BALKRISIND | B167: EQ | C167: 752.4 | D167: 756.75 | E167: 741.25 | F167: 745 | G167: 744.95 | H167: 748.8 | I167: 225237 | J167: 168300885.4 | K167: 2019-08-28 | L167: 6243 | M167: INE787D01026
A168: BALLARPUR | B168: EQ | C168: 0.75 | D168: 0.75 | E168: 0.7 | F168: 0.75 | G168: 0.75 | H168: 0.7 | I168: 2048210 | J168: 1522656.65 | K168: 2019-08-28 | L168: 293 | M168: INE294A01037
A169: BALMLAWRIE | B169: EQ | C169: 173.9 | D169: 174.85 | E169: 171.8 | F169: 173.4 | G169: 173.3 | H169: 173.5 | I169: 42569 | J169: 7380977.75 | K169: 2019-08-28 | L169: 1197 | M169: INE164A01016
A170: BALPHARMA | B170: EQ | C170: 38 | D170: 42 | E170: 37.9 | F170: 39 | G170: 39 | H170: 37.9 | I170: 22847 | J170: 908175.8 | K170: 2019-08-28 | L170: 452 | M170: INE083D01012
A171: BALRAMCHIN | B171: EQ | C171: 136.25 | D171: 137.05 | E171: 127.55 | F171: 129.3 | G171: 130.1 | H171: 136.2 | I171: 2657107 | J171: 352133554.6 | K171: 2019-08-28 | L171: 29941 | M171: INE119A01028
A172: BANARBEADS | B172: EQ | C172: 42.5 | D172: 42.5 | E172: 40.25 | F172: 41.5 | G172: 40.5 | H172: 41.15 | I172: 1291 | J172: 52495.8 | K172: 2019-08-28 | L172: 18 | M172: INE655B01011
A173: BANARISUG | B173: EQ | C173: 1085 | D173: 1135 | E173: 1051.35 | F173: 1120.05 | G173: 1112 | H173: 1078.95 | I173: 218 | J173: 239831.35 | K173: 2019-08-28 | L173: 72 | M173: INE459A01010
A174: BANCOINDIA | B174: EQ | C174: 101.95 | D174: 102.95 | E174: 98.1 | F174: 99.9 | G174: 98.1 | H174: 101.95 | I174: 20169 | J174: 2036414.9 | K174: 2019-08-28 | L174: 517 | M174: INE213C01025
A175: BANDHANBNK | B175: EQ | C175: 476 | D175: 477 | E175: 470.7 | F175: 474.7 | G175: 474.4 | H175: 474.05 | I175: 810710 | J175: 383550375.1 | K175: 2019-08-28 | L175: 16116 | M175: INE545U01014
A176: BANG | B176: EQ | C176: 31.5 | D176: 32.8 | E176: 30.05 | F176: 31.35 | G176: 31 | H176: 32.4 | I176: 12173 | J176: 380489.9 | K176: 2019-08-28 | L176: 182 | M176: INE863I01016
A177: BANKBARODA | B177: EQ | C177: 97.2 | D177: 97.65 | E177: 93.75 | F177: 94.5 | G177: 94.5 | H177: 97.3 | I177: 24947200 | J177: 2380655375 | K177: 2019-08-28 | L177: 74304 | M177: INE028A01039
A178: BANKBEES | B178: EQ | C178: 2862 | D178: 2870 | E178: 2825.1 | F178: 2833.65 | G178: 2830 | H178: 2868.47 | I178: 49000 | J178: 138873741.3 | K178: 2019-08-28 | L178: 929 | M178: INF732E01078
A179: BANKINDIA | B179: EQ | C179: 69.25 | D179: 70.65 | E179: 66.7 | F179: 67.7 | G179: 67.95 | H179: 69.3 | I179: 7898518 | J179: 541619201 | K179: 2019-08-28 | L179: 19062 | M179: INE084A01016
A180: BANSWRAS | B180: EQ | C180: 68.9 | D180: 68.9 | E180: 62.1 | F180: 63.15 | G180: 63 | H180: 67.95 | I180: 2101 | J180: 137282.25 | K180: 2019-08-28 | L180: 43 | M180: INE629D01012
A181: BARTRONICS | B181: EQ | C181: 2.6 | D181: 2.7 | E181: 2.55 | F181: 2.7 | G181: 2.7 | H181: 2.65 | I181: 5696 | J181: 15086.2 | K181: 2019-08-28 | L181: 36 | M181: INE855F01034
A182: BASF | B182: EQ | C182: 1024.85 | D182: 1039 | E182: 1017.9 | F182: 1019.7 | G182: 1024.8 | H182: 1023.6 | I182: 2107 | J182: 2164488.95 | K182: 2019-08-28 | L182: 355 | M182: INE373A01013
A183: BASML | B183: EQ | C183: 130 | D183: 136 | E183: 125 | F183: 125.2 | G183: 125 | H183: 133.55 | I183: 242 | J183: 30904.05 | K183: 2019-08-28 | L183: 14 | M183: INE186H01014
A184: BATAINDIA | B184: EQ | C184: 1513.95 | D184: 1521.7 | E184: 1501.5 | F184: 1507.7 | G184: 1504.95 | H184: 1509.1 | I184: 761192 | J184: 1150530947 | K184: 2019-08-28 | L184: 18229 | M184: INE176A01028
A185: BAYERCROP | B185: EQ | C185: 3105.15 | D185: 3127.95 | E185: 3060.05 | F185: 3103.9 | G185: 3100 | H185: 3106.55 | I185: 20492 | J185: 63525967.4 | K185: 2019-08-28 | L185: 1189 | M185: INE462A01022
A186: BBL | B186: EQ | C186: 929.2 | D186: 929.2 | E186: 897.05 | F186: 906.9 | G186: 912 | H186: 911.2 | I186: 3746 | J186: 3399128.7 | K186: 2019-08-28 | L186: 392 | M186: INE464A01028
A187: BBTC | B187: EQ | C187: 929 | D187: 945 | E187: 882 | F187: 893.7 | G187: 889.45 | H187: 927 | I187: 642883 | J187: 591519520.5 | K187: 2019-08-28 | L187: 29628 | M187: INE050A01025
A188: BCG | B188: EQ | C188: 3.65 | D188: 3.65 | E188: 3.45 | F188: 3.6 | G188: 3.65 | H188: 3.5 | I188: 265638 | J188: 966151.6 | K188: 2019-08-28 | L188: 133 | M188: INE425B01027
A189: BCP | B189: EQ | C189: 9.9 | D189: 9.9 | E189: 9.9 | F189: 9.9 | G189: 9.9 | H189: 10.4 | I189: 1963 | J189: 19433.7 | K189: 2019-08-28 | L189: 12 | M189: INE905P01028
A190: BDL | B190: EQ | C190: 285.05 | D190: 291 | E190: 281 | F190: 281.6 | G190: 281.75 | H190: 288.5 | I190: 12421 | J190: 3537330.75 | K190: 2019-08-28 | L190: 931 | M190: INE171Z01018
A191: BEARDSELL | B191: EQ | C191: 12.4 | D191: 13.15 | E191: 11.85 | F191: 12.05 | G191: 12.8 | H191: 12.7 | I191: 5849 | J191: 70831.4 | K191: 2019-08-28 | L191: 99 | M191: INE520H01022
A192: BEDMUTHA | B192: EQ | C192: 12.8 | D192: 12.9 | E192: 12.1 | F192: 12.25 | G192: 12.6 | H192: 12.95 | I192: 30741 | J192: 377466.15 | K192: 2019-08-28 | L192: 102 | M192: INE844K01012
A193: BEL | B193: EQ | C193: 103.2 | D193: 104.55 | E193: 102.75 | F193: 103.7 | G193: 103.7 | H193: 103.65 | I193: 8688813 | J193: 901702476.1 | K193: 2019-08-28 | L193: 30275 | M193: INE263A01024
A194: BEML | B194: EQ | C194: 778.9 | D194: 815 | E194: 774.5 | F194: 801.85 | G194: 797.6 | H194: 775.1 | I194: 1444300 | J194: 1160630129 | K194: 2019-08-28 | L194: 42945 | M194: INE258A01016
A195: BEPL | B195: EQ | C195: 57.3 | D195: 58.65 | E195: 54.75 | F195: 55.05 | G195: 55.15 | H195: 57.05 | I195: 282164 | J195: 15846798.25 | K195: 2019-08-28 | L195: 2403 | M195: INE922A01025
A196: BERGEPAINT | B196: EQ | C196: 368.8 | D196: 368.8 | E196: 362.2 | F196: 366.4 | G196: 366.25 | H196: 368.05 | I196: 692299 | J196: 252783087.4 | K196: 2019-08-28 | L196: 20058 | M196: INE463A01038
A197: BFINVEST | B197: EQ | C197: 262.9 | D197: 279.9 | E197: 257.9 | F197: 264.3 | G197: 263.25 | H197: 261.4 | I197: 101564 | J197: 27538518.15 | K197: 2019-08-28 | L197: 2804 | M197: INE878K01010
A198: BFUTILITIE | B198: EQ | C198: 164.2 | D198: 170.85 | E198: 161.25 | F198: 163.4 | G198: 163.4 | H198: 163.55 | I198: 709733 | J198: 118774594 | K198: 2019-08-28 | L198: 11073 | M198: INE243D01012
A199: BGLOBAL | B199: BE | C199: 1.05 | D199: 1.05 | E199: 1 | F199: 1 | G199: 1 | H199: 1 | I199: 45467 | J199: 46719.05 | K199: 2019-08-28 | L199: 19 | M199: INE224M01013
A200: BGRENERGY | B200: EQ | C200: 36.25 | D200: 38 | E200: 35.5 | F200: 36.05 | G200: 35.55 | H200: 36.5 | I200: 165172 | J200: 6072897.05 | K200: 2019-08-28 | L200: 2065 | M200: INE661I01014
... 1485 more rows

Sheet Sheet1 (hidden)

Sheet Sheet3 (hidden)

Sheet Sheet4 (hidden)
